{"text_format":"1","workbook":"xlsx","n_sheets":13,"sheets":["QUANTIDADES","QTD DIN","INFRAESTRUTURA","DIMENSIONAMENTO","PREÇOS DETALHADOS A PREENCHER","PREÇOS POR ITEM CONF LICITAÇÃO","PL AQUIS+SERV CGU-R E ITEM","PPL DIN","DESEMBOLSO","FASES-ETAPAS","ACRÔNIMOS","FATURAMENTO","SIE CGU-R"],"not_rendered":{"charts":0,"images":12,"macros":1,"external_links":1,"defined_names":24,"comments":0,"pivot_tables":3},"unopened":[],"bounds":{"document_bytes":16777216,"sheet_cells":100000,"rows_first":2000,"rows_last":500,"rows_between":2000,"halvings":0,"cell_chars":16384,"cell_head_chars":4096},"cells_cut":0,"cells_raw":0,"read":"whole","date_system":"1900"}

{"sheet":"QUANTIDADES","index":0,"n_rows":77,"n_cols":37,"rows_kept":77,"cut":false,"hidden":false,"merged":[[2,1,2,18],[3,3,3,22],[61,4,61,11]]}
[]
[]
[null,"Objeto: solução de fornecimento de Sistema Ininterrupto de Energia (SIE) para atender as cargas dos racks de TI e estações de trabalho dos usuários das Unidades da CGU nos Estados, sob a forma de locação, conforme Termo de Referência, para as Unidades da CGU e seguintes condições:"]
[null,null,null,"Descrição, Quantidades, Autonomia correspondente por Localidade"]
["Sigla","Unidade Regional nos Estados","Código","UPS Rack 5kVA","Banco Baterias Rack 5kVA (min)","UPS Rack 3kVA","Banco Baterias Rack 3kVA (min)","UPS Rack 2kVA","Banco Baterias Rack 2kVA (min)","UPS Predial 3kVA","Banco Baterias Predial 3kVA (min)","UPS Predial 5kVA","Banco Baterias Predial 5kVA (min)","UPS Predial 8kVA","Banco Baterias Predial 8kVA (min)","UPS Predial 10kVA","Banco Baterias Predial 10kVA (min)","UPS Predial 15kVA","Banco Baterias Predial 15kVA (min)","UPS Predial 20kVA","Banco Baterias Predial 20kVA (min)","Tensão de Entrada","Infraest. de Uso Permanente (conj.)","BB 30min","BB 15min ","BB 10min","Quadro Bypass Monofásico","Quadro Bypass Trifásico","Autotrafo Monofásico","Autotrafo Trifásico","Disjuntor Monofásico","Disjuntor Trifásico","Cabos Monofásicos (F+N+T) - Entrada e Saída (m)","Cabos Trifásicos (3F+N+T) - Entrada e Saída","Treinamento (Operação e Supervisão Local)","Treinamento (Supervisão Remota)","Custo por Localidade R$/mês"]
["AC","Controladoria Regional da União no Estado do Acre",1,"","",1,"30min","","","","",1,"10min","","","","","","","","","220/127V",1,1,0,1,2,null,null,null,4,"",240,null,1]
["AL","Controladoria Regional da União no Estado de Alagoas",2,"","",1,"30min","","","","","","","","",1,"10min","","","","","380/220V",1,1,0,1,2,null,1,1,2,2,120,200,1]
["AM","Controladoria Regional da União no Estado do Amazonas",3,1,"30min","","","","","","","","",1,"10min","","","","","","","380/220V",1,1,0,1,2,null,2,null,4,"",240,null,1]
["AP","Controladoria Regional da União no Estado do Amapá",4,"","",1,"30min","","",1,"10min","","","","","","","","","","","220/127V",1,1,0,1,2,null,null,null,4,"",240,null,1]
["BA","Controladoria Regional da União no Estado da Bahia",5,1,"30min","","",1,"30min","","","","","","","","",1,"10min","","","220/127V",1,2,0,1,2,1,null,null,4,2,240,100,1]
["CE","Controladoria Regional da União no Estado do Ceará",6,1,"30min","","","","","","","","",2,"10min","","","","","","","380/220V",1,1,0,2,3,null,3,null,6,"",360,null,1]
["ES","Controladoria Regional da União no Estado do Espírito Santo",7,1,"15min","","","","","","","","","","",1,"10min","","","","","220/127V",1,0,1,1,1,1,null,null,2,2,120,100,1]
["MA","Controladoria Regional da União no Estado do Maranhão",8,1,"30min","","",1,"30min","","","","","","",1,"10min","","","","","380/220V",1,2,0,1,2,1,2,1,4,2,240,100,1]
["MG","Controladoria Regional da União no Estado de Minas Gerais",9,1,"15min","","",3,"15min","","","","","","",2,"10min","","","","","220/127V",1,0,4,2,4,2,null,null,8,4,480,200,1]
["MT","Controladoria Regional da União no Estado do Mato Grosso",10,"","",1,"15min","","","","",1,"10min","","","","","","","","","220/127V",1,0,1,1,2,null,null,null,4,"",240,null,1]
["PB","Controladoria Regional da União no Estado da Paraíba",11,1,"30min","","","","","","","","","","",1,"10min","","","","","380/220V",1,1,0,1,1,1,1,1,2,2,120,100,1]
["PE","Controladoria Regional da União no Estado de Pernambuco",12,1,"30min","","","","","","","","","","","","",1,"10min","","","380/220V",1,1,0,1,1,1,1,1,2,2,120,100,1]
["PI","Controladoria Regional da União no Estado do Piauí",13,"","",1,"30min",1,"30min","","","","",1,"10min","","","","","","","380/220V",1,2,0,1,3,null,3,null,6,"",360,null,1]
["PR","Controladoria Regional da União no Estado do Paraná",14,1,"15min","","","","","","","","","","",1,"10min","","",1,"10min","220/127V",1,0,1,2,1,2,null,null,2,4,120,200,1]
["RJ","Controladoria Regional da União no Estado do Rio de Janeiro",15,1,"15min","","",1,"15min","","","","",1,"10min","","",1,"10min","","","220/127V",1,0,2,2,3,1,null,null,6,2,360,100,1]
["RN","Controladoria Regional da União no Estado do Rio Grande do Norte",16,1,"30min","","",2,"30min","","","","","","",1,"10min","","","","","380/220V",1,3,0,1,3,1,3,1,6,2,360,100,1]
["RO","Controladoria Regional da União no Estado de Rondônia",17,"","",1,"30min","","","","",1,"10min","","","","","","","","","220/127V",1,1,0,1,2,null,null,null,4,"",240,null,1]
["RR","Controladoria Regional da União no Estado de Roraima",18,"","",1,"30min","","","","",1,"10min","","","","","","","","","220/127V",1,1,0,1,2,null,null,null,4,"",240,null,1]
["RS","Controladoria Regional da União no Estado do Rio Grande do Sul",19,1,"15min","","","","","","","","","","",1,"10min","","","","","220/127V",1,0,1,1,1,1,null,null,2,2,120,100,1]
["SC","Controladoria Regional da União no Estado de Santa Catarina",20,1,"15min","","","","","","","","","","",1,"10min","","","","","220/127V",1,0,1,1,1,1,null,null,2,2,120,100,1]
["SE","Controladoria Regional da União no Estado de Sergipe",21,1,"30min","","","","","","","","","","",1,"10min","","","","","220/127V",1,1,0,1,1,1,null,null,2,2,120,100,1]
["TO","Controladoria Regional da União no Estado do Tocantins",22,"","",1,"15min",1,"15min","","",1,"10min","","","","","","","","","380/220V",1,0,2,1,3,null,3,null,6,"",360,null,1]
["DF","SEDE da CGU - Brásilia - DF",23,"","","","","","","","","","","","","","","","","","","380/220V",null,null,null,null,null,null,null,null,null,"","",null,null,1]
[]
[]
[]
[]
["Item","TABELA RESUMO:","Total"]
[1,"SIE para Racks Tipo 1 e 2",{"$f":"SUM(C35:C37)","v":32},"Marcador"]
["1.1","UPS Rack 5kVA",{"$f":"SUM(Tabela5[UPS Rack 5kVA])","v":14},3]
["1.2","UPS Rack 3kVA",{"$f":"SUM(Tabela5[UPS Rack 3kVA])","v":8},2]
["1.3","UPS Rack 2kVA",{"$f":"SUM(Tabela5[UPS Rack 2kVA])","v":10},1]
["1.4","Banco Baterias  Rack 30min",{"$f":"SUMIF(Tabela5[Banco Baterias Rack 5kVA (min)],\"30min\",Tabela5[UPS Rack 5kVA])+SUMIF(Tabela5[Banco Baterias Rack 3kVA (min)],\"30min\",Tabela5[UPS Rack 3kVA])+SUMIF(Tabela5[Banco Baterias Rack 2kVA (min)],\"30min\",Tabela5[UPS Rack 2kVA])","v":19}]
["1.5","Banco Baterias  Rack 15min",{"$f":"SUMIF(Tabela5[Banco Baterias Rack 5kVA (min)],\"15min\",Tabela5[UPS Rack 5kVA])+SUMIF(Tabela5[Banco Baterias Rack 3kVA (min)],\"15min\",Tabela5[UPS Rack 3kVA])+SUMIF(Tabela5[Banco Baterias Rack 2kVA (min)],\"15min\",Tabela5[UPS Rack 2kVA])","v":13}]
[2,"SIE para Instalação Predial",{"$f":"SUM(C41:C46)","v":26}]
["2.1","UPS Predial 3kVA",{"$f":"SUM(Tabela5[UPS Predial 3kVA])","v":1},2]
["2.2","UPS Predial 5kVA",{"$f":"SUM(Tabela5[UPS Predial 5kVA])","v":5},3]
["2.3","UPS Predial 8kVA",{"$f":"SUM(Tabela5[UPS Predial 8kVA])","v":5},4]
["2.4","UPS Predial 10kVA",{"$f":"SUM(Tabela5[UPS Predial 10kVA])","v":11},5]
["2.5","UPS Predial 15kVA",{"$f":"SUM(Tabela5[UPS Predial 15kVA])","v":3},6]
["2.6","UPS Predial 20kVA",{"$f":"SUM(Tabela5[UPS Predial 20kVA])","v":1},7]
["2.7","Banco Baterias Predial 10min",{"$f":"SUM(C41:C46)","v":26}]
[3,"Infraestrura Elétrica"]
["3.1","Quadro de Bypass/Disjuntores de Entrada",{"$f":"C34+C40","v":58}]
["3.2","Autotransformador ",{"$f":"SUM(C51:C56)","v":24},null,"kVA ","kVA Comercial"]
["3.2.1","380/208V - 10kVA",{"$f":"SUMIF(Tabela5[Tensão de Entrada],\"380/220V\",Tabela5[UPS Predial 10kVA])","v":4},null,{"$f":"ROUND(10*0.9/0.7,0)","v":13},15]
["3.2.2","380/208V - 15kVA",{"$f":"SUMIF(Tabela5[Tensão de Entrada],\"380/220V\",Tabela5[UPS Predial 15kVA])","v":1},null,{"$f":"ROUND(15*0.9/0.7,0)","v":19},20]
["3.2.3","220/120V - 2kVA",{"$f":"SUMIF(Tabela5[Tensão de Entrada],\"380/220V\",Tabela5[UPS Rack 2kVA])+SUMIF(Tabela5[Tensão de Entrada],\"380/220V\",Tabela5[UPS Predial 3kVA])","v":5},null,{"$f":"ROUND(2*0.9/0.7,0)","v":3},3]
["3.2.4","220/120V - 3kVA",{"$f":"SUMIF(Tabela5[Tensão de Entrada],\"380/220V\",Tabela5[UPS Rack 3kVA])","v":3},null,{"$f":"ROUND(3*0.9/0.7,0)","v":4},5]
["3.2.5","220/120V - 5kVA",{"$f":"SUMIF(Tabela5[Tensão de Entrada],\"380/220V\",Tabela5[UPS Rack 5kVA])+SUMIF(Tabela5[Tensão de Entrada],\"380/220V\",Tabela5[UPS Predial 5kVA])","v":7},null,{"$f":"ROUND(4*0.9/0.7,0)","v":5},5]
["3.2.6","220/120V - 8kVA",{"$f":"SUMIF(Tabela5[Tensão de Entrada],\"380/220V\",Tabela5[UPS Predial 8kVA])","v":4},null,{"$f":"ROUND(8*0.9/0.7,0)","v":10},10]
[4,"Treinamento",{"$f":"C58+C59","v":23}]
["4.1","2 (dois) servidores",{"$f":"COUNTA(Tabela5[Treinamento (Operação e Supervisão Local)])","v":22}]
["4.2","4 (quatro) servidores",1]
[5,"Sistema de Gerenciamento Remoto",1]
[]
[null,null,null,null,"DIMENSIONAMENTO ORIENTATIVO - A RESPONSABILIDADE É DO FORNECEDOR"]
[null,"UPS","QTDE","kVA","Disjuntor Bi 220V (A)","cabo Mono 220V (mm²)","Disjuntor Mono 220V (A)","cabo Mono 380V (mm²)","Disjuntor Tri 220V (A)","cabo Tri 220V (mm²)","Disjuntor Tri 380V (A)","cabo Tri 380V (mm²)"]
[null,"2kVA",{"$f":"SUMIF($D$35:$D$47,1,$C$35:$C$47)","v":10},{"$f":"C64*2","v":20},16,4,16,4]
[null,"3kVA",{"$f":"SUMIF($D$35:$D$47,2,$C$35:$C$47)","v":9},{"$f":"C65*3","v":27},20,4,20,4]
[null,"5kVA",{"$f":"SUMIF($D$35:$D$47,3,$C$35:$C$47)","v":19},{"$f":"C66*5","v":95},32,6,32,6]
[null,"8kVA",{"$f":"SUMIF($D$35:$D$47,4,$C$35:$C$47)","v":5},{"$f":"C67*8","v":40},50,16,50,16]
[null,"10kVA",{"$f":"SUMIF($D$35:$D$47,5,$C$35:$C$47)","v":11},{"$f":"C68*10","v":110},null,null,null,null,32,6,20,4]
[null,"15kVA",{"$f":"SUMIF($D$35:$D$47,6,$C$35:$C$47)","v":3},{"$f":"C69*15","v":45},null,null,null,null,50,16,32,6]
[null,"20kVA",{"$f":"SUMIF($D$35:$D$47,7,$C$35:$C$47)","v":1},{"$f":"C70*20","v":20},null,null,null,null,63,25,40,10]
[null,null,{"$f":"SUM(C64:C70)","v":58},{"$f":"SUM(D64:D70)","v":357}]
[]
[null,null,null,"kVA"]
[]
[null,"QUADRO BYPASS","2kVA-R","3kVA-R","5kVA-R","3kVA-P","5kVA-P","8kVA-P","10kVA-P","15kVA-P","20kVA-P"]
[null,"220/127V",{"$f":"VLOOKUP($B76,TABQTDTE,'QTD DIN'!B$35,0)","v":5},{"$f":"VLOOKUP($B76,TABQTDTE,'QTD DIN'!C$35,0)","v":5},{"$f":"VLOOKUP($B76,TABQTDTE,'QTD DIN'!D$35,0)","v":8},{"$f":"VLOOKUP($B76,TABQTDTE,'QTD DIN'!E$35,0)","v":1},{"$f":"VLOOKUP($B76,TABQTDTE,'QTD DIN'!F$35,0)","v":4},{"$f":"VLOOKUP($B76,TABQTDTE,'QTD DIN'!G$35,0)","v":1},{"$f":"VLOOKUP($B76,TABQTDTE,'QTD DIN'!H$35,0)","v":7},{"$f":"VLOOKUP($B76,TABQTDTE,'QTD DIN'!I$35,0)","v":2},{"$f":"VLOOKUP($B76,TABQTDTE,'QTD DIN'!J$35,0)","v":1}]
[null,"380/220V",{"$f":"VLOOKUP($B77,TABQTDTE,'QTD DIN'!B$35,0)","v":5},{"$f":"VLOOKUP($B77,TABQTDTE,'QTD DIN'!C$35,0)","v":3},{"$f":"VLOOKUP($B77,TABQTDTE,'QTD DIN'!D$35,0)","v":6},{"$f":"VLOOKUP($B77,TABQTDTE,'QTD DIN'!E$35,0)","v":0},{"$f":"VLOOKUP($B77,TABQTDTE,'QTD DIN'!F$35,0)","v":1},{"$f":"VLOOKUP($B77,TABQTDTE,'QTD DIN'!G$35,0)","v":5},{"$f":"VLOOKUP($B77,TABQTDTE,'QTD DIN'!H$35,0)","v":3},{"$f":"VLOOKUP($B77,TABQTDTE,'QTD DIN'!I$35,0)","v":1},{"$f":"VLOOKUP($B77,TABQTDTE,'QTD DIN'!J$35,0)","v":0}]

{"sheet":"QTD DIN","index":1,"n_rows":35,"n_cols":17,"rows_kept":35,"cut":false,"hidden":false,"merged":[]}
[]
[]
["Unidade da CGU","#UPS Rack 2kVA","#UPS Rack 3kVA","#UPS Rack 5kVA","#UPS Predial 3kVA","#UPS Predial 5kVA","#UPS Predial 8kVA","#UPS Predial 10kVA","#Predial 15kVA","#UPS Predial 20kVA","#BB 10min","#BB 15min ","#BB 30min","#Quadro Bypass Monofásico","#Quadro Bypass Trifásico","#Autotrafo Monofásico","#Autotrafo Trifásico"]
["AC",0,1,0,0,1,0,0,0,0,1,0,1,2]
["AL",0,1,0,0,0,0,1,0,0,1,0,1,2,null,1,1]
["AM",0,0,1,0,0,1,0,0,0,1,0,1,2,null,2]
["AP",0,1,0,1,0,0,0,0,0,1,0,1,2]
["BA",1,0,1,0,0,0,0,1,0,1,0,2,2,1]
["CE",0,0,1,0,0,2,0,0,0,2,0,1,3,null,3]
["DF",0,0,0,0,0,0,0,0,0]
["ES",0,0,1,0,0,0,1,0,0,1,1,0,1,1]
["MA",1,0,1,0,0,0,1,0,0,1,0,2,2,1,2,1]
["MG",3,0,1,0,0,0,2,0,0,2,4,0,4,2]
["MT",0,1,0,0,1,0,0,0,0,1,1,0,2]
["PB",0,0,1,0,0,0,1,0,0,1,0,1,1,1,1,1]
["PE",0,0,1,0,0,0,0,1,0,1,0,1,1,1,1,1]
["PI",1,1,0,0,0,1,0,0,0,1,0,2,3,null,3]
["PR",0,0,1,0,0,0,1,0,1,2,1,0,1,2]
["RJ",1,0,1,0,0,1,0,1,0,2,2,0,3,1]
["RN",2,0,1,0,0,0,1,0,0,1,0,3,3,1,3,1]
["RO",0,1,0,0,1,0,0,0,0,1,0,1,2]
["RR",0,1,0,0,1,0,0,0,0,1,0,1,2]
["RS",0,0,1,0,0,0,1,0,0,1,1,0,1,1]
["SC",0,0,1,0,0,0,1,0,0,1,1,0,1,1]
["SE",0,0,1,0,0,0,1,0,0,1,0,1,1,1]
["TO",1,1,0,0,1,0,0,0,0,1,2,0,3,null,3]
["Total Geral",10,8,14,1,5,5,11,3,1,26,13,19,44,14,19,5]
[]
["Sigla","(Tudo)"]
[]
["Tensão da Rede","#UPS Rack 2kVA","#UPS Rack 3kVA","#UPS Rack 5kVA","#UPS Predial 3kVA","#UPS Predial 5kVA","#UPS Predial 8kVA","#UPS Predial 10kVA","#UPS Predial 15kVA","#UPS Predial 20kVA"]
["220/127V",5,5,8,1,4,1,7,2,1]
["380/220V",5,3,6,0,1,5,3,1,0]
["Total Geral",10,8,14,1,5,6,10,3,1]
[1,2,3,4,5,6,7,8,9,10]

{"sheet":"INFRAESTRUTURA","index":2,"n_rows":135,"n_cols":15,"rows_kept":135,"cut":false,"hidden":false,"merged":[[125,1,125,9]]}
[]
["ITEM","DESCRIÇÃO DA INFRAESTRUTURA ELÉTRICAS DE REFERÊNCIA","TENSÃO DA REDE ","Quadro Bypass Monofásico","Autotrafo Monofásico (kVA)","Autotrafo Trifásico (kVA)","Disjuntor Monofásico (A)","Disjuntor Bifásico (A)","Disjuntor Trifásico (A)","Seção Circular Cabo (mm²)","Comprimento Cabo (m)","Seção Eletrocalha (mm)","Comprimento Eletrocalha (3m)","Conjunto de Fixação e Suporte","Braçadeira de nylon"]
["1.0","Infraestrutura Elétrica - CGU-R/AC",{"$f":"IF(LEFT(B3,3)=\"UPS\",VLOOKUP(RIGHT(B3,2),QUANTIDADES!$A$6:$AJ$28,22,0),\"\")","v":""},null,null,null,null,null,null,null,null,{"$f":"IF(K3=\"\",\"\",\"50x50\")","v":""},{"$f":"SUM(M4:M5)","v":24},{"$f":"SUM(N4:N5)","v":36},48]
["1.1","UPS Rack 3kVA + BB 30min -  CGU-R/AC",{"$f":"IF(LEFT(B4,3)=\"UPS\",VLOOKUP(RIGHT(B4,2),QUANTIDADES!$A$6:$AJ$28,22,0),\"\")","v":"220/127V"},"T3",null,null,null,16,null,4,{"$f":"120","v":120},{"$f":"IF(K4=\"\",\"\",\"50x50\")","v":"50x50"},{"$f":"IF(K4=\"\",\"\",12)","v":12},{"$f":"IF(M4=\"\",\"\",M4*3/2)","v":18},{"$f":"IF(N4=\"\",\"\",M4*2)","v":24}]
["1.2","UPS Predial 5kVA + BB 10min - CGU-R/AC",{"$f":"IF(LEFT(B5,3)=\"UPS\",VLOOKUP(RIGHT(B5,2),QUANTIDADES!$A$6:$AJ$28,22,0),\"\")","v":"220/127V"},"T5",null,null,null,32,null,6,120,"50x50",12,18,24]
["1.3","Treinamento (Operação e Supervisão Local) - CGU-R/AC",{"$f":"IF(LEFT(B6,3)=\"UPS\",VLOOKUP(RIGHT(B6,2),QUANTIDADES!$A$6:$AJ$28,22,0),\"\")","v":""}]
[2,"Infraestrutura Elétrica - CGU-R/AL",{"$f":"IF(LEFT(B7,3)=\"UPS\",VLOOKUP(RIGHT(B7,2),QUANTIDADES!$A$6:$AJ$28,22,0),\"\")","v":""},null,null,null,null,null,null,null,null,null,{"$f":"SUM(M8:M9)","v":24},{"$f":"SUM(N8:N9)","v":36},{"$f":"SUM(O8:O9)","v":48}]
["2.1","UPS Rack 3kVA + BB 30min -  CGU-R/AL",{"$f":"IF(LEFT(B8,3)=\"UPS\",VLOOKUP(RIGHT(B8,2),QUANTIDADES!$A$6:$AJ$28,22,0),\"\")","v":"380/220V"},"T4",3,null,20,null,null,4,120,{"$f":"IF(K8=\"\",\"\",\"50x50\")","v":"50x50"},{"$f":"IF(K8=\"\",\"\",12)","v":12},{"$f":"IF(M8=\"\",\"\",M8*3/2)","v":18},{"$f":"IF(N8=\"\",\"\",M8*2)","v":24}]
["2.2","UPS Predial 10kVA + BB 10min - CGU-R/AL",{"$f":"IF(LEFT(B9,3)=\"UPS\",VLOOKUP(RIGHT(B9,2),QUANTIDADES!$A$6:$AJ$28,22,0),\"\")","v":"380/220V"},"T8",8,null,null,null,20,4,200,"50x50",12,18,24]
["2.3","Treinamento (Operação e Supervisão Local) - CGU-R/AL",{"$f":"IF(LEFT(B10,3)=\"UPS\",VLOOKUP(RIGHT(B10,2),QUANTIDADES!$A$6:$AJ$28,22,0),\"\")","v":""}]
[3,"Infraestrutura Elétrica - CGU-R/AM",{"$f":"IF(LEFT(B11,3)=\"UPS\",VLOOKUP(RIGHT(B11,2),QUANTIDADES!$A$6:$AJ$28,22,0),\"\")","v":""},null,null,null,null,null,null,null,null,{"$f":"IF(K11=\"\",\"\",\"50x50\")","v":""},{"$f":"SUM(M12:M13)","v":24},{"$f":"SUM(N12:N13)","v":36},{"$f":"SUM(O12:O13)","v":48}]
["3.1","UPS Rack 5kVA + BB 30min - CGU-R/AM",{"$f":"IF(LEFT(B12,3)=\"UPS\",VLOOKUP(RIGHT(B12,2),QUANTIDADES!$A$6:$AJ$28,22,0),\"\")","v":"380/220V"},"T6",5,null,32,null,null,6,120,"50x50",{"$f":"IF(K12=\"\",\"\",12)","v":12},{"$f":"IF(M12=\"\",\"\",M12*3/2)","v":18},{"$f":"IF(N12=\"\",\"\",M12*2)","v":24}]
["3.2","UPS Predial 8kVA + BB 10min - CGU-R/AM",{"$f":"IF(LEFT(B13,3)=\"UPS\",VLOOKUP(RIGHT(B13,2),QUANTIDADES!$A$6:$AJ$28,22,0),\"\")","v":"380/220V"},"T8",8,null,50,null,null,16,120,"50x50",12,18,24]
["3.3","Treinamento (Operação e Supervisão Local) - CGU-R/AM",{"$f":"IF(LEFT(B14,3)=\"UPS\",VLOOKUP(RIGHT(B14,2),QUANTIDADES!$A$6:$AJ$28,22,0),\"\")","v":""}]
[4,"Infraestrutura Elétrica - CGU-R/AP",{"$f":"IF(LEFT(B15,3)=\"UPS\",VLOOKUP(RIGHT(B15,2),QUANTIDADES!$A$6:$AJ$28,22,0),\"\")","v":""},null,null,null,null,null,null,null,null,{"$f":"IF(K15=\"\",\"\",\"50x50\")","v":""},{"$f":"SUM(M16:M17)","v":24},{"$f":"SUM(N16:N17)","v":36},{"$f":"SUM(O16:O17)","v":48}]
["4.1","UPS Rack 3kVA + BB 30min - CGU-R/AP",{"$f":"IF(LEFT(B16,3)=\"UPS\",VLOOKUP(RIGHT(B16,2),QUANTIDADES!$A$6:$AJ$28,22,0),\"\")","v":"220/127V"},"T3",null,null,null,20,null,4,120,"50x50",{"$f":"IF(K16=\"\",\"\",12)","v":12},{"$f":"IF(M16=\"\",\"\",M16*3/2)","v":18},{"$f":"IF(N16=\"\",\"\",M16*2)","v":24}]
["4.2","UPS Predial 3kVA + BB 10min - CGU-R/AP",{"$f":"IF(LEFT(B17,3)=\"UPS\",VLOOKUP(RIGHT(B17,2),QUANTIDADES!$A$6:$AJ$28,22,0),\"\")","v":"220/127V"},"T3",null,null,null,20,null,4,120,"50x50",12,18,24]
["4.3","Treinamento (Operação e Supervisão Local) - CGU-R/AP",{"$f":"IF(LEFT(B18,3)=\"UPS\",VLOOKUP(RIGHT(B18,2),QUANTIDADES!$A$6:$AJ$28,22,0),\"\")","v":""}]
[5,"Infraestrutura Elétrica - CGU-R/BA",{"$f":"IF(LEFT(B19,3)=\"UPS\",VLOOKUP(RIGHT(B19,2),QUANTIDADES!$A$6:$AJ$28,22,0),\"\")","v":""},null,null,null,null,null,null,null,null,{"$f":"IF(K19=\"\",\"\",\"50x50\")","v":""},{"$f":"SUM(M20:M22)","v":36},{"$f":"SUM(N20:N22)","v":54},72]
["5.1","UPS Rack 5kVA + BB 30min - CGU-R/BA",{"$f":"IF(LEFT(B20,3)=\"UPS\",VLOOKUP(RIGHT(B20,2),QUANTIDADES!$A$6:$AJ$28,22,0),\"\")","v":"220/127V"},"T5",null,null,null,32,null,6,120,"50x50",{"$f":"IF(K20=\"\",\"\",12)","v":12},{"$f":"IF(M20=\"\",\"\",M20*3/2)","v":18},{"$f":"IF(N20=\"\",\"\",M20*2)","v":24}]
["5.2","UPS Rack 2kVA + BB 30min - CGU-R/BA",{"$f":"IF(LEFT(B21,3)=\"UPS\",VLOOKUP(RIGHT(B21,2),QUANTIDADES!$A$6:$AJ$28,22,0),\"\")","v":"220/127V"},"T1",null,null,null,16,null,4,120,"50x50",{"$f":"IF(K21=\"\",\"\",12)","v":12},{"$f":"IF(M21=\"\",\"\",M21*3/2)","v":18},24]
["5.3","UPS Predial 15kVA + BB 10min - CGU-R/BA",{"$f":"IF(LEFT(B22,3)=\"UPS\",VLOOKUP(RIGHT(B22,2),QUANTIDADES!$A$6:$AJ$28,22,0),\"\")","v":"220/127V"},"T11",null,null,null,null,50,16,200,"50x50",12,18,24]
["5.4","Treinamento (Operação e Supervisão Local) - CGU-R/BA",{"$f":"IF(LEFT(B23,3)=\"UPS\",VLOOKUP(RIGHT(B23,2),QUANTIDADES!$A$6:$AJ$28,22,0),\"\")","v":""}]
[6,"Infraestrutura Elétrica - CGU-R/CE",{"$f":"IF(LEFT(B24,3)=\"UPS\",VLOOKUP(RIGHT(B24,2),QUANTIDADES!$A$6:$AJ$28,22,0),\"\")","v":""},null,null,null,null,null,null,null,null,{"$f":"IF(K24=\"\",\"\",\"50x50\")","v":""},{"$f":"SUM(M25:M27)","v":36},{"$f":"SUM(N25:N27)","v":54},{"$f":"SUM(O25:O27)","v":72}]
["6.1","UPS Rack 5kVA + BB 30min - CGU-R/CE",{"$f":"IF(LEFT(B25,3)=\"UPS\",VLOOKUP(RIGHT(B25,2),QUANTIDADES!$A$6:$AJ$28,22,0),\"\")","v":"380/220V"},"T6",5,null,32,null,null,6,{"$f":"360/3","v":120},"50x50",{"$f":"IF(K25=\"\",\"\",12)","v":12},18,24]
["6.2","UPS Predial 8kVA + BB 10min - CGU-R/CE",{"$f":"IF(LEFT(B26,3)=\"UPS\",VLOOKUP(RIGHT(B26,2),QUANTIDADES!$A$6:$AJ$28,22,0),\"\")","v":"380/220V"},"T8",8,null,50,null,null,16,120,"50x50",{"$f":"IF(K26=\"\",\"\",12)","v":12},18,24]
["6.3","UPS Predial 8kVA + BB 10min - CGU-R/CE",{"$f":"IF(LEFT(B27,3)=\"UPS\",VLOOKUP(RIGHT(B27,2),QUANTIDADES!$A$6:$AJ$28,22,0),\"\")","v":"380/220V"},"T8",8,null,50,null,null,16,120,"50x50",12,18,24]
["6.4","Treinamento (Operação e Supervisão Local) - CGU-R/CE",{"$f":"IF(LEFT(B28,3)=\"UPS\",VLOOKUP(RIGHT(B28,2),QUANTIDADES!$A$6:$AJ$28,22,0),\"\")","v":""}]
[7,"Infraestrutura Elétrica - CGU-R/ES",{"$f":"IF(LEFT(B29,3)=\"UPS\",VLOOKUP(RIGHT(B29,2),QUANTIDADES!$A$6:$AJ$28,22,0),\"\")","v":""},null,null,null,null,null,null,null,null,{"$f":"IF(K29=\"\",\"\",\"50x50\")","v":""},{"$f":"SUM(M30:M31)","v":24},{"$f":"SUM(N30:N31)","v":36},48]
["7.1","UPS Rack 5kVA + BB 15min - CGU-R/ES",{"$f":"IF(LEFT(B30,3)=\"UPS\",VLOOKUP(RIGHT(B30,2),QUANTIDADES!$A$6:$AJ$28,22,0),\"\")","v":"220/127V"},"T5",null,null,null,32,null,6,120,"50x50",{"$f":"IF(K30=\"\",\"\",12)","v":12},18,24]
["7.2","UPS Predial 10kVA + BB 10min - CGU-R/ES",{"$f":"IF(LEFT(B31,3)=\"UPS\",VLOOKUP(RIGHT(B31,2),QUANTIDADES!$A$6:$AJ$28,22,0),\"\")","v":"220/127V"},"T9",null,null,null,null,32,6,200,"50x50",12,18,24]
["7.3","Treinamento (Operação e Supervisão Local) - CGU-R/ES",{"$f":"IF(LEFT(B32,3)=\"UPS\",VLOOKUP(RIGHT(B32,2),QUANTIDADES!$A$6:$AJ$28,22,0),\"\")","v":""}]
[8,"Infraestrutura Elétrica - CGU-R/MA",{"$f":"IF(LEFT(B33,3)=\"UPS\",VLOOKUP(RIGHT(B33,2),QUANTIDADES!$A$6:$AJ$28,22,0),\"\")","v":""},null,null,null,null,null,null,null,null,{"$f":"IF(K33=\"\",\"\",\"50x50\")","v":""},{"$f":"SUM(M34:M36)","v":36},{"$f":"SUM(N34:N36)","v":54},72]
["8.1","UPS Rack 5kVA + BB 30min - CGU-R/MA",{"$f":"IF(LEFT(B34,3)=\"UPS\",VLOOKUP(RIGHT(B34,2),QUANTIDADES!$A$6:$AJ$28,22,0),\"\")","v":"380/220V"},"T6",5,null,32,null,null,6,120,"50x50",{"$f":"IF(K34=\"\",\"\",12)","v":12},18,{"$f":"IF(N34=\"\",\"\",M34*2)","v":24}]
["8.2","UPS Rack 2kVA + BB 30min - CGU-R/MA",{"$f":"IF(LEFT(B35,3)=\"UPS\",VLOOKUP(RIGHT(B35,2),QUANTIDADES!$A$6:$AJ$28,22,0),\"\")","v":"380/220V"},"T2",2,null,16,null,null,4,120,"50x50",12,18,24]
["8.3","UPS Predial 10kVA + BB 10min - CGU-R/MA",{"$f":"IF(LEFT(B36,3)=\"UPS\",VLOOKUP(RIGHT(B36,2),QUANTIDADES!$A$6:$AJ$28,22,0),\"\")","v":"380/220V"},"T10",null,10,null,null,20,4,200,"50x50",12,18,24]
["8.4","Treinamento (Operação e Supervisão Local) - CGU-R/MA",{"$f":"IF(LEFT(B37,3)=\"UPS\",VLOOKUP(RIGHT(B37,2),QUANTIDADES!$A$6:$AJ$28,22,0),\"\")","v":""}]
[9,"Infraestrutura Elétrica - CGU-R/MG",{"$f":"IF(LEFT(B38,3)=\"UPS\",VLOOKUP(RIGHT(B38,2),QUANTIDADES!$A$6:$AJ$28,22,0),\"\")","v":""},null,null,null,null,null,null,null,null,{"$f":"IF(K38=\"\",\"\",\"50x50\")","v":""},{"$f":"SUM(M39:M44)","v":72},{"$f":"SUM(N39:N44)","v":108},144]
["9.1","UPS Rack 5kVA +  BB 15min - CGU-R/MG",{"$f":"IF(LEFT(B39,3)=\"UPS\",VLOOKUP(RIGHT(B39,2),QUANTIDADES!$A$6:$AJ$28,22,0),\"\")","v":"220/127V"},"T5",null,null,null,32,null,6,120,"50x50",{"$f":"IF(K39=\"\",\"\",12)","v":12},18,{"$f":"IF(N39=\"\",\"\",M39*2)","v":24}]
["9.2","UPS Rack 2kVA +  BB 15min - CGU-R/MG",{"$f":"IF(LEFT(B40,3)=\"UPS\",VLOOKUP(RIGHT(B40,2),QUANTIDADES!$A$6:$AJ$28,22,0),\"\")","v":"220/127V"},"T1",null,null,null,16,null,4,120,"50x50",12,18,24]
["9.3","UPS Rack 2kVA +  BB 15min - CGU-R/MG",{"$f":"IF(LEFT(B41,3)=\"UPS\",VLOOKUP(RIGHT(B41,2),QUANTIDADES!$A$6:$AJ$28,22,0),\"\")","v":"220/127V"},"T1",null,null,null,16,null,4,120,"50x50",12,18,24]
["9.4","UPS Rack 2kVA +  BB 15min - CGU-R/MG",{"$f":"IF(LEFT(B42,3)=\"UPS\",VLOOKUP(RIGHT(B42,2),QUANTIDADES!$A$6:$AJ$28,22,0),\"\")","v":"220/127V"},"T1",null,null,null,16,null,4,120,"50x50",12,18,24]
["9.5","UPS Predial 10kVA + BB 10min - CGU-R/MG",{"$f":"IF(LEFT(B43,3)=\"UPS\",VLOOKUP(RIGHT(B43,2),QUANTIDADES!$A$6:$AJ$28,22,0),\"\")","v":"220/127V"},"T9",null,null,null,null,32,6,200,"50x50",12,18,24]
["9.6","UPS Predial 10kVA + BB 10min - CGU-R/MG",{"$f":"IF(LEFT(B44,3)=\"UPS\",VLOOKUP(RIGHT(B44,2),QUANTIDADES!$A$6:$AJ$28,22,0),\"\")","v":"220/127V"},"T9",null,null,null,null,32,6,200,"50x50",12,18,24]
["9.7","Treinamento (Operação e Supervisão Local) - CGU-R/MG",{"$f":"IF(LEFT(B45,3)=\"UPS\",VLOOKUP(RIGHT(B45,2),QUANTIDADES!$A$6:$AJ$28,22,0),\"\")","v":""}]
[10,"Infraestrutura Elétrica - CGU-R/MT",{"$f":"IF(LEFT(B46,3)=\"UPS\",VLOOKUP(RIGHT(B46,2),QUANTIDADES!$A$6:$AJ$28,22,0),\"\")","v":""},null,null,null,null,null,null,null,null,{"$f":"IF(K46=\"\",\"\",\"50x50\")","v":""},{"$f":"SUM(M47:M48)","v":24},{"$f":"SUM(N47:N48)","v":36},48]
["10.1","UPS Rack 3kVA +  BB 15min - CCGU-R/MT",{"$f":"IF(LEFT(B47,3)=\"UPS\",VLOOKUP(RIGHT(B47,2),QUANTIDADES!$A$6:$AJ$28,22,0),\"\")","v":"220/127V"},"T3",null,null,null,20,null,4,120,"50x50",{"$f":"IF(K47=\"\",\"\",12)","v":12},18,{"$f":"IF(N47=\"\",\"\",M47*2)","v":24}]
["10.2","UPS Predial 5kVA + BB 10min - CGU-R/MT",{"$f":"IF(LEFT(B48,3)=\"UPS\",VLOOKUP(RIGHT(B48,2),QUANTIDADES!$A$6:$AJ$28,22,0),\"\")","v":"220/127V"},"T5",null,null,null,32,null,6,120,"50x50",12,18,24]
["10.3","Treinamento (Operação e Supervisão Local) - CGU-R/MT",{"$f":"IF(LEFT(B49,3)=\"UPS\",VLOOKUP(RIGHT(B49,2),QUANTIDADES!$A$6:$AJ$28,22,0),\"\")","v":""}]
[11,"Infraestrutura Elétrica - CGU-R/PB",{"$f":"IF(LEFT(B50,3)=\"UPS\",VLOOKUP(RIGHT(B50,2),QUANTIDADES!$A$6:$AJ$28,22,0),\"\")","v":""},null,null,null,null,null,null,null,null,{"$f":"IF(K50=\"\",\"\",\"50x50\")","v":""},{"$f":"SUM(M51:M52)","v":24},{"$f":"SUM(N51:N52)","v":36},48]
["11.1","UPS Rack 5kVA +  BB 15min - CCGU-R/PB",{"$f":"IF(LEFT(B51,3)=\"UPS\",VLOOKUP(RIGHT(B51,2),QUANTIDADES!$A$6:$AJ$28,22,0),\"\")","v":"380/220V"},"T6",5,null,32,null,null,6,120,"50x50",{"$f":"IF(K51=\"\",\"\",12)","v":12},18,{"$f":"IF(N51=\"\",\"\",M51*2)","v":24}]
["11.2","UPS Predial 10kVA +  BB 10min - CCGU-R/PB",{"$f":"IF(LEFT(B52,3)=\"UPS\",VLOOKUP(RIGHT(B52,2),QUANTIDADES!$A$6:$AJ$28,22,0),\"\")","v":"380/220V"},"T10",null,10,null,null,20,4,100,"50x50",12,18,24]
[12,"Infraestrutura Elétrica - CGU-R/PE",{"$f":"IF(LEFT(B53,3)=\"UPS\",VLOOKUP(RIGHT(B53,2),QUANTIDADES!$A$6:$AJ$28,22,0),\"\")","v":""},null,null,null,null,null,null,null,null,"",{"$f":"SUM(M54:M56)","v":24},{"$f":"SUM(N54:N56)","v":36},48]
["11.3","Treinamento (Operação e Supervisão Local) - CGU/R-PB",{"$f":"IF(LEFT(B54,3)=\"UPS\",VLOOKUP(RIGHT(B54,2),QUANTIDADES!$A$6:$AJ$28,22,0),\"\")","v":""}]
["12.1","UPS Rack 5kVA +  BB 30min - CCGU-R/PE",{"$f":"IF(LEFT(B55,3)=\"UPS\",VLOOKUP(RIGHT(B55,2),QUANTIDADES!$A$6:$AJ$28,22,0),\"\")","v":"380/220V"},"T6",5,null,32,null,null,6,120,{"$f":"IF(K55=\"\",\"\",\"50x50\")","v":"50x50"},{"$f":"IF(K55=\"\",\"\",12)","v":12},18,{"$f":"IF(N55=\"\",\"\",M55*2)","v":24}]
["12.2","UPS Predial 15kVA + BB 10min - CGU-R/PE",{"$f":"IF(LEFT(B56,3)=\"UPS\",VLOOKUP(RIGHT(B56,2),QUANTIDADES!$A$6:$AJ$28,22,0),\"\")","v":"380/220V"},"T12",null,15,null,null,32,6,200,"50x50",12,18,24]
["12.3","Treinamento (Operação e Supervisão Local) - CGU-R/PE"]
[13,"Infraestrutura Elétrica - CGU-R/PI",{"$f":"IF(LEFT(B58,3)=\"UPS\",VLOOKUP(RIGHT(B58,2),QUANTIDADES!$A$6:$AJ$28,22,0),\"\")","v":""},null,null,null,null,null,null,null,null,"",{"$f":"SUM(M59:M62)","v":36},{"$f":"SUM(N59:N62)","v":54},{"$f":"SUM(O59:O62)","v":72}]
["13.1","UPS Rack 2kVA +  BB 30min - CGU-R/PI",{"$f":"IF(LEFT(B59,3)=\"UPS\",VLOOKUP(RIGHT(B59,2),QUANTIDADES!$A$6:$AJ$28,22,0),\"\")","v":"380/220V"},"T2",2,null,16,null,null,4,120,{"$f":"IF(K59=\"\",\"\",\"50x50\")","v":"50x50"},{"$f":"IF(K59=\"\",\"\",12)","v":12},18,{"$f":"IF(N59=\"\",\"\",M59*2)","v":24}]
["13.2","UPS Rack 3kVA +  BB 30min - CCGU-R/PI",{"$f":"IF(LEFT(B60,3)=\"UPS\",VLOOKUP(RIGHT(B60,2),QUANTIDADES!$A$6:$AJ$28,22,0),\"\")","v":"380/220V"},"T4",3,null,20,null,null,4,120,"50x50",12,18,24]
["13.3","UPS Predial 8kVA +  BB 10min - CCGU-R/PI",{"$f":"IF(LEFT(B61,3)=\"UPS\",VLOOKUP(RIGHT(B61,2),QUANTIDADES!$A$6:$AJ$28,22,0),\"\")","v":"380/220V"},"T8",8,null,50,null,null,16,120,"50x50",12,18,24]
["13.4","Treinamento (Operação e Supervisão Local) - CGU-R/PI",{"$f":"IF(LEFT(B62,3)=\"UPS\",VLOOKUP(RIGHT(B62,2),QUANTIDADES!$A$6:$AJ$28,22,0),\"\")","v":""}]
[14,"Infraestrutura Elétrica - CGU-R/PR",{"$f":"IF(LEFT(B63,3)=\"UPS\",VLOOKUP(RIGHT(B63,2),QUANTIDADES!$A$6:$AJ$28,22,0),\"\")","v":""},null,null,null,null,null,null,null,null,{"$f":"IF(K63=\"\",\"\",\"50x50\")","v":""},{"$f":"SUM(M64:M66)","v":36},{"$f":"SUM(N64:N66)","v":54},{"$f":"SUM(O64:O66)","v":72}]
["14.1","UPS Rack 5kVA + BB 15MIN - CGU-R/PR",{"$f":"IF(LEFT(B64,3)=\"UPS\",VLOOKUP(RIGHT(B64,2),QUANTIDADES!$A$6:$AJ$28,22,0),\"\")","v":"220/127V"},"T5",null,null,null,32,null,6,120,"50x50",{"$f":"IF(K64=\"\",\"\",12)","v":12},18,{"$f":"IF(N64=\"\",\"\",M64*2)","v":24}]
["14.2","UPS Predial 10kVA + BB 10MIN - CGU-R/PR",{"$f":"IF(LEFT(B65,3)=\"UPS\",VLOOKUP(RIGHT(B65,2),QUANTIDADES!$A$6:$AJ$28,22,0),\"\")","v":"220/127V"},"T9",null,null,null,null,32,6,200,"50x50",12,18,24]
["14.3","UPS Predial 20kVA + BB 10MIN - CGU-R/PR",{"$f":"IF(LEFT(B66,3)=\"UPS\",VLOOKUP(RIGHT(B66,2),QUANTIDADES!$A$6:$AJ$28,22,0),\"\")","v":"220/127V"},"T13",null,null,null,null,63,25,200,"50x50",12,18,24]
["14.4","Treinamento (Operação e Supervisão Local) - CGU-R/PR",{"$f":"IF(LEFT(B67,3)=\"UPS\",VLOOKUP(RIGHT(B67,2),QUANTIDADES!$A$6:$AJ$28,22,0),\"\")","v":""}]
[15,"Infraestrutura Elétrica - CGU-R/RJ",{"$f":"IF(LEFT(B68,3)=\"UPS\",VLOOKUP(RIGHT(B68,2),QUANTIDADES!$A$6:$AJ$28,22,0),\"\")","v":""},null,null,null,null,null,null,null,null,{"$f":"IF(K68=\"\",\"\",\"50x50\")","v":""},{"$f":"SUM(M69:M72)","v":48},{"$f":"SUM(N69:N72)","v":72},96]
["15.1","UPS Rack 2kVA + BB 15min - CGU-R/RJ",{"$f":"IF(LEFT(B69,3)=\"UPS\",VLOOKUP(RIGHT(B69,2),QUANTIDADES!$A$6:$AJ$28,22,0),\"\")","v":"220/127V"},"T1",null,null,null,16,null,4,120,"50x50",{"$f":"IF(K69=\"\",\"\",12)","v":12},18,{"$f":"IF(N69=\"\",\"\",M69*2)","v":24}]
["15.2","UPS Rack 5kVA + BB 15min - CGU-R/RJ",{"$f":"IF(LEFT(B70,3)=\"UPS\",VLOOKUP(RIGHT(B70,2),QUANTIDADES!$A$6:$AJ$28,22,0),\"\")","v":"220/127V"},"T5",null,null,null,32,null,6,120,"50x50",12,18,24]
["15.3","UPS Predial 8kVA + BB 10min - CGU-R/RJ",{"$f":"IF(LEFT(B71,3)=\"UPS\",VLOOKUP(RIGHT(B71,2),QUANTIDADES!$A$6:$AJ$28,22,0),\"\")","v":"220/127V"},"T7",null,null,null,50,null,16,120,"50x50",12,18,24]
["15.4","UPS Predial 15kVA + BB 10min - CGU-R/RJ",{"$f":"IF(LEFT(B72,3)=\"UPS\",VLOOKUP(RIGHT(B72,2),QUANTIDADES!$A$6:$AJ$28,22,0),\"\")","v":"220/127V"},"T11",null,null,null,null,50,16,200,"50x50",12,18,24]
["15.5","Treinamento (Operação e Supervisão Local) - CGU-R/PR",{"$f":"IF(LEFT(B73,3)=\"UPS\",VLOOKUP(RIGHT(B73,2),QUANTIDADES!$A$6:$AJ$28,22,0),\"\")","v":""}]
[16,"Infraestrutura Elétrica - CGU-R/RN",{"$f":"IF(LEFT(B74,3)=\"UPS\",VLOOKUP(RIGHT(B74,2),QUANTIDADES!$A$6:$AJ$28,22,0),\"\")","v":""},null,null,null,null,null,null,null,null,{"$f":"IF(K74=\"\",\"\",\"50x50\")","v":""},{"$f":"SUM(M75:M78)","v":48},{"$f":"SUM(N75:N78)","v":72},{"$f":"SUM(O75:O78)","v":96}]
["16.1","UPS Rack 2kVA + BB 30min - CGU-R/RN",{"$f":"IF(LEFT(B75,3)=\"UPS\",VLOOKUP(RIGHT(B75,2),QUANTIDADES!$A$6:$AJ$28,22,0),\"\")","v":"380/220V"},"T2",2,null,16,null,null,4,120,"50x50",{"$f":"IF(K75=\"\",\"\",12)","v":12},18,{"$f":"IF(N75=\"\",\"\",M75*2)","v":24}]
["16.2","UPS Rack 2kVA + BB 30min - CGU-R/RN",{"$f":"IF(LEFT(B76,3)=\"UPS\",VLOOKUP(RIGHT(B76,2),QUANTIDADES!$A$6:$AJ$28,22,0),\"\")","v":"380/220V"},"T2",2,null,16,null,null,4,120,"50x50",12,18,24]
["16.3","UPS Rack 5kVA + BB 30min - CGU-R/RN",{"$f":"IF(LEFT(B77,3)=\"UPS\",VLOOKUP(RIGHT(B77,2),QUANTIDADES!$A$6:$AJ$28,22,0),\"\")","v":"380/220V"},"T6",5,null,32,null,null,6,120,"50x50",12,18,24]
["16.4","UPS Predial 10kVA + BB 10min - CGU-R/RN",{"$f":"IF(LEFT(B78,3)=\"UPS\",VLOOKUP(RIGHT(B78,2),QUANTIDADES!$A$6:$AJ$28,22,0),\"\")","v":"380/220V"},"T10",null,10,null,null,20,4,200,"50x50",12,18,24]
["16.5","Treinamento (Operação e Supervisão Local) - CGU-R/RN",{"$f":"IF(LEFT(B79,3)=\"UPS\",VLOOKUP(RIGHT(B79,2),QUANTIDADES!$A$6:$AJ$28,22,0),\"\")","v":""}]
[17,"Infraestrutura Elétrica  - CGU-R/RO",{"$f":"IF(LEFT(B80,3)=\"UPS\",VLOOKUP(RIGHT(B80,2),QUANTIDADES!$A$6:$AJ$28,22,0),\"\")","v":""},null,null,null,null,null,null,null,null,{"$f":"IF(K80=\"\",\"\",\"50x50\")","v":""},{"$f":"SUM(M81:M82)","v":24},{"$f":"IF(M80=\"\",\"\",M80/2)","v":12},{"$f":"IF(N80=\"\",\"\",M80*2)","v":48}]
["17.1","UPS Rack 3kVA + BB 30min - CGU-R/RO",{"$f":"IF(LEFT(B81,3)=\"UPS\",VLOOKUP(RIGHT(B81,2),QUANTIDADES!$A$6:$AJ$28,22,0),\"\")","v":"220/127V"},"T3",null,null,null,20,null,4,120,"50x50",{"$f":"IF(K81=\"\",\"\",12)","v":12},18,24]
["17.2","UPS Predial 5kVA + BB 15min - CGU-R/RO",{"$f":"IF(LEFT(B82,3)=\"UPS\",VLOOKUP(RIGHT(B82,2),QUANTIDADES!$A$6:$AJ$28,22,0),\"\")","v":"220/127V"},"T5",null,null,null,32,null,6,120,"50x50",12,18,24]
["17.3","Treinamento (Operação e Supervisão Local) - CGU-R/RO",{"$f":"IF(LEFT(B83,3)=\"UPS\",VLOOKUP(RIGHT(B83,2),QUANTIDADES!$A$6:$AJ$28,22,0),\"\")","v":""}]
[18,"Infraestrutura Elétrica - CGU-R/RR",{"$f":"IF(LEFT(B84,3)=\"UPS\",VLOOKUP(RIGHT(B84,2),QUANTIDADES!$A$6:$AJ$28,22,0),\"\")","v":""},null,null,null,null,null,null,null,null,{"$f":"IF(K84=\"\",\"\",\"50x50\")","v":""},{"$f":"SUM(M85:M86)","v":24},{"$f":"IF(M84=\"\",\"\",M84/2)","v":12},48]
["18.1","UPS Rack 3kVA + BB 30min - CGU-R/RR",{"$f":"IF(LEFT(B85,3)=\"UPS\",VLOOKUP(RIGHT(B85,2),QUANTIDADES!$A$6:$AJ$28,22,0),\"\")","v":"220/127V"},"T3",null,null,null,20,null,4,120,"50x50",{"$f":"IF(K85=\"\",\"\",12)","v":12},18,24]
["18.2","UPS Predial 5kVA + BB 30min - CGU-R/RR",{"$f":"IF(LEFT(B86,3)=\"UPS\",VLOOKUP(RIGHT(B86,2),QUANTIDADES!$A$6:$AJ$28,22,0),\"\")","v":"220/127V"},"T5",null,null,null,32,null,6,120,"50x50",12,18,24]
["18.3","Treinamento (Operação e Supervisão Local) - CGU-R/RO",{"$f":"IF(LEFT(B87,3)=\"UPS\",VLOOKUP(RIGHT(B87,2),QUANTIDADES!$A$6:$AJ$28,22,0),\"\")","v":""}]
[19,"Infraestrutura Elétrica - CGU-R/RS",{"$f":"IF(LEFT(B88,3)=\"UPS\",VLOOKUP(RIGHT(B88,2),QUANTIDADES!$A$6:$AJ$28,22,0),\"\")","v":""},null,null,null,null,null,null,null,null,{"$f":"IF(K88=\"\",\"\",\"50x50\")","v":""},{"$f":"SUM(M89:M90)","v":24},{"$f":"SUM(N89:N90)","v":36},48]
["19.1","UPS Rack 5kVA + BB 15min - CGU-R/RS",{"$f":"IF(LEFT(B89,3)=\"UPS\",VLOOKUP(RIGHT(B89,2),QUANTIDADES!$A$6:$AJ$28,22,0),\"\")","v":"220/127V"},"T5",null,null,null,32,null,6,120,"50x50",{"$f":"IF(K89=\"\",\"\",12)","v":12},18,24]
["19.2","UPS Predial 10kVA + BB 10min - CGU-R/RS",{"$f":"IF(LEFT(B90,3)=\"UPS\",VLOOKUP(RIGHT(B90,2),QUANTIDADES!$A$6:$AJ$28,22,0),\"\")","v":"220/127V"},"T9",null,null,null,null,32,6,200,"50x50",12,18,24]
["19.3","Treinamento (Operação e Supervisão Local) - CGU-R/RS",{"$f":"IF(LEFT(B91,3)=\"UPS\",VLOOKUP(RIGHT(B91,2),QUANTIDADES!$A$6:$AJ$28,22,0),\"\")","v":""}]
[20,"Infraestrutura Elétrica - CGU-R/SC",{"$f":"IF(LEFT(B92,3)=\"UPS\",VLOOKUP(RIGHT(B92,2),QUANTIDADES!$A$6:$AJ$28,22,0),\"\")","v":""},null,null,null,null,null,null,null,null,{"$f":"IF(K92=\"\",\"\",\"50x50\")","v":""},{"$f":"SUM(M93:M94)","v":24},{"$f":"SUM(N93:N94)","v":36},48]
["20.1","UPS Rack 5kVA + BB 15min - CGU-R/SC",{"$f":"IF(LEFT(B93,3)=\"UPS\",VLOOKUP(RIGHT(B93,2),QUANTIDADES!$A$6:$AJ$28,22,0),\"\")","v":"220/127V"},"T5",null,null,null,32,null,6,120,"50x50",{"$f":"IF(K93=\"\",\"\",12)","v":12},18,24]
["20.2","UPS Predial 10kVA + BB 10min - CGU-R/SC",{"$f":"IF(LEFT(B94,3)=\"UPS\",VLOOKUP(RIGHT(B94,2),QUANTIDADES!$A$6:$AJ$28,22,0),\"\")","v":"220/127V"},"T9",null,null,null,null,32,6,200,"50x50",12,18,24]
["20.3","Treinamento (Operação e Supervisão Local) - CGU-R/SC",{"$f":"IF(LEFT(B95,3)=\"UPS\",VLOOKUP(RIGHT(B95,2),QUANTIDADES!$A$6:$AJ$28,22,0),\"\")","v":""}]
[21,"Infraestrutura Elétrica - CGU-R/SE",{"$f":"IF(LEFT(B96,3)=\"UPS\",VLOOKUP(RIGHT(B96,2),QUANTIDADES!$A$6:$AJ$28,22,0),\"\")","v":""},null,null,null,null,null,null,null,null,{"$f":"IF(K96=\"\",\"\",\"50x50\")","v":""},{"$f":"SUM(M97:M98)","v":24},{"$f":"SUM(N97:N98)","v":36},48]
["21.1","UPS Rack 5kVA + BB 30min - CGU-R/SE",{"$f":"IF(LEFT(B97,3)=\"UPS\",VLOOKUP(RIGHT(B97,2),QUANTIDADES!$A$6:$AJ$28,22,0),\"\")","v":"220/127V"},"T5",null,null,null,32,null,6,120,"50x50",{"$f":"IF(K97=\"\",\"\",12)","v":12},18,24]
["21.2","UPS Predial 10kVA + BB 10min - CGU-R/SE",{"$f":"IF(LEFT(B98,3)=\"UPS\",VLOOKUP(RIGHT(B98,2),QUANTIDADES!$A$6:$AJ$28,22,0),\"\")","v":"220/127V"},"T9",null,null,null,null,32,6,200,"50x50",12,18,24]
["21.3","Treinamento (Operação e Supervisão Local) - CGU-R/SE",{"$f":"IF(LEFT(B99,3)=\"UPS\",VLOOKUP(RIGHT(B99,2),QUANTIDADES!$A$6:$AJ$28,22,0),\"\")","v":""}]
[22,"Infraestrutura Elétrica - CGU-R/TO",{"$f":"IF(LEFT(B100,3)=\"UPS\",VLOOKUP(RIGHT(B100,2),QUANTIDADES!$A$6:$AJ$28,22,0),\"\")","v":""},null,null,null,null,null,null,null,null,{"$f":"IF(K100=\"\",\"\",\"50x50\")","v":""},{"$f":"SUM(M101:M103)","v":36},{"$f":"SUM(N101:N103)","v":54},{"$f":"SUM(O101:O103)","v":72}]
["22.1","UPS Rack 2kVA + BB 15min - CGU-R/TO",{"$f":"IF(LEFT(B101,3)=\"UPS\",VLOOKUP(RIGHT(B101,2),QUANTIDADES!$A$6:$AJ$28,22,0),\"\")","v":"380/220V"},"T2",2,null,16,null,null,4,120,"50x50",{"$f":"IF(K101=\"\",\"\",12)","v":12},18,{"$f":"IF(N101=\"\",\"\",M101*2)","v":24}]
["22.2","UPS Rack 3kVA+ BB 15min - CGU-R/TO",{"$f":"IF(LEFT(B102,3)=\"UPS\",VLOOKUP(RIGHT(B102,2),QUANTIDADES!$A$6:$AJ$28,22,0),\"\")","v":"380/220V"},"T4",3,null,20,null,null,4,120,"50x50",12,18,24]
["22.3","UPS Predial 5kVA + BB 10min - CGU-R/TO",{"$f":"IF(LEFT(B103,3)=\"UPS\",VLOOKUP(RIGHT(B103,2),QUANTIDADES!$A$6:$AJ$28,22,0),\"\")","v":"380/220V"},"T6",5,null,32,null,null,6,120,"50x50",12,18,24]
["22.4","Treinamento (Operação e Supervisão Local) - CGU-R/TO",{"$f":"IF(LEFT(B104,3)=\"UPS\",VLOOKUP(RIGHT(B104,2),QUANTIDADES!$A$6:$AJ$28,22,0),\"\")","v":""}]
[23,"CGU-SEDE/DF"]
["23.1","Supervisão remota (software) - CGU-SEDE/DF",{"$f":"IF(LEFT(B106,3)=\"UPS\",VLOOKUP(RIGHT(B106,2),QUANTIDADES!$A$6:$AJ$28,22,0),\"\")","v":""}]
["23.2","Treinamento (Operação e Supervisão Remota) - CGU-SEDE/DF",{"$f":"IF(LEFT(B107,3)=\"UPS\",VLOOKUP(RIGHT(B107,2),QUANTIDADES!$A$6:$AJ$28,22,0),\"\")","v":""}]
[]
["Tipo","Quadro de Bypass ","Potência (kVA)","Tensão"]
["T1","Disjuntor termomagnético bipolar de 16A - 03 unidades",2,"220/127V"]
["T2","Disjuntor termomagnético monopolar de 16A - 03 unidades",2,"380/220V"]
["T3","Disjuntor termomagnético bipolar de 20A - 03 unidades",3,"220/127V"]
["T4","Disjuntor termomagnético monopolar de 20A - 03 unidades",3,"380/220V"]
["T5","Disjuntor termomagnético bipolar de 32A - 03 unidades",5,"220/127V"]
["T6","Disjuntor termomagnético monopolar de 32A - 03 unidades",5,"380/220V"]
["T7","Disjuntor termomagnético bipolar de 50A - 03 unidades",8,"220/127V"]
["T8","Disjuntor termomagnético monopolar de 50A - 03 unidades",8,"380/220V"]
["T9","Disjuntor termomagnético tripolar de 32A - 03 unidades",10,"220/127V"]
["T10","Disjuntor termomagnético tripolar de 20A - 03 unidades",10,"380/220V"]
["T11","Disjuntor termomagnético tripolar de 50A - 03 unidades",15,"220/127V"]
["T12","Disjuntor termomagnético tripolar de 20A - 03 unidades",15,"380/220V"]
["T13","Disjuntor termomagnético tripolar de 63A - 03 unidades",20,"220/127V"]
["T14","Disjuntor termomagnético tripolar de 40A - 03 unidades",20,"380/220V"]
[]
[]
[null,"INFRAESTRUTURA/REDE ELÉTRICA"]
[null,"UPS","220/127V","220/127V","380/220V","380/220V","220/127V","220/127V","380/220V","380/220V"]
[null,"Potência","Disjuntor Bi 220V (A)","cabo Mono 220V (mm²)","Disjuntor Mono 220V (A)","cabo Mono 380V (mm²)","Disjuntor Tri 220V (A)","cabo Tri 220V (mm²)","Disjuntor Tri 380V (A)","cabo Tri 380V (mm²)"]
[null,"2kVA",16,4,16,4]
[null,"3kVA",20,4,20,4]
[null,"5kVA",32,6,32,6]
[null,"8kVA",50,16,50,16]
[null,"10kVA",null,null,null,null,32,6,20,4]
[null,"15kVA",null,null,null,null,50,16,32,6]
[null,"20kVA",null,null,null,null,63,25,40,10]

{"sheet":"DIMENSIONAMENTO","index":3,"n_rows":10,"n_cols":8,"rows_kept":10,"cut":false,"hidden":false,"merged":[]}
[]
[]
[null,"UPS","cabo Mono 220V (mm²)","cabo Mono 380V (mm²)","Eletrocalha Mono","cabo Tri 220V (mm²)","cabo Tri 380V (mm²)","Eletrocalha Tri"]
[null,"2kVA",4,4,"50X50"]
[null,"3kVA",4,4,"50X50"]
[null,"5kVA",6,6,"50X50"]
[null,"8kVA",16,16,"50X50"]
[null,"10kVA",null,null,null,6,4,"50X50"]
[null,"15kVA",null,null,null,16,6,"50X50"]
[null,"20kVA",null,null,null,25,10,"50X50"]

{"sheet":"PREÇOS DETALHADOS A PREENCHER","index":4,"n_rows":113,"n_cols":19,"rows_kept":113,"cut":false,"hidden":false,"merged":[]}
["Nº SEQ.","CGU-R","CÓDIGO 1","ITEM LICITAÇÃO","DESCRIÇÃO","CATMAT/CATSER","UNIDADE 1","QUANTIDADE 1","CATMAT/CATSER","PREÇO UNITÁRIO 1 (A PREENCHER)","PREÇO TOTAL 1","CÓDIGO 2","ITEM LICITAÇÃO","CATMAT/CATSER","PREÇO UNITÁRIO 2 (A PREENCHER)","UNIDADE 2","QUANTIDADE 2","PREÇO TOTAL 2","PREÇO TOTAL (VIGÊNCIA)"]
[1,"AC",{"$f":"IF(OR(LEFT(E2,3)=\"ups\",LEFT(E2,3)=\"SUP\"),1,IF(LEFT(E2,3)=\"inf\",2,IF(LEFT(E2,3)=\"tre\",3,\"\")))","v":1},5,"UPS Rack 3kVA + BB 30min -  CGU-R/AC",373404,"Cj",1,373404,null,{"$f":"H2*J2","v":0},5,17,2658,null,"MÊS",12,{"$f":"Q2*O2","v":0},{"$f":"SUM(K2,R2)","v":0}]
[2,"AC",{"$f":"IF(OR(LEFT(E3,3)=\"ups\",LEFT(E3,3)=\"SUP\"),1,IF(LEFT(E3,3)=\"inf\",2,IF(LEFT(E3,3)=\"tre\",3,\"\")))","v":1},6,"UPS Predial 5kVA + BB 10min - CGU-R/AC",331778,"Cj",1,331778,null,{"$f":"H3*J3","v":0},5,17,2658,null,"MÊS",12,0,0]
[3,"AC",2,13,"Infraestrutura Elétrica - CGU-R/AC",1538,"Cj",1,1538,null,0,6,16,5606,null,"MÊS",12,0,0]
[4,"AC",3,14,"Treinamento (Operação e Supervisão Local) - CGU-R/AC",20052,"Un",1,20052,null,0,7,null,2658,null,null,null,0,0]
[5,"AL",1,5,"UPS Rack 3kVA + BB 30min -  CGU-R/AL",373404,"Cj",1,373404,null,0,5,17,2658,null,"MÊS",12,0,0]
[6,"AL",1,10,"UPS Predial 10kVA + BB 10min - CGU-R/AL ",341534,"Cj",1,341534,null,0,5,17,2658,null,"MÊS",12,0,0]
[7,"AL",2,13,"Infraestrutura Elétrica - CGU-R/AL",1538,"Cj",1,1538,null,0,6,16,5606,null,"MÊS",12,0,0]
[8,"AL",3,14,"Treinamento (Operação e Supervisão Local) - CGU-R/AL",20052,"Un",1,20052,null,0,7,null,2658,null,null,null,0,0]
[9,"AM",1,8,"UPS Rack 5kVA + BB 30min - CGU-R/AM",331778,"Cj",1,331778,null,0,5,17,2658,null,"MÊS",12,0,0]
[10,"AM",1,9,"UPS Predial 8kVA + BB 10min - CGU-R/AM",425289,"Cj",1,425289,null,0,5,17,2658,null,"MÊS",12,0,0]
[11,"AM",2,13,"Infraestrutura Elétrica - CGU-R/AM",1538,"Cj",1,1538,null,0,6,16,5606,null,"MÊS",12,0,0]
[12,"AM",3,14,"Treinamento (Operação e Supervisão Local) - CGU-R/AM",20052,"Un",1,20052,null,0,7,null,2658,null,null,null,0,0]
[13,"AP",1,5,"UPS Rack 3kVA + BB 30min - CGU-R/AP",373404,"Cj",1,373404,null,0,5,17,2658,null,"MÊS",12,0,0]
[14,"AP",1,3,"UPS Predial 3kVA + BB 10min - CGU-R/AP",373404,"Cj",1,373404,null,0,5,17,2658,null,"MÊS",12,0,0]
[15,"AP",2,13,"Infraestrutura Elétrica - CGU-R/AP",1538,"Cj",1,1538,null,0,6,16,5606,null,"MÊS",12,0,0]
[16,"AP",3,14,"Treinamento (Operação e Supervisão Local) - CGU-R/AP",20052,"Un",1,20052,null,0,7,null,2658,null,null,null,0,0]
[17,"BA",1,8,"UPS Rack 5kVA + BB 30min - CGU-R/BA",331778,"Cj",1,331778,null,0,5,17,2658,null,"MÊS",12,0,0]
[18,"BA",1,2,"UPS Rack 2kVA + BB 30min - CGU-R/BA",301429,"Cj",1,301429,null,0,5,17,2658,null,"MÊS",12,0,0]
[19,"BA",1,11,"UPS Predial 15kVA + BB 10min - CGU-R/BA",423969,"Cj",1,423969,null,0,5,17,2658,null,"MÊS",12,0,0]
[20,"BA",2,13,"Infraestrutura Elétrica - CGU-R/BA",1538,"Cj",1,1538,null,0,6,16,5606,null,"MÊS",12,0,0]
[21,"BA",3,14,"Treinamento (Operação e Supervisão Local) - CGU-R/BA",20052,"Un",1,20052,null,0,7,null,2658,null,null,null,0,0]
[22,"CE",1,8,"UPS Rack 5kVA + BB 30min - CGU-R/CE",331778,"Cj",1,331778,null,0,5,17,2658,null,"MÊS",12,0,0]
[23,"CE",1,9,"UPS Predial 8kVA + BB 10min - CGU-R/CE",425289,"Cj",1,425289,null,0,5,17,2658,null,"MÊS",12,0,0]
[24,"CE",1,9,"UPS Predial 8kVA + BB 10min - CGU-R/CE",425289,"Cj",1,425289,null,0,5,17,2658,null,"MÊS",12,0,0]
[25,"CE",2,13,"Infraestrutura Elétrica - CGU-R/CE",1538,"Cj",1,1538,null,0,6,16,5606,null,"MÊS",12,0,0]
[26,"CE",3,14,"Treinamento (Operação e Supervisão Local) - CGU-R/CE",20052,"Un",1,20052,null,0,7,null,2658,null,null,null,0,0]
[27,"ES",1,7,"UPS Rack 5kVA + BB 15min - CGU-R/ES",331778,"Cj",1,331778,null,0,5,17,2658,null,"MÊS",12,0,0]
[28,"ES",1,10,"UPS Predial 10kVA + BB 10min - CGU-R/ES",341534,"Cj",1,341534,null,0,5,17,2658,null,"MÊS",12,0,0]
[29,"ES",2,13,"Infraestrutura Elétrica - CGU-R/ES",1538,"Cj",1,1538,null,0,6,16,5606,null,"MÊS",12,0,0]
[30,"ES",3,14,"Treinamento (Operação e Supervisão Local) - CGU-R/ES",20052,"Un",1,20052,null,0,7,null,2658,null,null,null,0,0]
[31,"MA",1,8,"UPS Rack 5kVA + BB 30min - CGU-R/MA",331778,"Cj",1,331778,null,0,5,17,2658,null,"MÊS",12,0,0]
[32,"MA",1,2,"UPS Rack 2kVA + BB 30min - CGU-R/MA",301429,"Cj",1,301429,null,0,5,17,2658,null,"MÊS",12,0,0]
[33,"MA",1,10,"UPS Predial 10kVA + BB 10min - CGU-R/MA",341534,"Cj",1,341534,null,0,5,17,2658,null,"MÊS",12,{"$f":"Q34*O34","v":0},{"$f":"SUM(K34,R34)","v":0}]
[34,"MA",2,13,"Infraestrutura Elétrica - CGU-R/MA",1538,"Cj",1,1538,null,0,6,16,5606,null,"MÊS",12,0,0]
[35,"MA",3,14,"Treinamento (Operação e Supervisão Local) - CGU-R/MA",20052,"Un",1,20052,null,0,7,null,2658,null,null,null,0,0]
[36,"MG",1,7,"UPS Rack 5kVA +  BB 15min - CGU-R/MG",331778,"Cj",1,331778,null,0,5,17,2658,null,"MÊS",12,0,0]
[37,"MG",1,1,"UPS Rack 2kVA +  BB 15min - CGU-R/MG",301429,"Cj",1,301429,null,0,5,17,2658,null,"MÊS",12,0,0]
[38,"MG",1,1,"UPS Rack 2kVA +  BB 15min - CGU-R/MG",301429,"Cj",1,301429,null,0,5,17,2658,null,"MÊS",12,0,0]
[39,"MG",1,1,"UPS Rack 2kVA +  BB 15min - CGU-R/MG",301429,"Cj",1,301429,null,0,5,17,2658,null,"MÊS",12,0,0]
[40,"MG",1,10,"UPS Predial 10kVA + BB 10min - CGU-R/MG",341534,"Cj",1,341534,null,0,5,17,2658,null,"MÊS",12,0,0]
[41,"MG",1,10,"UPS Predial 10kVA + BB 10min - CGU-R/MG",341534,"Cj",1,341534,null,0,5,17,2658,null,"MÊS",12,0,0]
[42,"MG",2,13,"Infraestrutura Elétrica - CGU-R/MG",1538,"Cj",1,1538,null,0,6,16,5606,null,"MÊS",12,0,0]
[43,"MG",3,14,"Treinamento (Operação e Supervisão Local) - CGU-R/MG",20052,"Un",1,20052,null,0,7,null,2658,null,null,null,0,0]
[44,"MT",1,4,"UPS Rack 3kVA +  BB 15min - CCGU-R/MT",373404,"Cj",1,373404,null,0,5,17,2658,null,"MÊS",12,0,0]
[45,"MT",1,6,"UPS Predial 5kVA + BB 10min - CGU-R/MT",331778,"Cj",1,331778,null,0,5,17,2658,null,"MÊS",12,0,0]
[46,"MT",2,13,"Infraestrutura Elétrica - CGU-R/MT",1538,"Cj",1,1538,null,0,6,16,5606,null,"MÊS",12,0,0]
[47,"MT",3,14,"Treinamento (Operação e Supervisão Local) - CGU-R/MT",20052,"Un",1,20052,null,0,7,null,2658,null,null,null,0,0]
[48,"PB",1,8,"UPS Rack 5kVA +  BB 30min - CCGU-R/PB",331778,"Cj",1,331778,null,0,5,17,2658,null,"MÊS",12,0,0]
[49,"PB",1,10,"UPS Predial 10kVA +  BB 10min - CCGU-R/PB",341534,"Cj",1,341534,null,0,5,17,2658,null,"MÊS",12,0,0]
[50,"PB",2,13,"Infraestrutura Elétrica - CGU-R/PB",1538,"Cj",1,1538,null,0,6,16,5606,null,"MÊS",12,0,0]
[51,"PB",3,14,"Treinamento (Operação e Supervisão Local) - CGU/R-PB",20052,"Un",1,20052,null,0,7,null,2658,null,null,null,0,0]
[52,"PE",1,8,"UPS Rack 5kVA +  BB 30min - CCGU-R/PE",331778,"Cj",1,331778,null,0,5,17,2658,null,"MÊS",12,0,0]
[53,"PE",1,11,"UPS Predial 15kVA + BB 10min - CGU-R/PE",423969,"Cj",1,423969,null,0,5,17,2658,null,"MÊS",12,0,0]
[54,"PE",2,13,"Infraestrutura Elétrica - CGU-R/PE",1538,"Cj",1,1538,null,0,6,16,5606,null,"MÊS",12,0,0]
[55,"PE",3,14,"Treinamento (Operação e Supervisão Local) - CGU-R/PE",20052,"Un",1,20052,null,0,7,null,2658,null,null,null,0,0]
[56,"PI",1,2,"UPS Rack 2kVA +  BB 30min - CGU-R/PI",301429,"Cj",1,301429,null,0,5,17,2658,null,"MÊS",12,0,0]
[57,"PI",1,5,"UPS Rack 3kVA +  BB 30min - CCGU-R/PI",373404,"Cj",1,373404,null,0,5,17,2658,null,"MÊS",12,0,0]
[58,"PI",1,9,"UPS Predial 8kVA +  BB 10min - CCGU-R/PI",425289,"Cj",1,425289,null,0,5,17,2658,null,"MÊS",12,0,0]
[59,"PI",2,13,"Infraestrutura Elétrica - CGU-R/PI",1538,"Cj",1,1538,null,0,6,16,5606,null,"MÊS",12,0,0]
[60,"PI",3,14,"Treinamento (Operação e Supervisão Local) - CGU-R/PI",20052,"Un",1,20052,null,0,7,null,2658,null,null,null,0,0]
[61,"PR",1,7,"UPS Rack 5kVA + BB 15 min - CGU-R/PR",331778,"Cj",1,331778,null,0,5,17,2658,null,"MÊS",12,0,0]
[62,"PR",1,10,"UPS Predial 10kVA + BB 10MIN - CGU-R/PR",341534,"Cj",1,341534,null,0,5,17,2658,null,"MÊS",12,0,0]
[63,"PR",1,12,"UPS Predial 20kVA + BB 10MIN - CGU-R/PR",351582,"Cj",1,351582,null,0,5,17,2658,null,"MÊS",12,0,0]
[64,"PR",2,13,"Infraestrutura Elétrica - CGU-R/PR",1538,"Cj",1,1538,null,0,6,16,5606,null,"MÊS",12,0,0]
[65,"PR",3,14,"Treinamento (Operação e Supervisão Local) - CGU-R/PR",20052,"Un",1,20052,null,0,7,null,2658,null,null,null,{"$f":"Q66*O66","v":0},{"$f":"SUM(K66,R66)","v":0}]
[66,"RJ",{"$f":"IF(OR(LEFT(E67,3)=\"ups\",LEFT(E67,3)=\"SUP\"),1,IF(LEFT(E67,3)=\"inf\",2,IF(LEFT(E67,3)=\"tre\",3,\"\")))","v":1},1,"UPS Rack 2kVA + BB 15min - CGU-R/RJ",301429,"Cj",1,301429,null,{"$f":"H67*J67","v":0},5,17,2658,null,"MÊS",12,0,0]
[67,"RJ",1,7,"UPS Rack 5kVA + BB 15min - CGU-R/RJ",331778,"Cj",1,331778,null,0,5,17,2658,null,"MÊS",12,0,0]
[68,"RJ",1,9,"UPS Predial 8kVA + BB 10min - CGU-R/RJ",425289,"Cj",1,425289,null,0,5,17,2658,null,"MÊS",12,0,0]
[69,"RJ",1,11,"UPS Predial 15kVA + BB 10min - CGU-R/RJ",423969,"Cj",1,423969,null,0,5,17,2658,null,"MÊS",12,0,0]
[70,"RJ",2,13,"Infraestrutura Elétrica - CGU-R/RJ",1538,"Cj",1,1538,null,0,6,16,5606,null,"MÊS",12,0,0]
[71,"RJ",3,14,"Treinamento (Operação e Supervisão Local) - CGU-R/PR",20052,"Un",1,20052,null,0,7,null,2658,null,null,null,0,0]
[72,"RN",1,2,"UPS Rack 2kVA + BB 30min - CGU-R/RN",301429,"Cj",1,301429,null,0,5,17,2658,null,"MÊS",12,0,0]
[73,"RN",1,2,"UPS Rack 2kVA + BB 30min - CGU-R/RN",301429,"Cj",1,301429,null,0,5,17,2658,null,"MÊS",12,0,0]
[74,"RN",1,8,"UPS Rack 5kVA + BB 30min - CGU-R/RN",331778,"Cj",1,331778,null,0,5,17,2658,null,"MÊS",12,0,0]
[75,"RN",1,10,"UPS Predial 10kVA + BB 10min - CGU-R/RN",341534,"Cj",1,341534,null,0,5,17,2658,null,"MÊS",12,0,0]
[76,"RN",2,13,"Infraestrutura Elétrica - CGU-R/RN",1538,"Cj",1,1538,null,0,6,16,5606,null,"MÊS",12,0,0]
[77,"RN",3,14,"Treinamento (Operação e Supervisão Local) - CGU-R/RN",20052,"Un",1,20052,null,0,7,null,2658,null,null,null,0,0]
[78,"RO",1,5,"UPS Rack 3kVA + BB 30min - CGU-R/RO",373404,"Cj",1,373404,null,0,5,17,2658,null,"MÊS",12,0,0]
[79,"RO",1,6,"UPS Predial 5kVA + BB 10min - CGU-R/RO",331778,"Cj",1,331778,null,0,5,17,2658,null,"MÊS",12,0,0]
[80,"RO",2,13,"Infraestrutura Elétrica  - CGU-R/RO",1538,"Cj",1,1538,null,0,6,16,5606,null,"MÊS",12,0,0]
[81,"RO",3,14,"Treinamento (Operação e Supervisão Local) - CGU-R/RO",20052,"Un",1,20052,null,0,7,null,2658,null,null,null,0,0]
[82,"RR",1,5,"UPS Rack 3kVA + BB 30min - CGU-R/RR",373404,"Cj",1,373404,null,0,5,17,2658,null,"MÊS",12,0,0]
[83,"RR",1,6,"UPS Predial 5kVA + BB 10min - CGU-R/RO",331778,"Cj",1,331778,null,0,5,17,2658,null,"MÊS",12,0,0]
[84,"RR",2,13,"Infraestrutura Elétrica - CGU-R/RR",1538,"Cj",1,1538,null,0,6,16,5606,null,"MÊS",12,0,0]
[85,"RR",3,14,"Treinamento (Operação e Supervisão Local) - CGU-R/RO",20052,"Un",1,20052,null,0,7,null,2658,null,null,null,0,0]
[86,"RS",1,7,"UPS Rack 5kVA + BB 15min - CGU-R/RS",331778,"Cj",1,331778,null,0,5,17,2658,null,"MÊS",12,0,0]
[87,"RS",1,10,"UPS Predial 10kVA + BB 10min - CGU-R/RS",341534,"Cj",1,341534,null,0,5,17,2658,null,"MÊS",12,0,0]
[88,"RS",2,13,"Infraestrutura Elétrica - CGU-R/RS",1538,"Cj",1,1538,null,0,6,16,5606,null,"MÊS",12,0,0]
[89,"RS",3,14,"Treinamento (Operação e Supervisão Local) - CGU-R/RS",20052,"Un",1,20052,null,0,7,null,2658,null,null,null,0,0]
[90,"SC",1,7,"UPS Rack 5kVA + BB 15min - CGU-R/SC",331778,"Cj",1,331778,null,0,5,17,2658,null,"MÊS",12,0,0]
[91,"SC",1,10,"UPS Predial 10kVA + BB 10min - CGU-R/SC",341534,"Cj",1,341534,null,0,5,17,2658,null,"MÊS",12,0,0]
[92,"SC",2,13,"Infraestrutura Elétrica - CGU-R/SC",1538,"Cj",1,1538,null,0,6,16,5606,null,"MÊS",12,0,0]
[93,"SC",3,14,"Treinamento (Operação e Supervisão Local) - CGU-R/SC",20052,"Un",1,20052,null,0,7,null,2658,null,null,null,0,0]
[94,"SE",1,8,"UPS Rack 5kVA + BB 30min - CGU-R/SE",331778,"Cj",1,331778,null,0,5,17,2658,null,"MÊS",12,0,0]
[95,"SE",1,10,"UPS Predial 10kVA + BB 10min - CGU-R/SE",341534,"Cj",1,341534,null,0,5,17,2658,null,"MÊS",12,0,0]
[96,"SE",2,13,"Infraestrutura Elétrica - CGU-R/SE",1538,"Cj",1,1538,null,0,6,16,5606,null,"MÊS",12,0,0]
[97,"SE",3,14,"Treinamento (Operação e Supervisão Local) - CGU-R/SE",20052,"Un",1,20052,null,0,7,null,2658,null,null,null,{"$f":"Q98*O98","v":0},{"$f":"SUM(K98,R98)","v":0}]
[98,"TO",1,1,"UPS Rack 2kVA + BB 15min - CGU-R/TO",301429,"Cj",1,301429,null,0,5,17,2658,null,"MÊS",12,0,0]
[99,"TO",1,4,"UPS Rack 3kVA+ BB 15min - CGU-R/TO",373404,"Cj",1,373404,null,0,5,17,2658,null,"MÊS",12,0,0]
[100,"TO",1,6,"UPS Predial 5kVA + BB 10 min - CGU-R/TO",331778,"Cj",1,331778,null,0,5,17,2658,null,"MÊS",12,0,0]
[101,"TO",2,13,"Infraestrutura Elétrica - CGU-R/TO",1538,"Cj",1,1538,null,0,6,16,5606,null,"MÊS",12,0,0]
[102,"TO",3,14,"Treinamento (Operação e Supervisão Local) - CGU-R/TO",20052,"Un",1,20052,null,0,7,null,null,null,null,null,0,0]
[103,"DF",4,15,"Supervisão remota/local (software/licenças) - CGU-SEDE/DF",26972,"Cj",1,27464,null,0,8,18,27260,null,"MÊS",12,0,0]
[104,"DF",3,14,"Treinamento (Operação e Supervisão Remota) - CGU-SEDE/DF",20052,"Un",1,20052,null,0,7,null,null,null,null,null,0,0]
[null,null,null,null,null,null,null,null,null,null,{"$f":"SUM(K2:K105)","v":0},null,null,null,null,null,null,{"$f":"SUM(R2:R105)","v":0},{"$f":"SUM(S2:S105)","v":0}]
[null,null,null,null,"XX/2020"]
[null,null,null,null,"\"DIGITE O Nº DO PREGÃO (XXXX/2020)\""]
[null,null,null,null,"XXXXXXX LTDA"]
[null,null,null,null,"\"DIGITE O NOME DA EMPRESA\""]
[]
[]
[null,null,null,null,null,null,null,null,null,"COLUNA A PREENCHER",null,null,null,null,"COLUNA A PREENCHER"]

{"sheet":"PREÇOS POR ITEM CONF LICITAÇÃO","index":5,"n_rows":26,"n_cols":10,"rows_kept":26,"cut":false,"hidden":false,"merged":[[25,3,25,8],[1,3,1,9],[15,3,15,8],[23,3,23,8]]}
[]
[null,null,null,{"$f":"_xlfn.CONCAT(\"PROPOSTA DE PREÇOS - PREGÃO N° \",'PREÇOS DETALHADOS A PREENCHER'!E107,\" - EMPRESA: \",'PREÇOS DETALHADOS A PREENCHER'!E109)","v":"PROPOSTA DE PREÇOS - PREGÃO N° XX/2020 - EMPRESA: XXXXXXX LTDA"}]
[null,null,null,"ITEM","UNIDADE DA CONTRATANTE","AQUISIÇÃO (com serviços: instalação e testes)","CATMAT","UNIDADE","QUANTIDADE","PREÇO PROPOSTO"]
[null,null,null,1,"DIVERSAS","UPS 2kVA com banco de baterias - 15 minutos",301429,"UN",5,{"$f":"HLOOKUP(D4,'PL AQUIS+SERV CGU-R E ITEM'!$J$3:$AA$27,25,0)","v":0}]
[null,null,null,2,"DIVERSAS","UPS 2kVA com banco de baterias - 30 minutos",301429,"UN",5,{"$f":"HLOOKUP(D5,'PL AQUIS+SERV CGU-R E ITEM'!$J$3:$AA$27,25,0)","v":0}]
[null,null,null,3,"DIVERSAS","UPS 3kVA com banco de baterias - 10 minutos",373404,"UN",1,{"$f":"HLOOKUP(D6,'PL AQUIS+SERV CGU-R E ITEM'!$J$3:$AA$27,25,0)","v":0}]
[null,null,null,4,"DIVERSAS","UPS 3kVA com banco de baterias - 15 minutos",373404,"UN",2,{"$f":"HLOOKUP(D7,'PL AQUIS+SERV CGU-R E ITEM'!$J$3:$AA$27,25,0)","v":0}]
[null,null,null,5,"DIVERSAS","UPS 3kVA com banco de baterias - 30 minutos",373404,"UN",6,{"$f":"HLOOKUP(D8,'PL AQUIS+SERV CGU-R E ITEM'!$J$3:$AA$27,25,0)","v":0}]
[null,null,null,6,"DIVERSAS","UPS 5kVA com banco de baterias - 10 minutos",331778,"UN",5,{"$f":"HLOOKUP(D9,'PL AQUIS+SERV CGU-R E ITEM'!$J$3:$AA$27,25,0)","v":0}]
[null,null,null,7,"DIVERSAS","UPS 5kVA com banco de baterias - 15 minutos",331778,"UN",6,{"$f":"HLOOKUP(D10,'PL AQUIS+SERV CGU-R E ITEM'!$J$3:$AA$27,25,0)","v":0}]
[null,null,null,8,"DIVERSAS","UPS 5kVA com banco de baterias - 30 minutos",331778,"UN",8,{"$f":"HLOOKUP(D11,'PL AQUIS+SERV CGU-R E ITEM'!$J$3:$AA$27,25,0)","v":0}]
[null,null,null,9,"DIVERSAS","UPS 8VA com banco de baterias - 10 minutos",425289,"UN",5,{"$f":"HLOOKUP(D12,'PL AQUIS+SERV CGU-R E ITEM'!$J$3:$AA$27,25,0)","v":0}]
[null,null,null,10,"DIVERSAS","UPS 10 kVA com banco de baterias - 10 minutos",341534,"UN",11,{"$f":"HLOOKUP(D13,'PL AQUIS+SERV CGU-R E ITEM'!$J$3:$AA$27,25,0)","v":0}]
[null,null,null,11,"DIVERSAS","UPS 15VA com banco de baterias - 10 minutos",423969,"UN",3,{"$f":"HLOOKUP(D14,'PL AQUIS+SERV CGU-R E ITEM'!$J$3:$AA$27,25,0)","v":0}]
[null,null,null,12,"DIVERSAS","UPS 20VA com banco de baterias - 10 minutos",351582,"UN",1,{"$f":"HLOOKUP(D15,'PL AQUIS+SERV CGU-R E ITEM'!$J$3:$AA$27,25,0)","v":0}]
[null,null,null,"SUBTOTAL AQUISIÇÃO",null,null,null,null,null,{"$f":"SUM(J4:J15)","v":0}]
[null,null,null,"ITEM",null,"SERVIÇOS (com fornecimento de materiais, equipamentos, Treinamento, software/licenças e testes)","CATSER","UNIDADE","QUANTIDADE","PREÇO PROPOSTO"]
[null,null,null,13,"DIVERSAS","Infraestrutura Elétrica - instalação com materiais nas CGU-R ",1538,"UN",22,{"$f":"HLOOKUP(D18,'PL AQUIS+SERV CGU-R E ITEM'!$J$3:$AA$27,25,0)","v":0}]
[null,null,null,14,"DIVERSAS","Treinamento - serviço",20052,"UN",23,{"$f":"HLOOKUP(D19,'PL AQUIS+SERV CGU-R E ITEM'!$J$3:$AA$27,25,0)","v":0}]
[null,null,null,15,"DIVERSAS","Supervisão Remota/Local - Seviço com fornecimento e instalação de software/licenças nas CGU-R e CGU-SEDE",27464,"UN",1,{"$f":"HLOOKUP(D20,'PL AQUIS+SERV CGU-R E ITEM'!$J$3:$AA$27,25,0)","v":0}]
[null,null,null,16,"DIVERSAS","Infraestrutura Elétrica - manutenção mensal durante 12 (doze) meses nas CGU-R",5606,"UN",12,{"$f":"HLOOKUP(D21,'PL AQUIS+SERV CGU-R E ITEM'!$J$3:$AA$27,25,0)","v":0}]
[null,null,null,17,"DIVERSAS","UPS - Manutenção mensal durante 12 (doze) meses nas CGU-R",2658,"UN",12,{"$f":"HLOOKUP(D22,'PL AQUIS+SERV CGU-R E ITEM'!$J$3:$AA$27,25,0)","v":0}]
[null,null,null,18,"CGU-SEDE","Supervisão Remota (software/licenças) - manutenção mensal durante 12 (doze) meses",27260,"UN",12,{"$f":"HLOOKUP(D23,'PL AQUIS+SERV CGU-R E ITEM'!$J$3:$AA$27,25,0)","v":0}]
[null,null,null,"SUBTOTAL SERVIÇOS",null,null,null,null,null,{"$f":"SUM(J18:J23)","v":0}]
[]
[null,null,null,"TOTAL GERAL (AQUISIÇÃO E SERVIÇOS) ",null,null,null,null,null,{"$f":"J16+J24","v":0}]

{"sheet":"PL AQUIS+SERV CGU-R E ITEM","index":6,"n_rows":33,"n_cols":27,"rows_kept":33,"cut":false,"hidden":false,"merged":[[1,1,1,6],[1,9,1,26]]}
[]
[null,"PLANILHA CONSOLIDADA DE REFERÊNCIA POR UNIDA DA CGU",null,null,null,null,null,null,null,{"$f":"_xlfn.CONCAT(\"PLANILHA SIMPLIFICADA DE REFERÊNCIA POR ITEM PARA LICITAÇÃO COM VIGÊNCIA DE 15 (QUINZE) MESES NO VALOR MÁXIMO ADMISSÍVEL DE  \", TEXT(SUM(J27:AA27),\"R$ #.#,00\"))","v":"PLANILHA SIMPLIFICADA DE REFERÊNCIA POR ITEM PARA LICITAÇÃO COM VIGÊNCIA DE 15 (QUINZE) MESES NO VALOR MÁXIMO ADMISSÍVEL DE  R$ ,00"}]
[null,"CGU-R","EQUIP + INFRA + SUPERV. REMOTA","MANUTENÇÃO (MÊS)","MESES","MANUTENÇÃO (TOTAL)","TOTAL (15 MESES)",null,null,1,2,3,4,5,6,7,8,9,10,11,12,13,14,15,16,17,18]
[null,"AC",{"$f":"SUMIFS('PREÇOS DETALHADOS A PREENCHER'!$J$2:$J$105,'PREÇOS DETALHADOS A PREENCHER'!$B$2:$B$105,'PL AQUIS+SERV CGU-R E ITEM'!$B4,'PREÇOS DETALHADOS A PREENCHER'!$C$2:$C$105,1)+SUMIFS('PREÇOS DETALHADOS A PREENCHER'!$J$2:$J$105,'PREÇOS DETALHADOS A PREENCHER'!$B$2:$B$105,'PL AQUIS+SERV CGU-R E ITEM'!$B4,'PREÇOS DETALHADOS A PREENCHER'!$C$2:$C$105,2)+SUMIFS('PREÇOS DETALHADOS A PREENCHER'!$J$2:$J$105,'PREÇOS DETALHADOS A PREENCHER'!$B$2:$B$105,'PL AQUIS+SERV CGU-R E ITEM'!$B4,'PREÇOS DETALHADOS A PREENCHER'!$C$2:$C$105,3)+SUMIFS('PREÇOS DETALHADOS A PREENCHER'!$J$2:$J$105,'PREÇOS DETALHADOS A PREENCHER'!$B$2:$B$105,'PL AQUIS+SERV CGU-R E ITEM'!$B4,'PREÇOS DETALHADOS A PREENCHER'!$C$2:$C$105,4)","v":0},{"$f":"SUMIFS('PREÇOS DETALHADOS A PREENCHER'!$O$2:$O$105,'PREÇOS DETALHADOS A PREENCHER'!$B$2:$B$105,Tabela2[[#This Row],[CGU-R]],'PREÇOS DETALHADOS A PREENCHER'!$L$2:$L$105,5)+SUMIFS('PREÇOS DETALHADOS A PREENCHER'!$O$2:$O$105,'PREÇOS DETALHADOS A PREENCHER'!$B$2:$B$105,Tabela2[[#This Row],[CGU-R]],'PREÇOS DETALHADOS A PREENCHER'!$L$2:$L$105,6)+SUMIFS('PREÇOS DETALHADOS A PREENCHER'!$O$2:$O$105,'PREÇOS DETALHADOS A PREENCHER'!$B$2:$B$105,Tabela2[[#This Row],[CGU-R]],'PREÇOS DETALHADOS A PREENCHER'!$L$2:$L$105,7)+SUMIFS('PREÇOS DETALHADOS A PREENCHER'!$O$2:$O$105,'PREÇOS DETALHADOS A PREENCHER'!$B$2:$B$105,Tabela2[[#This Row],[CGU-R]],'PREÇOS DETALHADOS A PREENCHER'!$L$2:$L$105,8)","v":0},12,{"$f":"Tabela2[[#This Row],[MANUTENÇÃO (MÊS)]]*E4","v":0},{"$f":"Tabela2[[#This Row],[EQUIP + INFRA + SUPERV. REMOTA]]+Tabela2[[#This Row],[MANUTENÇÃO (TOTAL)]]","v":0},null,null,{"$f":"SUMIFS('PREÇOS DETALHADOS A PREENCHER'!$K$2:$K$105,'PREÇOS DETALHADOS A PREENCHER'!$B$2:$B$105,'PL AQUIS+SERV CGU-R E ITEM'!$B4,'PREÇOS DETALHADOS A PREENCHER'!$D$2:$D$105,J$3)","v":0},{"$f":"SUMIFS('PREÇOS DETALHADOS A PREENCHER'!$K$2:$K$105,'PREÇOS DETALHADOS A PREENCHER'!$B$2:$B$105,'PL AQUIS+SERV CGU-R E ITEM'!$B4,'PREÇOS DETALHADOS A PREENCHER'!$D$2:$D$105,K$3)","v":0},{"$f":"SUMIFS('PREÇOS DETALHADOS A PREENCHER'!$K$2:$K$105,'PREÇOS DETALHADOS A PREENCHER'!$B$2:$B$105,'PL AQUIS+SERV CGU-R E ITEM'!$B4,'PREÇOS DETALHADOS A PREENCHER'!$D$2:$D$105,L$3)","v":0},{"$f":"SUMIFS('PREÇOS DETALHADOS A PREENCHER'!$K$2:$K$105,'PREÇOS DETALHADOS A PREENCHER'!$B$2:$B$105,'PL AQUIS+SERV CGU-R E ITEM'!$B4,'PREÇOS DETALHADOS A PREENCHER'!$D$2:$D$105,M$3)","v":0},{"$f":"SUMIFS('PREÇOS DETALHADOS A PREENCHER'!$K$2:$K$105,'PREÇOS DETALHADOS A PREENCHER'!$B$2:$B$105,'PL AQUIS+SERV CGU-R E ITEM'!$B4,'PREÇOS DETALHADOS A PREENCHER'!$D$2:$D$105,N$3)","v":0},{"$f":"SUMIFS('PREÇOS DETALHADOS A PREENCHER'!$K$2:$K$105,'PREÇOS DETALHADOS A PREENCHER'!$B$2:$B$105,'PL AQUIS+SERV CGU-R E ITEM'!$B4,'PREÇOS DETALHADOS A PREENCHER'!$D$2:$D$105,O$3)","v":0},{"$f":"SUMIFS('PREÇOS DETALHADOS A PREENCHER'!$K$2:$K$105,'PREÇOS DETALHADOS A PREENCHER'!$B$2:$B$105,'PL AQUIS+SERV CGU-R E ITEM'!$B4,'PREÇOS DETALHADOS A PREENCHER'!$D$2:$D$105,P$3)","v":0},{"$f":"SUMIFS('PREÇOS DETALHADOS A PREENCHER'!$K$2:$K$105,'PREÇOS DETALHADOS A PREENCHER'!$B$2:$B$105,'PL AQUIS+SERV CGU-R E ITEM'!$B4,'PREÇOS DETALHADOS A PREENCHER'!$D$2:$D$105,Q$3)","v":0},{"$f":"SUMIFS('PREÇOS DETALHADOS A PREENCHER'!$K$2:$K$105,'PREÇOS DETALHADOS A PREENCHER'!$B$2:$B$105,'PL AQUIS+SERV CGU-R E ITEM'!$B4,'PREÇOS DETALHADOS A PREENCHER'!$D$2:$D$105,R$3)","v":0},{"$f":"SUMIFS('PREÇOS DETALHADOS A PREENCHER'!$K$2:$K$105,'PREÇOS DETALHADOS A PREENCHER'!$B$2:$B$105,'PL AQUIS+SERV CGU-R E ITEM'!$B4,'PREÇOS DETALHADOS A PREENCHER'!$D$2:$D$105,S$3)","v":0},{"$f":"SUMIFS('PREÇOS DETALHADOS A PREENCHER'!$K$2:$K$105,'PREÇOS DETALHADOS A PREENCHER'!$B$2:$B$105,'PL AQUIS+SERV CGU-R E ITEM'!$B4,'PREÇOS DETALHADOS A PREENCHER'!$D$2:$D$105,T$3)","v":0},{"$f":"SUMIFS('PREÇOS DETALHADOS A PREENCHER'!$K$2:$K$105,'PREÇOS DETALHADOS A PREENCHER'!$B$2:$B$105,'PL AQUIS+SERV CGU-R E ITEM'!$B4,'PREÇOS DETALHADOS A PREENCHER'!$D$2:$D$105,U$3)","v":0},{"$f":"SUMIFS('PREÇOS DETALHADOS A PREENCHER'!$K$2:$K$105,'PREÇOS DETALHADOS A PREENCHER'!$B$2:$B$105,'PL AQUIS+SERV CGU-R E ITEM'!$B4,'PREÇOS DETALHADOS A PREENCHER'!$D$2:$D$105,V$3)","v":0},{"$f":"SUMIFS('PREÇOS DETALHADOS A PREENCHER'!$K$2:$K$105,'PREÇOS DETALHADOS A PREENCHER'!$B$2:$B$105,'PL AQUIS+SERV CGU-R E ITEM'!$B4,'PREÇOS DETALHADOS A PREENCHER'!$D$2:$D$105,W$3)","v":0},{"$f":"SUMIFS('PREÇOS DETALHADOS A PREENCHER'!$K$2:$K$105,'PREÇOS DETALHADOS A PREENCHER'!$B$2:$B$105,'PL AQUIS+SERV CGU-R E ITEM'!$B4,'PREÇOS DETALHADOS A PREENCHER'!$D$2:$D$105,X$3)","v":0},{"$f":"SUMIFS('PREÇOS DETALHADOS A PREENCHER'!$R$2:$R$105,'PREÇOS DETALHADOS A PREENCHER'!$B$2:$B$105,'PL AQUIS+SERV CGU-R E ITEM'!$B4,'PREÇOS DETALHADOS A PREENCHER'!$M$2:$M$105,Y$3)","v":0},{"$f":"SUMIFS('PREÇOS DETALHADOS A PREENCHER'!$R$2:$R$105,'PREÇOS DETALHADOS A PREENCHER'!$B$2:$B$105,'PL AQUIS+SERV CGU-R E ITEM'!$B4,'PREÇOS DETALHADOS A PREENCHER'!$M$2:$M$105,Z$3)","v":0},{"$f":"SUMIFS('PREÇOS DETALHADOS A PREENCHER'!$R$2:$R$105,'PREÇOS DETALHADOS A PREENCHER'!$B$2:$B$105,'PL AQUIS+SERV CGU-R E ITEM'!$B4,'PREÇOS DETALHADOS A PREENCHER'!$M$2:$M$105,AA$3)","v":0}]
[null,"AL",{"$f":"SUMIFS('PREÇOS DETALHADOS A PREENCHER'!$J$2:$J$105,'PREÇOS DETALHADOS A PREENCHER'!$B$2:$B$105,'PL AQUIS+SERV CGU-R E ITEM'!$B5,'PREÇOS DETALHADOS A PREENCHER'!$C$2:$C$105,1)+SUMIFS('PREÇOS DETALHADOS A PREENCHER'!$J$2:$J$105,'PREÇOS DETALHADOS A PREENCHER'!$B$2:$B$105,'PL AQUIS+SERV CGU-R E ITEM'!$B5,'PREÇOS DETALHADOS A PREENCHER'!$C$2:$C$105,2)+SUMIFS('PREÇOS DETALHADOS A PREENCHER'!$J$2:$J$105,'PREÇOS DETALHADOS A PREENCHER'!$B$2:$B$105,'PL AQUIS+SERV CGU-R E ITEM'!$B5,'PREÇOS DETALHADOS A PREENCHER'!$C$2:$C$105,3)+SUMIFS('PREÇOS DETALHADOS A PREENCHER'!$J$2:$J$105,'PREÇOS DETALHADOS A PREENCHER'!$B$2:$B$105,'PL AQUIS+SERV CGU-R E ITEM'!$B5,'PREÇOS DETALHADOS A PREENCHER'!$C$2:$C$105,4)","v":0},{"$f":"SUMIFS('PREÇOS DETALHADOS A PREENCHER'!$O$2:$O$105,'PREÇOS DETALHADOS A PREENCHER'!$B$2:$B$105,Tabela2[[#This Row],[CGU-R]],'PREÇOS DETALHADOS A PREENCHER'!$L$2:$L$105,5)+SUMIFS('PREÇOS DETALHADOS A PREENCHER'!$O$2:$O$105,'PREÇOS DETALHADOS A PREENCHER'!$B$2:$B$105,Tabela2[[#This Row],[CGU-R]],'PREÇOS DETALHADOS A PREENCHER'!$L$2:$L$105,6)+SUMIFS('PREÇOS DETALHADOS A PREENCHER'!$O$2:$O$105,'PREÇOS DETALHADOS A PREENCHER'!$B$2:$B$105,Tabela2[[#This Row],[CGU-R]],'PREÇOS DETALHADOS A PREENCHER'!$L$2:$L$105,7)+SUMIFS('PREÇOS DETALHADOS A PREENCHER'!$O$2:$O$105,'PREÇOS DETALHADOS A PREENCHER'!$B$2:$B$105,Tabela2[[#This Row],[CGU-R]],'PREÇOS DETALHADOS A PREENCHER'!$L$2:$L$105,8)","v":0},12,{"$f":"Tabela2[[#This Row],[MANUTENÇÃO (MÊS)]]*E5","v":0},{"$f":"Tabela2[[#This Row],[EQUIP + INFRA + SUPERV. REMOTA]]+Tabela2[[#This Row],[MANUTENÇÃO (TOTAL)]]","v":0},null,null,{"$f":"SUMIFS('PREÇOS DETALHADOS A PREENCHER'!$K$2:$K$105,'PREÇOS DETALHADOS A PREENCHER'!$B$2:$B$105,'PL AQUIS+SERV CGU-R E ITEM'!$B5,'PREÇOS DETALHADOS A PREENCHER'!$D$2:$D$105,J$3)","v":0},{"$f":"SUMIFS('PREÇOS DETALHADOS A PREENCHER'!$K$2:$K$105,'PREÇOS DETALHADOS A PREENCHER'!$B$2:$B$105,'PL AQUIS+SERV CGU-R E ITEM'!$B5,'PREÇOS DETALHADOS A PREENCHER'!$D$2:$D$105,K$3)","v":0},{"$f":"SUMIFS('PREÇOS DETALHADOS A PREENCHER'!$K$2:$K$105,'PREÇOS DETALHADOS A PREENCHER'!$B$2:$B$105,'PL AQUIS+SERV CGU-R E ITEM'!$B5,'PREÇOS DETALHADOS A PREENCHER'!$D$2:$D$105,L$3)","v":0},{"$f":"SUMIFS('PREÇOS DETALHADOS A PREENCHER'!$K$2:$K$105,'PREÇOS DETALHADOS A PREENCHER'!$B$2:$B$105,'PL AQUIS+SERV CGU-R E ITEM'!$B5,'PREÇOS DETALHADOS A PREENCHER'!$D$2:$D$105,M$3)","v":0},{"$f":"SUMIFS('PREÇOS DETALHADOS A PREENCHER'!$K$2:$K$105,'PREÇOS DETALHADOS A PREENCHER'!$B$2:$B$105,'PL AQUIS+SERV CGU-R E ITEM'!$B5,'PREÇOS DETALHADOS A PREENCHER'!$D$2:$D$105,N$3)","v":0},{"$f":"SUMIFS('PREÇOS DETALHADOS A PREENCHER'!$K$2:$K$105,'PREÇOS DETALHADOS A PREENCHER'!$B$2:$B$105,'PL AQUIS+SERV CGU-R E ITEM'!$B5,'PREÇOS DETALHADOS A PREENCHER'!$D$2:$D$105,O$3)","v":0},{"$f":"SUMIFS('PREÇOS DETALHADOS A PREENCHER'!$K$2:$K$105,'PREÇOS DETALHADOS A PREENCHER'!$B$2:$B$105,'PL AQUIS+SERV CGU-R E ITEM'!$B5,'PREÇOS DETALHADOS A PREENCHER'!$D$2:$D$105,P$3)","v":0},{"$f":"SUMIFS('PREÇOS DETALHADOS A PREENCHER'!$K$2:$K$105,'PREÇOS DETALHADOS A PREENCHER'!$B$2:$B$105,'PL AQUIS+SERV CGU-R E ITEM'!$B5,'PREÇOS DETALHADOS A PREENCHER'!$D$2:$D$105,Q$3)","v":0},{"$f":"SUMIFS('PREÇOS DETALHADOS A PREENCHER'!$K$2:$K$105,'PREÇOS DETALHADOS A PREENCHER'!$B$2:$B$105,'PL AQUIS+SERV CGU-R E ITEM'!$B5,'PREÇOS DETALHADOS A PREENCHER'!$D$2:$D$105,R$3)","v":0},{"$f":"SUMIFS('PREÇOS DETALHADOS A PREENCHER'!$K$2:$K$105,'PREÇOS DETALHADOS A PREENCHER'!$B$2:$B$105,'PL AQUIS+SERV CGU-R E ITEM'!$B5,'PREÇOS DETALHADOS A PREENCHER'!$D$2:$D$105,S$3)","v":0},{"$f":"SUMIFS('PREÇOS DETALHADOS A PREENCHER'!$K$2:$K$105,'PREÇOS DETALHADOS A PREENCHER'!$B$2:$B$105,'PL AQUIS+SERV CGU-R E ITEM'!$B5,'PREÇOS DETALHADOS A PREENCHER'!$D$2:$D$105,T$3)","v":0},{"$f":"SUMIFS('PREÇOS DETALHADOS A PREENCHER'!$K$2:$K$105,'PREÇOS DETALHADOS A PREENCHER'!$B$2:$B$105,'PL AQUIS+SERV CGU-R E ITEM'!$B5,'PREÇOS DETALHADOS A PREENCHER'!$D$2:$D$105,U$3)","v":0},{"$f":"SUMIFS('PREÇOS DETALHADOS A PREENCHER'!$K$2:$K$105,'PREÇOS DETALHADOS A PREENCHER'!$B$2:$B$105,'PL AQUIS+SERV CGU-R E ITEM'!$B5,'PREÇOS DETALHADOS A PREENCHER'!$D$2:$D$105,V$3)","v":0},{"$f":"SUMIFS('PREÇOS DETALHADOS A PREENCHER'!$K$2:$K$105,'PREÇOS DETALHADOS A PREENCHER'!$B$2:$B$105,'PL AQUIS+SERV CGU-R E ITEM'!$B5,'PREÇOS DETALHADOS A PREENCHER'!$D$2:$D$105,W$3)","v":0},{"$f":"SUMIFS('PREÇOS DETALHADOS A PREENCHER'!$K$2:$K$105,'PREÇOS DETALHADOS A PREENCHER'!$B$2:$B$105,'PL AQUIS+SERV CGU-R E ITEM'!$B5,'PREÇOS DETALHADOS A PREENCHER'!$D$2:$D$105,X$3)","v":0},{"$f":"SUMIFS('PREÇOS DETALHADOS A PREENCHER'!$R$2:$R$105,'PREÇOS DETALHADOS A PREENCHER'!$B$2:$B$105,'PL AQUIS+SERV CGU-R E ITEM'!$B5,'PREÇOS DETALHADOS A PREENCHER'!$M$2:$M$105,Y$3)","v":0},{"$f":"SUMIFS('PREÇOS DETALHADOS A PREENCHER'!$R$2:$R$105,'PREÇOS DETALHADOS A PREENCHER'!$B$2:$B$105,'PL AQUIS+SERV CGU-R E ITEM'!$B5,'PREÇOS DETALHADOS A PREENCHER'!$M$2:$M$105,Z$3)","v":0},{"$f":"SUMIFS('PREÇOS DETALHADOS A PREENCHER'!$R$2:$R$105,'PREÇOS DETALHADOS A PREENCHER'!$B$2:$B$105,'PL AQUIS+SERV CGU-R E ITEM'!$B5,'PREÇOS DETALHADOS A PREENCHER'!$M$2:$M$105,AA$3)","v":0}]
[null,"AM",{"$f":"SUMIFS('PREÇOS DETALHADOS A PREENCHER'!$J$2:$J$105,'PREÇOS DETALHADOS A PREENCHER'!$B$2:$B$105,'PL AQUIS+SERV CGU-R E ITEM'!$B6,'PREÇOS DETALHADOS A PREENCHER'!$C$2:$C$105,1)+SUMIFS('PREÇOS DETALHADOS A PREENCHER'!$J$2:$J$105,'PREÇOS DETALHADOS A PREENCHER'!$B$2:$B$105,'PL AQUIS+SERV CGU-R E ITEM'!$B6,'PREÇOS DETALHADOS A PREENCHER'!$C$2:$C$105,2)+SUMIFS('PREÇOS DETALHADOS A PREENCHER'!$J$2:$J$105,'PREÇOS DETALHADOS A PREENCHER'!$B$2:$B$105,'PL AQUIS+SERV CGU-R E ITEM'!$B6,'PREÇOS DETALHADOS A PREENCHER'!$C$2:$C$105,3)+SUMIFS('PREÇOS DETALHADOS A PREENCHER'!$J$2:$J$105,'PREÇOS DETALHADOS A PREENCHER'!$B$2:$B$105,'PL AQUIS+SERV CGU-R E ITEM'!$B6,'PREÇOS DETALHADOS A PREENCHER'!$C$2:$C$105,4)","v":0},{"$f":"SUMIFS('PREÇOS DETALHADOS A PREENCHER'!$O$2:$O$105,'PREÇOS DETALHADOS A PREENCHER'!$B$2:$B$105,Tabela2[[#This Row],[CGU-R]],'PREÇOS DETALHADOS A PREENCHER'!$L$2:$L$105,5)+SUMIFS('PREÇOS DETALHADOS A PREENCHER'!$O$2:$O$105,'PREÇOS DETALHADOS A PREENCHER'!$B$2:$B$105,Tabela2[[#This Row],[CGU-R]],'PREÇOS DETALHADOS A PREENCHER'!$L$2:$L$105,6)+SUMIFS('PREÇOS DETALHADOS A PREENCHER'!$O$2:$O$105,'PREÇOS DETALHADOS A PREENCHER'!$B$2:$B$105,Tabela2[[#This Row],[CGU-R]],'PREÇOS DETALHADOS A PREENCHER'!$L$2:$L$105,7)+SUMIFS('PREÇOS DETALHADOS A PREENCHER'!$O$2:$O$105,'PREÇOS DETALHADOS A PREENCHER'!$B$2:$B$105,Tabela2[[#This Row],[CGU-R]],'PREÇOS DETALHADOS A PREENCHER'!$L$2:$L$105,8)","v":0},12,{"$f":"Tabela2[[#This Row],[MANUTENÇÃO (MÊS)]]*E6","v":0},{"$f":"Tabela2[[#This Row],[EQUIP + INFRA + SUPERV. REMOTA]]+Tabela2[[#This Row],[MANUTENÇÃO (TOTAL)]]","v":0},null,null,{"$f":"SUMIFS('PREÇOS DETALHADOS A PREENCHER'!$K$2:$K$105,'PREÇOS DETALHADOS A PREENCHER'!$B$2:$B$105,'PL AQUIS+SERV CGU-R E ITEM'!$B6,'PREÇOS DETALHADOS A PREENCHER'!$D$2:$D$105,J$3)","v":0},{"$f":"SUMIFS('PREÇOS DETALHADOS A PREENCHER'!$K$2:$K$105,'PREÇOS DETALHADOS A PREENCHER'!$B$2:$B$105,'PL AQUIS+SERV CGU-R E ITEM'!$B6,'PREÇOS DETALHADOS A PREENCHER'!$D$2:$D$105,K$3)","v":0},{"$f":"SUMIFS('PREÇOS DETALHADOS A PREENCHER'!$K$2:$K$105,'PREÇOS DETALHADOS A PREENCHER'!$B$2:$B$105,'PL AQUIS+SERV CGU-R E ITEM'!$B6,'PREÇOS DETALHADOS A PREENCHER'!$D$2:$D$105,L$3)","v":0},{"$f":"SUMIFS('PREÇOS DETALHADOS A PREENCHER'!$K$2:$K$105,'PREÇOS DETALHADOS A PREENCHER'!$B$2:$B$105,'PL AQUIS+SERV CGU-R E ITEM'!$B6,'PREÇOS DETALHADOS A PREENCHER'!$D$2:$D$105,M$3)","v":0},{"$f":"SUMIFS('PREÇOS DETALHADOS A PREENCHER'!$K$2:$K$105,'PREÇOS DETALHADOS A PREENCHER'!$B$2:$B$105,'PL AQUIS+SERV CGU-R E ITEM'!$B6,'PREÇOS DETALHADOS A PREENCHER'!$D$2:$D$105,N$3)","v":0},{"$f":"SUMIFS('PREÇOS DETALHADOS A PREENCHER'!$K$2:$K$105,'PREÇOS DETALHADOS A PREENCHER'!$B$2:$B$105,'PL AQUIS+SERV CGU-R E ITEM'!$B6,'PREÇOS DETALHADOS A PREENCHER'!$D$2:$D$105,O$3)","v":0},{"$f":"SUMIFS('PREÇOS DETALHADOS A PREENCHER'!$K$2:$K$105,'PREÇOS DETALHADOS A PREENCHER'!$B$2:$B$105,'PL AQUIS+SERV CGU-R E ITEM'!$B6,'PREÇOS DETALHADOS A PREENCHER'!$D$2:$D$105,P$3)","v":0},{"$f":"SUMIFS('PREÇOS DETALHADOS A PREENCHER'!$K$2:$K$105,'PREÇOS DETALHADOS A PREENCHER'!$B$2:$B$105,'PL AQUIS+SERV CGU-R E ITEM'!$B6,'PREÇOS DETALHADOS A PREENCHER'!$D$2:$D$105,Q$3)","v":0},{"$f":"SUMIFS('PREÇOS DETALHADOS A PREENCHER'!$K$2:$K$105,'PREÇOS DETALHADOS A PREENCHER'!$B$2:$B$105,'PL AQUIS+SERV CGU-R E ITEM'!$B6,'PREÇOS DETALHADOS A PREENCHER'!$D$2:$D$105,R$3)","v":0},{"$f":"SUMIFS('PREÇOS DETALHADOS A PREENCHER'!$K$2:$K$105,'PREÇOS DETALHADOS A PREENCHER'!$B$2:$B$105,'PL AQUIS+SERV CGU-R E ITEM'!$B6,'PREÇOS DETALHADOS A PREENCHER'!$D$2:$D$105,S$3)","v":0},{"$f":"SUMIFS('PREÇOS DETALHADOS A PREENCHER'!$K$2:$K$105,'PREÇOS DETALHADOS A PREENCHER'!$B$2:$B$105,'PL AQUIS+SERV CGU-R E ITEM'!$B6,'PREÇOS DETALHADOS A PREENCHER'!$D$2:$D$105,T$3)","v":0},{"$f":"SUMIFS('PREÇOS DETALHADOS A PREENCHER'!$K$2:$K$105,'PREÇOS DETALHADOS A PREENCHER'!$B$2:$B$105,'PL AQUIS+SERV CGU-R E ITEM'!$B6,'PREÇOS DETALHADOS A PREENCHER'!$D$2:$D$105,U$3)","v":0},{"$f":"SUMIFS('PREÇOS DETALHADOS A PREENCHER'!$K$2:$K$105,'PREÇOS DETALHADOS A PREENCHER'!$B$2:$B$105,'PL AQUIS+SERV CGU-R E ITEM'!$B6,'PREÇOS DETALHADOS A PREENCHER'!$D$2:$D$105,V$3)","v":0},{"$f":"SUMIFS('PREÇOS DETALHADOS A PREENCHER'!$K$2:$K$105,'PREÇOS DETALHADOS A PREENCHER'!$B$2:$B$105,'PL AQUIS+SERV CGU-R E ITEM'!$B6,'PREÇOS DETALHADOS A PREENCHER'!$D$2:$D$105,W$3)","v":0},{"$f":"SUMIFS('PREÇOS DETALHADOS A PREENCHER'!$K$2:$K$105,'PREÇOS DETALHADOS A PREENCHER'!$B$2:$B$105,'PL AQUIS+SERV CGU-R E ITEM'!$B6,'PREÇOS DETALHADOS A PREENCHER'!$D$2:$D$105,X$3)","v":0},{"$f":"SUMIFS('PREÇOS DETALHADOS A PREENCHER'!$R$2:$R$105,'PREÇOS DETALHADOS A PREENCHER'!$B$2:$B$105,'PL AQUIS+SERV CGU-R E ITEM'!$B6,'PREÇOS DETALHADOS A PREENCHER'!$M$2:$M$105,Y$3)","v":0},{"$f":"SUMIFS('PREÇOS DETALHADOS A PREENCHER'!$R$2:$R$105,'PREÇOS DETALHADOS A PREENCHER'!$B$2:$B$105,'PL AQUIS+SERV CGU-R E ITEM'!$B6,'PREÇOS DETALHADOS A PREENCHER'!$M$2:$M$105,Z$3)","v":0},{"$f":"SUMIFS('PREÇOS DETALHADOS A PREENCHER'!$R$2:$R$105,'PREÇOS DETALHADOS A PREENCHER'!$B$2:$B$105,'PL AQUIS+SERV CGU-R E ITEM'!$B6,'PREÇOS DETALHADOS A PREENCHER'!$M$2:$M$105,AA$3)","v":0}]
[null,"AP",{"$f":"SUMIFS('PREÇOS DETALHADOS A PREENCHER'!$J$2:$J$105,'PREÇOS DETALHADOS A PREENCHER'!$B$2:$B$105,'PL AQUIS+SERV CGU-R E ITEM'!$B7,'PREÇOS DETALHADOS A PREENCHER'!$C$2:$C$105,1)+SUMIFS('PREÇOS DETALHADOS A PREENCHER'!$J$2:$J$105,'PREÇOS DETALHADOS A PREENCHER'!$B$2:$B$105,'PL AQUIS+SERV CGU-R E ITEM'!$B7,'PREÇOS DETALHADOS A PREENCHER'!$C$2:$C$105,2)+SUMIFS('PREÇOS DETALHADOS A PREENCHER'!$J$2:$J$105,'PREÇOS DETALHADOS A PREENCHER'!$B$2:$B$105,'PL AQUIS+SERV CGU-R E ITEM'!$B7,'PREÇOS DETALHADOS A PREENCHER'!$C$2:$C$105,3)+SUMIFS('PREÇOS DETALHADOS A PREENCHER'!$J$2:$J$105,'PREÇOS DETALHADOS A PREENCHER'!$B$2:$B$105,'PL AQUIS+SERV CGU-R E ITEM'!$B7,'PREÇOS DETALHADOS A PREENCHER'!$C$2:$C$105,4)","v":0},{"$f":"SUMIFS('PREÇOS DETALHADOS A PREENCHER'!$O$2:$O$105,'PREÇOS DETALHADOS A PREENCHER'!$B$2:$B$105,Tabela2[[#This Row],[CGU-R]],'PREÇOS DETALHADOS A PREENCHER'!$L$2:$L$105,5)+SUMIFS('PREÇOS DETALHADOS A PREENCHER'!$O$2:$O$105,'PREÇOS DETALHADOS A PREENCHER'!$B$2:$B$105,Tabela2[[#This Row],[CGU-R]],'PREÇOS DETALHADOS A PREENCHER'!$L$2:$L$105,6)+SUMIFS('PREÇOS DETALHADOS A PREENCHER'!$O$2:$O$105,'PREÇOS DETALHADOS A PREENCHER'!$B$2:$B$105,Tabela2[[#This Row],[CGU-R]],'PREÇOS DETALHADOS A PREENCHER'!$L$2:$L$105,7)+SUMIFS('PREÇOS DETALHADOS A PREENCHER'!$O$2:$O$105,'PREÇOS DETALHADOS A PREENCHER'!$B$2:$B$105,Tabela2[[#This Row],[CGU-R]],'PREÇOS DETALHADOS A PREENCHER'!$L$2:$L$105,8)","v":0},12,{"$f":"Tabela2[[#This Row],[MANUTENÇÃO (MÊS)]]*E7","v":0},{"$f":"Tabela2[[#This Row],[EQUIP + INFRA + SUPERV. REMOTA]]+Tabela2[[#This Row],[MANUTENÇÃO (TOTAL)]]","v":0},null,null,{"$f":"SUMIFS('PREÇOS DETALHADOS A PREENCHER'!$K$2:$K$105,'PREÇOS DETALHADOS A PREENCHER'!$B$2:$B$105,'PL AQUIS+SERV CGU-R E ITEM'!$B7,'PREÇOS DETALHADOS A PREENCHER'!$D$2:$D$105,J$3)","v":0},{"$f":"SUMIFS('PREÇOS DETALHADOS A PREENCHER'!$K$2:$K$105,'PREÇOS DETALHADOS A PREENCHER'!$B$2:$B$105,'PL AQUIS+SERV CGU-R E ITEM'!$B7,'PREÇOS DETALHADOS A PREENCHER'!$D$2:$D$105,K$3)","v":0},{"$f":"SUMIFS('PREÇOS DETALHADOS A PREENCHER'!$K$2:$K$105,'PREÇOS DETALHADOS A PREENCHER'!$B$2:$B$105,'PL AQUIS+SERV CGU-R E ITEM'!$B7,'PREÇOS DETALHADOS A PREENCHER'!$D$2:$D$105,L$3)","v":0},{"$f":"SUMIFS('PREÇOS DETALHADOS A PREENCHER'!$K$2:$K$105,'PREÇOS DETALHADOS A PREENCHER'!$B$2:$B$105,'PL AQUIS+SERV CGU-R E ITEM'!$B7,'PREÇOS DETALHADOS A PREENCHER'!$D$2:$D$105,M$3)","v":0},{"$f":"SUMIFS('PREÇOS DETALHADOS A PREENCHER'!$K$2:$K$105,'PREÇOS DETALHADOS A PREENCHER'!$B$2:$B$105,'PL AQUIS+SERV CGU-R E ITEM'!$B7,'PREÇOS DETALHADOS A PREENCHER'!$D$2:$D$105,N$3)","v":0},{"$f":"SUMIFS('PREÇOS DETALHADOS A PREENCHER'!$K$2:$K$105,'PREÇOS DETALHADOS A PREENCHER'!$B$2:$B$105,'PL AQUIS+SERV CGU-R E ITEM'!$B7,'PREÇOS DETALHADOS A PREENCHER'!$D$2:$D$105,O$3)","v":0},{"$f":"SUMIFS('PREÇOS DETALHADOS A PREENCHER'!$K$2:$K$105,'PREÇOS DETALHADOS A PREENCHER'!$B$2:$B$105,'PL AQUIS+SERV CGU-R E ITEM'!$B7,'PREÇOS DETALHADOS A PREENCHER'!$D$2:$D$105,P$3)","v":0},{"$f":"SUMIFS('PREÇOS DETALHADOS A PREENCHER'!$K$2:$K$105,'PREÇOS DETALHADOS A PREENCHER'!$B$2:$B$105,'PL AQUIS+SERV CGU-R E ITEM'!$B7,'PREÇOS DETALHADOS A PREENCHER'!$D$2:$D$105,Q$3)","v":0},{"$f":"SUMIFS('PREÇOS DETALHADOS A PREENCHER'!$K$2:$K$105,'PREÇOS DETALHADOS A PREENCHER'!$B$2:$B$105,'PL AQUIS+SERV CGU-R E ITEM'!$B7,'PREÇOS DETALHADOS A PREENCHER'!$D$2:$D$105,R$3)","v":0},{"$f":"SUMIFS('PREÇOS DETALHADOS A PREENCHER'!$K$2:$K$105,'PREÇOS DETALHADOS A PREENCHER'!$B$2:$B$105,'PL AQUIS+SERV CGU-R E ITEM'!$B7,'PREÇOS DETALHADOS A PREENCHER'!$D$2:$D$105,S$3)","v":0},{"$f":"SUMIFS('PREÇOS DETALHADOS A PREENCHER'!$K$2:$K$105,'PREÇOS DETALHADOS A PREENCHER'!$B$2:$B$105,'PL AQUIS+SERV CGU-R E ITEM'!$B7,'PREÇOS DETALHADOS A PREENCHER'!$D$2:$D$105,T$3)","v":0},{"$f":"SUMIFS('PREÇOS DETALHADOS A PREENCHER'!$K$2:$K$105,'PREÇOS DETALHADOS A PREENCHER'!$B$2:$B$105,'PL AQUIS+SERV CGU-R E ITEM'!$B7,'PREÇOS DETALHADOS A PREENCHER'!$D$2:$D$105,U$3)","v":0},{"$f":"SUMIFS('PREÇOS DETALHADOS A PREENCHER'!$K$2:$K$105,'PREÇOS DETALHADOS A PREENCHER'!$B$2:$B$105,'PL AQUIS+SERV CGU-R E ITEM'!$B7,'PREÇOS DETALHADOS A PREENCHER'!$D$2:$D$105,V$3)","v":0},{"$f":"SUMIFS('PREÇOS DETALHADOS A PREENCHER'!$K$2:$K$105,'PREÇOS DETALHADOS A PREENCHER'!$B$2:$B$105,'PL AQUIS+SERV CGU-R E ITEM'!$B7,'PREÇOS DETALHADOS A PREENCHER'!$D$2:$D$105,W$3)","v":0},{"$f":"SUMIFS('PREÇOS DETALHADOS A PREENCHER'!$K$2:$K$105,'PREÇOS DETALHADOS A PREENCHER'!$B$2:$B$105,'PL AQUIS+SERV CGU-R E ITEM'!$B7,'PREÇOS DETALHADOS A PREENCHER'!$D$2:$D$105,X$3)","v":0},{"$f":"SUMIFS('PREÇOS DETALHADOS A PREENCHER'!$R$2:$R$105,'PREÇOS DETALHADOS A PREENCHER'!$B$2:$B$105,'PL AQUIS+SERV CGU-R E ITEM'!$B7,'PREÇOS DETALHADOS A PREENCHER'!$M$2:$M$105,Y$3)","v":0},{"$f":"SUMIFS('PREÇOS DETALHADOS A PREENCHER'!$R$2:$R$105,'PREÇOS DETALHADOS A PREENCHER'!$B$2:$B$105,'PL AQUIS+SERV CGU-R E ITEM'!$B7,'PREÇOS DETALHADOS A PREENCHER'!$M$2:$M$105,Z$3)","v":0},{"$f":"SUMIFS('PREÇOS DETALHADOS A PREENCHER'!$R$2:$R$105,'PREÇOS DETALHADOS A PREENCHER'!$B$2:$B$105,'PL AQUIS+SERV CGU-R E ITEM'!$B7,'PREÇOS DETALHADOS A PREENCHER'!$M$2:$M$105,AA$3)","v":0}]
[null,"BA",{"$f":"SUMIFS('PREÇOS DETALHADOS A PREENCHER'!$J$2:$J$105,'PREÇOS DETALHADOS A PREENCHER'!$B$2:$B$105,'PL AQUIS+SERV CGU-R E ITEM'!$B8,'PREÇOS DETALHADOS A PREENCHER'!$C$2:$C$105,1)+SUMIFS('PREÇOS DETALHADOS A PREENCHER'!$J$2:$J$105,'PREÇOS DETALHADOS A PREENCHER'!$B$2:$B$105,'PL AQUIS+SERV CGU-R E ITEM'!$B8,'PREÇOS DETALHADOS A PREENCHER'!$C$2:$C$105,2)+SUMIFS('PREÇOS DETALHADOS A PREENCHER'!$J$2:$J$105,'PREÇOS DETALHADOS A PREENCHER'!$B$2:$B$105,'PL AQUIS+SERV CGU-R E ITEM'!$B8,'PREÇOS DETALHADOS A PREENCHER'!$C$2:$C$105,3)+SUMIFS('PREÇOS DETALHADOS A PREENCHER'!$J$2:$J$105,'PREÇOS DETALHADOS A PREENCHER'!$B$2:$B$105,'PL AQUIS+SERV CGU-R E ITEM'!$B8,'PREÇOS DETALHADOS A PREENCHER'!$C$2:$C$105,4)","v":0},{"$f":"SUMIFS('PREÇOS DETALHADOS A PREENCHER'!$O$2:$O$105,'PREÇOS DETALHADOS A PREENCHER'!$B$2:$B$105,Tabela2[[#This Row],[CGU-R]],'PREÇOS DETALHADOS A PREENCHER'!$L$2:$L$105,5)+SUMIFS('PREÇOS DETALHADOS A PREENCHER'!$O$2:$O$105,'PREÇOS DETALHADOS A PREENCHER'!$B$2:$B$105,Tabela2[[#This Row],[CGU-R]],'PREÇOS DETALHADOS A PREENCHER'!$L$2:$L$105,6)+SUMIFS('PREÇOS DETALHADOS A PREENCHER'!$O$2:$O$105,'PREÇOS DETALHADOS A PREENCHER'!$B$2:$B$105,Tabela2[[#This Row],[CGU-R]],'PREÇOS DETALHADOS A PREENCHER'!$L$2:$L$105,7)+SUMIFS('PREÇOS DETALHADOS A PREENCHER'!$O$2:$O$105,'PREÇOS DETALHADOS A PREENCHER'!$B$2:$B$105,Tabela2[[#This Row],[CGU-R]],'PREÇOS DETALHADOS A PREENCHER'!$L$2:$L$105,8)","v":0},12,{"$f":"Tabela2[[#This Row],[MANUTENÇÃO (MÊS)]]*E8","v":0},{"$f":"Tabela2[[#This Row],[EQUIP + INFRA + SUPERV. REMOTA]]+Tabela2[[#This Row],[MANUTENÇÃO (TOTAL)]]","v":0},null,null,{"$f":"SUMIFS('PREÇOS DETALHADOS A PREENCHER'!$K$2:$K$105,'PREÇOS DETALHADOS A PREENCHER'!$B$2:$B$105,'PL AQUIS+SERV CGU-R E ITEM'!$B8,'PREÇOS DETALHADOS A PREENCHER'!$D$2:$D$105,J$3)","v":0},{"$f":"SUMIFS('PREÇOS DETALHADOS A PREENCHER'!$K$2:$K$105,'PREÇOS DETALHADOS A PREENCHER'!$B$2:$B$105,'PL AQUIS+SERV CGU-R E ITEM'!$B8,'PREÇOS DETALHADOS A PREENCHER'!$D$2:$D$105,K$3)","v":0},{"$f":"SUMIFS('PREÇOS DETALHADOS A PREENCHER'!$K$2:$K$105,'PREÇOS DETALHADOS A PREENCHER'!$B$2:$B$105,'PL AQUIS+SERV CGU-R E ITEM'!$B8,'PREÇOS DETALHADOS A PREENCHER'!$D$2:$D$105,L$3)","v":0},{"$f":"SUMIFS('PREÇOS DETALHADOS A PREENCHER'!$K$2:$K$105,'PREÇOS DETALHADOS A PREENCHER'!$B$2:$B$105,'PL AQUIS+SERV CGU-R E ITEM'!$B8,'PREÇOS DETALHADOS A PREENCHER'!$D$2:$D$105,M$3)","v":0},{"$f":"SUMIFS('PREÇOS DETALHADOS A PREENCHER'!$K$2:$K$105,'PREÇOS DETALHADOS A PREENCHER'!$B$2:$B$105,'PL AQUIS+SERV CGU-R E ITEM'!$B8,'PREÇOS DETALHADOS A PREENCHER'!$D$2:$D$105,N$3)","v":0},{"$f":"SUMIFS('PREÇOS DETALHADOS A PREENCHER'!$K$2:$K$105,'PREÇOS DETALHADOS A PREENCHER'!$B$2:$B$105,'PL AQUIS+SERV CGU-R E ITEM'!$B8,'PREÇOS DETALHADOS A PREENCHER'!$D$2:$D$105,O$3)","v":0},{"$f":"SUMIFS('PREÇOS DETALHADOS A PREENCHER'!$K$2:$K$105,'PREÇOS DETALHADOS A PREENCHER'!$B$2:$B$105,'PL AQUIS+SERV CGU-R E ITEM'!$B8,'PREÇOS DETALHADOS A PREENCHER'!$D$2:$D$105,P$3)","v":0},{"$f":"SUMIFS('PREÇOS DETALHADOS A PREENCHER'!$K$2:$K$105,'PREÇOS DETALHADOS A PREENCHER'!$B$2:$B$105,'PL AQUIS+SERV CGU-R E ITEM'!$B8,'PREÇOS DETALHADOS A PREENCHER'!$D$2:$D$105,Q$3)","v":0},{"$f":"SUMIFS('PREÇOS DETALHADOS A PREENCHER'!$K$2:$K$105,'PREÇOS DETALHADOS A PREENCHER'!$B$2:$B$105,'PL AQUIS+SERV CGU-R E ITEM'!$B8,'PREÇOS DETALHADOS A PREENCHER'!$D$2:$D$105,R$3)","v":0},{"$f":"SUMIFS('PREÇOS DETALHADOS A PREENCHER'!$K$2:$K$105,'PREÇOS DETALHADOS A PREENCHER'!$B$2:$B$105,'PL AQUIS+SERV CGU-R E ITEM'!$B8,'PREÇOS DETALHADOS A PREENCHER'!$D$2:$D$105,S$3)","v":0},{"$f":"SUMIFS('PREÇOS DETALHADOS A PREENCHER'!$K$2:$K$105,'PREÇOS DETALHADOS A PREENCHER'!$B$2:$B$105,'PL AQUIS+SERV CGU-R E ITEM'!$B8,'PREÇOS DETALHADOS A PREENCHER'!$D$2:$D$105,T$3)","v":0},{"$f":"SUMIFS('PREÇOS DETALHADOS A PREENCHER'!$K$2:$K$105,'PREÇOS DETALHADOS A PREENCHER'!$B$2:$B$105,'PL AQUIS+SERV CGU-R E ITEM'!$B8,'PREÇOS DETALHADOS A PREENCHER'!$D$2:$D$105,U$3)","v":0},{"$f":"SUMIFS('PREÇOS DETALHADOS A PREENCHER'!$K$2:$K$105,'PREÇOS DETALHADOS A PREENCHER'!$B$2:$B$105,'PL AQUIS+SERV CGU-R E ITEM'!$B8,'PREÇOS DETALHADOS A PREENCHER'!$D$2:$D$105,V$3)","v":0},{"$f":"SUMIFS('PREÇOS DETALHADOS A PREENCHER'!$K$2:$K$105,'PREÇOS DETALHADOS A PREENCHER'!$B$2:$B$105,'PL AQUIS+SERV CGU-R E ITEM'!$B8,'PREÇOS DETALHADOS A PREENCHER'!$D$2:$D$105,W$3)","v":0},{"$f":"SUMIFS('PREÇOS DETALHADOS A PREENCHER'!$K$2:$K$105,'PREÇOS DETALHADOS A PREENCHER'!$B$2:$B$105,'PL AQUIS+SERV CGU-R E ITEM'!$B8,'PREÇOS DETALHADOS A PREENCHER'!$D$2:$D$105,X$3)","v":0},{"$f":"SUMIFS('PREÇOS DETALHADOS A PREENCHER'!$R$2:$R$105,'PREÇOS DETALHADOS A PREENCHER'!$B$2:$B$105,'PL AQUIS+SERV CGU-R E ITEM'!$B8,'PREÇOS DETALHADOS A PREENCHER'!$M$2:$M$105,Y$3)","v":0},{"$f":"SUMIFS('PREÇOS DETALHADOS A PREENCHER'!$R$2:$R$105,'PREÇOS DETALHADOS A PREENCHER'!$B$2:$B$105,'PL AQUIS+SERV CGU-R E ITEM'!$B8,'PREÇOS DETALHADOS A PREENCHER'!$M$2:$M$105,Z$3)","v":0},{"$f":"SUMIFS('PREÇOS DETALHADOS A PREENCHER'!$R$2:$R$105,'PREÇOS DETALHADOS A PREENCHER'!$B$2:$B$105,'PL AQUIS+SERV CGU-R E ITEM'!$B8,'PREÇOS DETALHADOS A PREENCHER'!$M$2:$M$105,AA$3)","v":0}]
[null,"CE",{"$f":"SUMIFS('PREÇOS DETALHADOS A PREENCHER'!$J$2:$J$105,'PREÇOS DETALHADOS A PREENCHER'!$B$2:$B$105,'PL AQUIS+SERV CGU-R E ITEM'!$B9,'PREÇOS DETALHADOS A PREENCHER'!$C$2:$C$105,1)+SUMIFS('PREÇOS DETALHADOS A PREENCHER'!$J$2:$J$105,'PREÇOS DETALHADOS A PREENCHER'!$B$2:$B$105,'PL AQUIS+SERV CGU-R E ITEM'!$B9,'PREÇOS DETALHADOS A PREENCHER'!$C$2:$C$105,2)+SUMIFS('PREÇOS DETALHADOS A PREENCHER'!$J$2:$J$105,'PREÇOS DETALHADOS A PREENCHER'!$B$2:$B$105,'PL AQUIS+SERV CGU-R E ITEM'!$B9,'PREÇOS DETALHADOS A PREENCHER'!$C$2:$C$105,3)+SUMIFS('PREÇOS DETALHADOS A PREENCHER'!$J$2:$J$105,'PREÇOS DETALHADOS A PREENCHER'!$B$2:$B$105,'PL AQUIS+SERV CGU-R E ITEM'!$B9,'PREÇOS DETALHADOS A PREENCHER'!$C$2:$C$105,4)","v":0},{"$f":"SUMIFS('PREÇOS DETALHADOS A PREENCHER'!$O$2:$O$105,'PREÇOS DETALHADOS A PREENCHER'!$B$2:$B$105,Tabela2[[#This Row],[CGU-R]],'PREÇOS DETALHADOS A PREENCHER'!$L$2:$L$105,5)+SUMIFS('PREÇOS DETALHADOS A PREENCHER'!$O$2:$O$105,'PREÇOS DETALHADOS A PREENCHER'!$B$2:$B$105,Tabela2[[#This Row],[CGU-R]],'PREÇOS DETALHADOS A PREENCHER'!$L$2:$L$105,6)+SUMIFS('PREÇOS DETALHADOS A PREENCHER'!$O$2:$O$105,'PREÇOS DETALHADOS A PREENCHER'!$B$2:$B$105,Tabela2[[#This Row],[CGU-R]],'PREÇOS DETALHADOS A PREENCHER'!$L$2:$L$105,7)+SUMIFS('PREÇOS DETALHADOS A PREENCHER'!$O$2:$O$105,'PREÇOS DETALHADOS A PREENCHER'!$B$2:$B$105,Tabela2[[#This Row],[CGU-R]],'PREÇOS DETALHADOS A PREENCHER'!$L$2:$L$105,8)","v":0},12,{"$f":"Tabela2[[#This Row],[MANUTENÇÃO (MÊS)]]*E9","v":0},{"$f":"Tabela2[[#This Row],[EQUIP + INFRA + SUPERV. REMOTA]]+Tabela2[[#This Row],[MANUTENÇÃO (TOTAL)]]","v":0},null,null,{"$f":"SUMIFS('PREÇOS DETALHADOS A PREENCHER'!$K$2:$K$105,'PREÇOS DETALHADOS A PREENCHER'!$B$2:$B$105,'PL AQUIS+SERV CGU-R E ITEM'!$B9,'PREÇOS DETALHADOS A PREENCHER'!$D$2:$D$105,J$3)","v":0},{"$f":"SUMIFS('PREÇOS DETALHADOS A PREENCHER'!$K$2:$K$105,'PREÇOS DETALHADOS A PREENCHER'!$B$2:$B$105,'PL AQUIS+SERV CGU-R E ITEM'!$B9,'PREÇOS DETALHADOS A PREENCHER'!$D$2:$D$105,K$3)","v":0},{"$f":"SUMIFS('PREÇOS DETALHADOS A PREENCHER'!$K$2:$K$105,'PREÇOS DETALHADOS A PREENCHER'!$B$2:$B$105,'PL AQUIS+SERV CGU-R E ITEM'!$B9,'PREÇOS DETALHADOS A PREENCHER'!$D$2:$D$105,L$3)","v":0},{"$f":"SUMIFS('PREÇOS DETALHADOS A PREENCHER'!$K$2:$K$105,'PREÇOS DETALHADOS A PREENCHER'!$B$2:$B$105,'PL AQUIS+SERV CGU-R E ITEM'!$B9,'PREÇOS DETALHADOS A PREENCHER'!$D$2:$D$105,M$3)","v":0},{"$f":"SUMIFS('PREÇOS DETALHADOS A PREENCHER'!$K$2:$K$105,'PREÇOS DETALHADOS A PREENCHER'!$B$2:$B$105,'PL AQUIS+SERV CGU-R E ITEM'!$B9,'PREÇOS DETALHADOS A PREENCHER'!$D$2:$D$105,N$3)","v":0},{"$f":"SUMIFS('PREÇOS DETALHADOS A PREENCHER'!$K$2:$K$105,'PREÇOS DETALHADOS A PREENCHER'!$B$2:$B$105,'PL AQUIS+SERV CGU-R E ITEM'!$B9,'PREÇOS DETALHADOS A PREENCHER'!$D$2:$D$105,O$3)","v":0},{"$f":"SUMIFS('PREÇOS DETALHADOS A PREENCHER'!$K$2:$K$105,'PREÇOS DETALHADOS A PREENCHER'!$B$2:$B$105,'PL AQUIS+SERV CGU-R E ITEM'!$B9,'PREÇOS DETALHADOS A PREENCHER'!$D$2:$D$105,P$3)","v":0},{"$f":"SUMIFS('PREÇOS DETALHADOS A PREENCHER'!$K$2:$K$105,'PREÇOS DETALHADOS A PREENCHER'!$B$2:$B$105,'PL AQUIS+SERV CGU-R E ITEM'!$B9,'PREÇOS DETALHADOS A PREENCHER'!$D$2:$D$105,Q$3)","v":0},{"$f":"SUMIFS('PREÇOS DETALHADOS A PREENCHER'!$K$2:$K$105,'PREÇOS DETALHADOS A PREENCHER'!$B$2:$B$105,'PL AQUIS+SERV CGU-R E ITEM'!$B9,'PREÇOS DETALHADOS A PREENCHER'!$D$2:$D$105,R$3)","v":0},{"$f":"SUMIFS('PREÇOS DETALHADOS A PREENCHER'!$K$2:$K$105,'PREÇOS DETALHADOS A PREENCHER'!$B$2:$B$105,'PL AQUIS+SERV CGU-R E ITEM'!$B9,'PREÇOS DETALHADOS A PREENCHER'!$D$2:$D$105,S$3)","v":0},{"$f":"SUMIFS('PREÇOS DETALHADOS A PREENCHER'!$K$2:$K$105,'PREÇOS DETALHADOS A PREENCHER'!$B$2:$B$105,'PL AQUIS+SERV CGU-R E ITEM'!$B9,'PREÇOS DETALHADOS A PREENCHER'!$D$2:$D$105,T$3)","v":0},{"$f":"SUMIFS('PREÇOS DETALHADOS A PREENCHER'!$K$2:$K$105,'PREÇOS DETALHADOS A PREENCHER'!$B$2:$B$105,'PL AQUIS+SERV CGU-R E ITEM'!$B9,'PREÇOS DETALHADOS A PREENCHER'!$D$2:$D$105,U$3)","v":0},{"$f":"SUMIFS('PREÇOS DETALHADOS A PREENCHER'!$K$2:$K$105,'PREÇOS DETALHADOS A PREENCHER'!$B$2:$B$105,'PL AQUIS+SERV CGU-R E ITEM'!$B9,'PREÇOS DETALHADOS A PREENCHER'!$D$2:$D$105,V$3)","v":0},{"$f":"SUMIFS('PREÇOS DETALHADOS A PREENCHER'!$K$2:$K$105,'PREÇOS DETALHADOS A PREENCHER'!$B$2:$B$105,'PL AQUIS+SERV CGU-R E ITEM'!$B9,'PREÇOS DETALHADOS A PREENCHER'!$D$2:$D$105,W$3)","v":0},{"$f":"SUMIFS('PREÇOS DETALHADOS A PREENCHER'!$K$2:$K$105,'PREÇOS DETALHADOS A PREENCHER'!$B$2:$B$105,'PL AQUIS+SERV CGU-R E ITEM'!$B9,'PREÇOS DETALHADOS A PREENCHER'!$D$2:$D$105,X$3)","v":0},{"$f":"SUMIFS('PREÇOS DETALHADOS A PREENCHER'!$R$2:$R$105,'PREÇOS DETALHADOS A PREENCHER'!$B$2:$B$105,'PL AQUIS+SERV CGU-R E ITEM'!$B9,'PREÇOS DETALHADOS A PREENCHER'!$M$2:$M$105,Y$3)","v":0},{"$f":"SUMIFS('PREÇOS DETALHADOS A PREENCHER'!$R$2:$R$105,'PREÇOS DETALHADOS A PREENCHER'!$B$2:$B$105,'PL AQUIS+SERV CGU-R E ITEM'!$B9,'PREÇOS DETALHADOS A PREENCHER'!$M$2:$M$105,Z$3)","v":0},{"$f":"SUMIFS('PREÇOS DETALHADOS A PREENCHER'!$R$2:$R$105,'PREÇOS DETALHADOS A PREENCHER'!$B$2:$B$105,'PL AQUIS+SERV CGU-R E ITEM'!$B9,'PREÇOS DETALHADOS A PREENCHER'!$M$2:$M$105,AA$3)","v":0}]
[null,"ES",{"$f":"SUMIFS('PREÇOS DETALHADOS A PREENCHER'!$J$2:$J$105,'PREÇOS DETALHADOS A PREENCHER'!$B$2:$B$105,'PL AQUIS+SERV CGU-R E ITEM'!$B10,'PREÇOS DETALHADOS A PREENCHER'!$C$2:$C$105,1)+SUMIFS('PREÇOS DETALHADOS A PREENCHER'!$J$2:$J$105,'PREÇOS DETALHADOS A PREENCHER'!$B$2:$B$105,'PL AQUIS+SERV CGU-R E ITEM'!$B10,'PREÇOS DETALHADOS A PREENCHER'!$C$2:$C$105,2)+SUMIFS('PREÇOS DETALHADOS A PREENCHER'!$J$2:$J$105,'PREÇOS DETALHADOS A PREENCHER'!$B$2:$B$105,'PL AQUIS+SERV CGU-R E ITEM'!$B10,'PREÇOS DETALHADOS A PREENCHER'!$C$2:$C$105,3)+SUMIFS('PREÇOS DETALHADOS A PREENCHER'!$J$2:$J$105,'PREÇOS DETALHADOS A PREENCHER'!$B$2:$B$105,'PL AQUIS+SERV CGU-R E ITEM'!$B10,'PREÇOS DETALHADOS A PREENCHER'!$C$2:$C$105,4)","v":0},{"$f":"SUMIFS('PREÇOS DETALHADOS A PREENCHER'!$O$2:$O$105,'PREÇOS DETALHADOS A PREENCHER'!$B$2:$B$105,Tabela2[[#This Row],[CGU-R]],'PREÇOS DETALHADOS A PREENCHER'!$L$2:$L$105,5)+SUMIFS('PREÇOS DETALHADOS A PREENCHER'!$O$2:$O$105,'PREÇOS DETALHADOS A PREENCHER'!$B$2:$B$105,Tabela2[[#This Row],[CGU-R]],'PREÇOS DETALHADOS A PREENCHER'!$L$2:$L$105,6)+SUMIFS('PREÇOS DETALHADOS A PREENCHER'!$O$2:$O$105,'PREÇOS DETALHADOS A PREENCHER'!$B$2:$B$105,Tabela2[[#This Row],[CGU-R]],'PREÇOS DETALHADOS A PREENCHER'!$L$2:$L$105,7)+SUMIFS('PREÇOS DETALHADOS A PREENCHER'!$O$2:$O$105,'PREÇOS DETALHADOS A PREENCHER'!$B$2:$B$105,Tabela2[[#This Row],[CGU-R]],'PREÇOS DETALHADOS A PREENCHER'!$L$2:$L$105,8)","v":0},12,{"$f":"Tabela2[[#This Row],[MANUTENÇÃO (MÊS)]]*E10","v":0},{"$f":"Tabela2[[#This Row],[EQUIP + INFRA + SUPERV. REMOTA]]+Tabela2[[#This Row],[MANUTENÇÃO (TOTAL)]]","v":0},null,null,{"$f":"SUMIFS('PREÇOS DETALHADOS A PREENCHER'!$K$2:$K$105,'PREÇOS DETALHADOS A PREENCHER'!$B$2:$B$105,'PL AQUIS+SERV CGU-R E ITEM'!$B10,'PREÇOS DETALHADOS A PREENCHER'!$D$2:$D$105,J$3)","v":0},{"$f":"SUMIFS('PREÇOS DETALHADOS A PREENCHER'!$K$2:$K$105,'PREÇOS DETALHADOS A PREENCHER'!$B$2:$B$105,'PL AQUIS+SERV CGU-R E ITEM'!$B10,'PREÇOS DETALHADOS A PREENCHER'!$D$2:$D$105,K$3)","v":0},{"$f":"SUMIFS('PREÇOS DETALHADOS A PREENCHER'!$K$2:$K$105,'PREÇOS DETALHADOS A PREENCHER'!$B$2:$B$105,'PL AQUIS+SERV CGU-R E ITEM'!$B10,'PREÇOS DETALHADOS A PREENCHER'!$D$2:$D$105,L$3)","v":0},{"$f":"SUMIFS('PREÇOS DETALHADOS A PREENCHER'!$K$2:$K$105,'PREÇOS DETALHADOS A PREENCHER'!$B$2:$B$105,'PL AQUIS+SERV CGU-R E ITEM'!$B10,'PREÇOS DETALHADOS A PREENCHER'!$D$2:$D$105,M$3)","v":0},{"$f":"SUMIFS('PREÇOS DETALHADOS A PREENCHER'!$K$2:$K$105,'PREÇOS DETALHADOS A PREENCHER'!$B$2:$B$105,'PL AQUIS+SERV CGU-R E ITEM'!$B10,'PREÇOS DETALHADOS A PREENCHER'!$D$2:$D$105,N$3)","v":0},{"$f":"SUMIFS('PREÇOS DETALHADOS A PREENCHER'!$K$2:$K$105,'PREÇOS DETALHADOS A PREENCHER'!$B$2:$B$105,'PL AQUIS+SERV CGU-R E ITEM'!$B10,'PREÇOS DETALHADOS A PREENCHER'!$D$2:$D$105,O$3)","v":0},{"$f":"SUMIFS('PREÇOS DETALHADOS A PREENCHER'!$K$2:$K$105,'PREÇOS DETALHADOS A PREENCHER'!$B$2:$B$105,'PL AQUIS+SERV CGU-R E ITEM'!$B10,'PREÇOS DETALHADOS A PREENCHER'!$D$2:$D$105,P$3)","v":0},{"$f":"SUMIFS('PREÇOS DETALHADOS A PREENCHER'!$K$2:$K$105,'PREÇOS DETALHADOS A PREENCHER'!$B$2:$B$105,'PL AQUIS+SERV CGU-R E ITEM'!$B10,'PREÇOS DETALHADOS A PREENCHER'!$D$2:$D$105,Q$3)","v":0},{"$f":"SUMIFS('PREÇOS DETALHADOS A PREENCHER'!$K$2:$K$105,'PREÇOS DETALHADOS A PREENCHER'!$B$2:$B$105,'PL AQUIS+SERV CGU-R E ITEM'!$B10,'PREÇOS DETALHADOS A PREENCHER'!$D$2:$D$105,R$3)","v":0},{"$f":"SUMIFS('PREÇOS DETALHADOS A PREENCHER'!$K$2:$K$105,'PREÇOS DETALHADOS A PREENCHER'!$B$2:$B$105,'PL AQUIS+SERV CGU-R E ITEM'!$B10,'PREÇOS DETALHADOS A PREENCHER'!$D$2:$D$105,S$3)","v":0},{"$f":"SUMIFS('PREÇOS DETALHADOS A PREENCHER'!$K$2:$K$105,'PREÇOS DETALHADOS A PREENCHER'!$B$2:$B$105,'PL AQUIS+SERV CGU-R E ITEM'!$B10,'PREÇOS DETALHADOS A PREENCHER'!$D$2:$D$105,T$3)","v":0},{"$f":"SUMIFS('PREÇOS DETALHADOS A PREENCHER'!$K$2:$K$105,'PREÇOS DETALHADOS A PREENCHER'!$B$2:$B$105,'PL AQUIS+SERV CGU-R E ITEM'!$B10,'PREÇOS DETALHADOS A PREENCHER'!$D$2:$D$105,U$3)","v":0},{"$f":"SUMIFS('PREÇOS DETALHADOS A PREENCHER'!$K$2:$K$105,'PREÇOS DETALHADOS A PREENCHER'!$B$2:$B$105,'PL AQUIS+SERV CGU-R E ITEM'!$B10,'PREÇOS DETALHADOS A PREENCHER'!$D$2:$D$105,V$3)","v":0},{"$f":"SUMIFS('PREÇOS DETALHADOS A PREENCHER'!$K$2:$K$105,'PREÇOS DETALHADOS A PREENCHER'!$B$2:$B$105,'PL AQUIS+SERV CGU-R E ITEM'!$B10,'PREÇOS DETALHADOS A PREENCHER'!$D$2:$D$105,W$3)","v":0},{"$f":"SUMIFS('PREÇOS DETALHADOS A PREENCHER'!$K$2:$K$105,'PREÇOS DETALHADOS A PREENCHER'!$B$2:$B$105,'PL AQUIS+SERV CGU-R E ITEM'!$B10,'PREÇOS DETALHADOS A PREENCHER'!$D$2:$D$105,X$3)","v":0},{"$f":"SUMIFS('PREÇOS DETALHADOS A PREENCHER'!$R$2:$R$105,'PREÇOS DETALHADOS A PREENCHER'!$B$2:$B$105,'PL AQUIS+SERV CGU-R E ITEM'!$B10,'PREÇOS DETALHADOS A PREENCHER'!$M$2:$M$105,Y$3)","v":0},{"$f":"SUMIFS('PREÇOS DETALHADOS A PREENCHER'!$R$2:$R$105,'PREÇOS DETALHADOS A PREENCHER'!$B$2:$B$105,'PL AQUIS+SERV CGU-R E ITEM'!$B10,'PREÇOS DETALHADOS A PREENCHER'!$M$2:$M$105,Z$3)","v":0},{"$f":"SUMIFS('PREÇOS DETALHADOS A PREENCHER'!$R$2:$R$105,'PREÇOS DETALHADOS A PREENCHER'!$B$2:$B$105,'PL AQUIS+SERV CGU-R E ITEM'!$B10,'PREÇOS DETALHADOS A PREENCHER'!$M$2:$M$105,AA$3)","v":0}]
[null,"MA",{"$f":"SUMIFS('PREÇOS DETALHADOS A PREENCHER'!$J$2:$J$105,'PREÇOS DETALHADOS A PREENCHER'!$B$2:$B$105,'PL AQUIS+SERV CGU-R E ITEM'!$B11,'PREÇOS DETALHADOS A PREENCHER'!$C$2:$C$105,1)+SUMIFS('PREÇOS DETALHADOS A PREENCHER'!$J$2:$J$105,'PREÇOS DETALHADOS A PREENCHER'!$B$2:$B$105,'PL AQUIS+SERV CGU-R E ITEM'!$B11,'PREÇOS DETALHADOS A PREENCHER'!$C$2:$C$105,2)+SUMIFS('PREÇOS DETALHADOS A PREENCHER'!$J$2:$J$105,'PREÇOS DETALHADOS A PREENCHER'!$B$2:$B$105,'PL AQUIS+SERV CGU-R E ITEM'!$B11,'PREÇOS DETALHADOS A PREENCHER'!$C$2:$C$105,3)+SUMIFS('PREÇOS DETALHADOS A PREENCHER'!$J$2:$J$105,'PREÇOS DETALHADOS A PREENCHER'!$B$2:$B$105,'PL AQUIS+SERV CGU-R E ITEM'!$B11,'PREÇOS DETALHADOS A PREENCHER'!$C$2:$C$105,4)","v":0},{"$f":"SUMIFS('PREÇOS DETALHADOS A PREENCHER'!$O$2:$O$105,'PREÇOS DETALHADOS A PREENCHER'!$B$2:$B$105,Tabela2[[#This Row],[CGU-R]],'PREÇOS DETALHADOS A PREENCHER'!$L$2:$L$105,5)+SUMIFS('PREÇOS DETALHADOS A PREENCHER'!$O$2:$O$105,'PREÇOS DETALHADOS A PREENCHER'!$B$2:$B$105,Tabela2[[#This Row],[CGU-R]],'PREÇOS DETALHADOS A PREENCHER'!$L$2:$L$105,6)+SUMIFS('PREÇOS DETALHADOS A PREENCHER'!$O$2:$O$105,'PREÇOS DETALHADOS A PREENCHER'!$B$2:$B$105,Tabela2[[#This Row],[CGU-R]],'PREÇOS DETALHADOS A PREENCHER'!$L$2:$L$105,7)+SUMIFS('PREÇOS DETALHADOS A PREENCHER'!$O$2:$O$105,'PREÇOS DETALHADOS A PREENCHER'!$B$2:$B$105,Tabela2[[#This Row],[CGU-R]],'PREÇOS DETALHADOS A PREENCHER'!$L$2:$L$105,8)","v":0},12,{"$f":"Tabela2[[#This Row],[MANUTENÇÃO (MÊS)]]*E11","v":0},{"$f":"Tabela2[[#This Row],[EQUIP + INFRA + SUPERV. REMOTA]]+Tabela2[[#This Row],[MANUTENÇÃO (TOTAL)]]","v":0},null,null,{"$f":"SUMIFS('PREÇOS DETALHADOS A PREENCHER'!$K$2:$K$105,'PREÇOS DETALHADOS A PREENCHER'!$B$2:$B$105,'PL AQUIS+SERV CGU-R E ITEM'!$B11,'PREÇOS DETALHADOS A PREENCHER'!$D$2:$D$105,J$3)","v":0},{"$f":"SUMIFS('PREÇOS DETALHADOS A PREENCHER'!$K$2:$K$105,'PREÇOS DETALHADOS A PREENCHER'!$B$2:$B$105,'PL AQUIS+SERV CGU-R E ITEM'!$B11,'PREÇOS DETALHADOS A PREENCHER'!$D$2:$D$105,K$3)","v":0},{"$f":"SUMIFS('PREÇOS DETALHADOS A PREENCHER'!$K$2:$K$105,'PREÇOS DETALHADOS A PREENCHER'!$B$2:$B$105,'PL AQUIS+SERV CGU-R E ITEM'!$B11,'PREÇOS DETALHADOS A PREENCHER'!$D$2:$D$105,L$3)","v":0},{"$f":"SUMIFS('PREÇOS DETALHADOS A PREENCHER'!$K$2:$K$105,'PREÇOS DETALHADOS A PREENCHER'!$B$2:$B$105,'PL AQUIS+SERV CGU-R E ITEM'!$B11,'PREÇOS DETALHADOS A PREENCHER'!$D$2:$D$105,M$3)","v":0},{"$f":"SUMIFS('PREÇOS DETALHADOS A PREENCHER'!$K$2:$K$105,'PREÇOS DETALHADOS A PREENCHER'!$B$2:$B$105,'PL AQUIS+SERV CGU-R E ITEM'!$B11,'PREÇOS DETALHADOS A PREENCHER'!$D$2:$D$105,N$3)","v":0},{"$f":"SUMIFS('PREÇOS DETALHADOS A PREENCHER'!$K$2:$K$105,'PREÇOS DETALHADOS A PREENCHER'!$B$2:$B$105,'PL AQUIS+SERV CGU-R E ITEM'!$B11,'PREÇOS DETALHADOS A PREENCHER'!$D$2:$D$105,O$3)","v":0},{"$f":"SUMIFS('PREÇOS DETALHADOS A PREENCHER'!$K$2:$K$105,'PREÇOS DETALHADOS A PREENCHER'!$B$2:$B$105,'PL AQUIS+SERV CGU-R E ITEM'!$B11,'PREÇOS DETALHADOS A PREENCHER'!$D$2:$D$105,P$3)","v":0},{"$f":"SUMIFS('PREÇOS DETALHADOS A PREENCHER'!$K$2:$K$105,'PREÇOS DETALHADOS A PREENCHER'!$B$2:$B$105,'PL AQUIS+SERV CGU-R E ITEM'!$B11,'PREÇOS DETALHADOS A PREENCHER'!$D$2:$D$105,Q$3)","v":0},{"$f":"SUMIFS('PREÇOS DETALHADOS A PREENCHER'!$K$2:$K$105,'PREÇOS DETALHADOS A PREENCHER'!$B$2:$B$105,'PL AQUIS+SERV CGU-R E ITEM'!$B11,'PREÇOS DETALHADOS A PREENCHER'!$D$2:$D$105,R$3)","v":0},{"$f":"SUMIFS('PREÇOS DETALHADOS A PREENCHER'!$K$2:$K$105,'PREÇOS DETALHADOS A PREENCHER'!$B$2:$B$105,'PL AQUIS+SERV CGU-R E ITEM'!$B11,'PREÇOS DETALHADOS A PREENCHER'!$D$2:$D$105,S$3)","v":0},{"$f":"SUMIFS('PREÇOS DETALHADOS A PREENCHER'!$K$2:$K$105,'PREÇOS DETALHADOS A PREENCHER'!$B$2:$B$105,'PL AQUIS+SERV CGU-R E ITEM'!$B11,'PREÇOS DETALHADOS A PREENCHER'!$D$2:$D$105,T$3)","v":0},{"$f":"SUMIFS('PREÇOS DETALHADOS A PREENCHER'!$K$2:$K$105,'PREÇOS DETALHADOS A PREENCHER'!$B$2:$B$105,'PL AQUIS+SERV CGU-R E ITEM'!$B11,'PREÇOS DETALHADOS A PREENCHER'!$D$2:$D$105,U$3)","v":0},{"$f":"SUMIFS('PREÇOS DETALHADOS A PREENCHER'!$K$2:$K$105,'PREÇOS DETALHADOS A PREENCHER'!$B$2:$B$105,'PL AQUIS+SERV CGU-R E ITEM'!$B11,'PREÇOS DETALHADOS A PREENCHER'!$D$2:$D$105,V$3)","v":0},{"$f":"SUMIFS('PREÇOS DETALHADOS A PREENCHER'!$K$2:$K$105,'PREÇOS DETALHADOS A PREENCHER'!$B$2:$B$105,'PL AQUIS+SERV CGU-R E ITEM'!$B11,'PREÇOS DETALHADOS A PREENCHER'!$D$2:$D$105,W$3)","v":0},{"$f":"SUMIFS('PREÇOS DETALHADOS A PREENCHER'!$K$2:$K$105,'PREÇOS DETALHADOS A PREENCHER'!$B$2:$B$105,'PL AQUIS+SERV CGU-R E ITEM'!$B11,'PREÇOS DETALHADOS A PREENCHER'!$D$2:$D$105,X$3)","v":0},{"$f":"SUMIFS('PREÇOS DETALHADOS A PREENCHER'!$R$2:$R$105,'PREÇOS DETALHADOS A PREENCHER'!$B$2:$B$105,'PL AQUIS+SERV CGU-R E ITEM'!$B11,'PREÇOS DETALHADOS A PREENCHER'!$M$2:$M$105,Y$3)","v":0},{"$f":"SUMIFS('PREÇOS DETALHADOS A PREENCHER'!$R$2:$R$105,'PREÇOS DETALHADOS A PREENCHER'!$B$2:$B$105,'PL AQUIS+SERV CGU-R E ITEM'!$B11,'PREÇOS DETALHADOS A PREENCHER'!$M$2:$M$105,Z$3)","v":0},{"$f":"SUMIFS('PREÇOS DETALHADOS A PREENCHER'!$R$2:$R$105,'PREÇOS DETALHADOS A PREENCHER'!$B$2:$B$105,'PL AQUIS+SERV CGU-R E ITEM'!$B11,'PREÇOS DETALHADOS A PREENCHER'!$M$2:$M$105,AA$3)","v":0}]
[null,"MG",{"$f":"SUMIFS('PREÇOS DETALHADOS A PREENCHER'!$J$2:$J$105,'PREÇOS DETALHADOS A PREENCHER'!$B$2:$B$105,'PL AQUIS+SERV CGU-R E ITEM'!$B12,'PREÇOS DETALHADOS A PREENCHER'!$C$2:$C$105,1)+SUMIFS('PREÇOS DETALHADOS A PREENCHER'!$J$2:$J$105,'PREÇOS DETALHADOS A PREENCHER'!$B$2:$B$105,'PL AQUIS+SERV CGU-R E ITEM'!$B12,'PREÇOS DETALHADOS A PREENCHER'!$C$2:$C$105,2)+SUMIFS('PREÇOS DETALHADOS A PREENCHER'!$J$2:$J$105,'PREÇOS DETALHADOS A PREENCHER'!$B$2:$B$105,'PL AQUIS+SERV CGU-R E ITEM'!$B12,'PREÇOS DETALHADOS A PREENCHER'!$C$2:$C$105,3)+SUMIFS('PREÇOS DETALHADOS A PREENCHER'!$J$2:$J$105,'PREÇOS DETALHADOS A PREENCHER'!$B$2:$B$105,'PL AQUIS+SERV CGU-R E ITEM'!$B12,'PREÇOS DETALHADOS A PREENCHER'!$C$2:$C$105,4)","v":0},{"$f":"SUMIFS('PREÇOS DETALHADOS A PREENCHER'!$O$2:$O$105,'PREÇOS DETALHADOS A PREENCHER'!$B$2:$B$105,Tabela2[[#This Row],[CGU-R]],'PREÇOS DETALHADOS A PREENCHER'!$L$2:$L$105,5)+SUMIFS('PREÇOS DETALHADOS A PREENCHER'!$O$2:$O$105,'PREÇOS DETALHADOS A PREENCHER'!$B$2:$B$105,Tabela2[[#This Row],[CGU-R]],'PREÇOS DETALHADOS A PREENCHER'!$L$2:$L$105,6)+SUMIFS('PREÇOS DETALHADOS A PREENCHER'!$O$2:$O$105,'PREÇOS DETALHADOS A PREENCHER'!$B$2:$B$105,Tabela2[[#This Row],[CGU-R]],'PREÇOS DETALHADOS A PREENCHER'!$L$2:$L$105,7)+SUMIFS('PREÇOS DETALHADOS A PREENCHER'!$O$2:$O$105,'PREÇOS DETALHADOS A PREENCHER'!$B$2:$B$105,Tabela2[[#This Row],[CGU-R]],'PREÇOS DETALHADOS A PREENCHER'!$L$2:$L$105,8)","v":0},12,{"$f":"Tabela2[[#This Row],[MANUTENÇÃO (MÊS)]]*E12","v":0},{"$f":"Tabela2[[#This Row],[EQUIP + INFRA + SUPERV. REMOTA]]+Tabela2[[#This Row],[MANUTENÇÃO (TOTAL)]]","v":0},null,null,{"$f":"SUMIFS('PREÇOS DETALHADOS A PREENCHER'!$K$2:$K$105,'PREÇOS DETALHADOS A PREENCHER'!$B$2:$B$105,'PL AQUIS+SERV CGU-R E ITEM'!$B12,'PREÇOS DETALHADOS A PREENCHER'!$D$2:$D$105,J$3)","v":0},{"$f":"SUMIFS('PREÇOS DETALHADOS A PREENCHER'!$K$2:$K$105,'PREÇOS DETALHADOS A PREENCHER'!$B$2:$B$105,'PL AQUIS+SERV CGU-R E ITEM'!$B12,'PREÇOS DETALHADOS A PREENCHER'!$D$2:$D$105,K$3)","v":0},{"$f":"SUMIFS('PREÇOS DETALHADOS A PREENCHER'!$K$2:$K$105,'PREÇOS DETALHADOS A PREENCHER'!$B$2:$B$105,'PL AQUIS+SERV CGU-R E ITEM'!$B12,'PREÇOS DETALHADOS A PREENCHER'!$D$2:$D$105,L$3)","v":0},{"$f":"SUMIFS('PREÇOS DETALHADOS A PREENCHER'!$K$2:$K$105,'PREÇOS DETALHADOS A PREENCHER'!$B$2:$B$105,'PL AQUIS+SERV CGU-R E ITEM'!$B12,'PREÇOS DETALHADOS A PREENCHER'!$D$2:$D$105,M$3)","v":0},{"$f":"SUMIFS('PREÇOS DETALHADOS A PREENCHER'!$K$2:$K$105,'PREÇOS DETALHADOS A PREENCHER'!$B$2:$B$105,'PL AQUIS+SERV CGU-R E ITEM'!$B12,'PREÇOS DETALHADOS A PREENCHER'!$D$2:$D$105,N$3)","v":0},{"$f":"SUMIFS('PREÇOS DETALHADOS A PREENCHER'!$K$2:$K$105,'PREÇOS DETALHADOS A PREENCHER'!$B$2:$B$105,'PL AQUIS+SERV CGU-R E ITEM'!$B12,'PREÇOS DETALHADOS A PREENCHER'!$D$2:$D$105,O$3)","v":0},{"$f":"SUMIFS('PREÇOS DETALHADOS A PREENCHER'!$K$2:$K$105,'PREÇOS DETALHADOS A PREENCHER'!$B$2:$B$105,'PL AQUIS+SERV CGU-R E ITEM'!$B12,'PREÇOS DETALHADOS A PREENCHER'!$D$2:$D$105,P$3)","v":0},{"$f":"SUMIFS('PREÇOS DETALHADOS A PREENCHER'!$K$2:$K$105,'PREÇOS DETALHADOS A PREENCHER'!$B$2:$B$105,'PL AQUIS+SERV CGU-R E ITEM'!$B12,'PREÇOS DETALHADOS A PREENCHER'!$D$2:$D$105,Q$3)","v":0},{"$f":"SUMIFS('PREÇOS DETALHADOS A PREENCHER'!$K$2:$K$105,'PREÇOS DETALHADOS A PREENCHER'!$B$2:$B$105,'PL AQUIS+SERV CGU-R E ITEM'!$B12,'PREÇOS DETALHADOS A PREENCHER'!$D$2:$D$105,R$3)","v":0},{"$f":"SUMIFS('PREÇOS DETALHADOS A PREENCHER'!$K$2:$K$105,'PREÇOS DETALHADOS A PREENCHER'!$B$2:$B$105,'PL AQUIS+SERV CGU-R E ITEM'!$B12,'PREÇOS DETALHADOS A PREENCHER'!$D$2:$D$105,S$3)","v":0},{"$f":"SUMIFS('PREÇOS DETALHADOS A PREENCHER'!$K$2:$K$105,'PREÇOS DETALHADOS A PREENCHER'!$B$2:$B$105,'PL AQUIS+SERV CGU-R E ITEM'!$B12,'PREÇOS DETALHADOS A PREENCHER'!$D$2:$D$105,T$3)","v":0},{"$f":"SUMIFS('PREÇOS DETALHADOS A PREENCHER'!$K$2:$K$105,'PREÇOS DETALHADOS A PREENCHER'!$B$2:$B$105,'PL AQUIS+SERV CGU-R E ITEM'!$B12,'PREÇOS DETALHADOS A PREENCHER'!$D$2:$D$105,U$3)","v":0},{"$f":"SUMIFS('PREÇOS DETALHADOS A PREENCHER'!$K$2:$K$105,'PREÇOS DETALHADOS A PREENCHER'!$B$2:$B$105,'PL AQUIS+SERV CGU-R E ITEM'!$B12,'PREÇOS DETALHADOS A PREENCHER'!$D$2:$D$105,V$3)","v":0},{"$f":"SUMIFS('PREÇOS DETALHADOS A PREENCHER'!$K$2:$K$105,'PREÇOS DETALHADOS A PREENCHER'!$B$2:$B$105,'PL AQUIS+SERV CGU-R E ITEM'!$B12,'PREÇOS DETALHADOS A PREENCHER'!$D$2:$D$105,W$3)","v":0},{"$f":"SUMIFS('PREÇOS DETALHADOS A PREENCHER'!$K$2:$K$105,'PREÇOS DETALHADOS A PREENCHER'!$B$2:$B$105,'PL AQUIS+SERV CGU-R E ITEM'!$B12,'PREÇOS DETALHADOS A PREENCHER'!$D$2:$D$105,X$3)","v":0},{"$f":"SUMIFS('PREÇOS DETALHADOS A PREENCHER'!$R$2:$R$105,'PREÇOS DETALHADOS A PREENCHER'!$B$2:$B$105,'PL AQUIS+SERV CGU-R E ITEM'!$B12,'PREÇOS DETALHADOS A PREENCHER'!$M$2:$M$105,Y$3)","v":0},{"$f":"SUMIFS('PREÇOS DETALHADOS A PREENCHER'!$R$2:$R$105,'PREÇOS DETALHADOS A PREENCHER'!$B$2:$B$105,'PL AQUIS+SERV CGU-R E ITEM'!$B12,'PREÇOS DETALHADOS A PREENCHER'!$M$2:$M$105,Z$3)","v":0},{"$f":"SUMIFS('PREÇOS DETALHADOS A PREENCHER'!$R$2:$R$105,'PREÇOS DETALHADOS A PREENCHER'!$B$2:$B$105,'PL AQUIS+SERV CGU-R E ITEM'!$B12,'PREÇOS DETALHADOS A PREENCHER'!$M$2:$M$105,AA$3)","v":0}]
[null,"MT",{"$f":"SUMIFS('PREÇOS DETALHADOS A PREENCHER'!$J$2:$J$105,'PREÇOS DETALHADOS A PREENCHER'!$B$2:$B$105,'PL AQUIS+SERV CGU-R E ITEM'!$B13,'PREÇOS DETALHADOS A PREENCHER'!$C$2:$C$105,1)+SUMIFS('PREÇOS DETALHADOS A PREENCHER'!$J$2:$J$105,'PREÇOS DETALHADOS A PREENCHER'!$B$2:$B$105,'PL AQUIS+SERV CGU-R E ITEM'!$B13,'PREÇOS DETALHADOS A PREENCHER'!$C$2:$C$105,2)+SUMIFS('PREÇOS DETALHADOS A PREENCHER'!$J$2:$J$105,'PREÇOS DETALHADOS A PREENCHER'!$B$2:$B$105,'PL AQUIS+SERV CGU-R E ITEM'!$B13,'PREÇOS DETALHADOS A PREENCHER'!$C$2:$C$105,3)+SUMIFS('PREÇOS DETALHADOS A PREENCHER'!$J$2:$J$105,'PREÇOS DETALHADOS A PREENCHER'!$B$2:$B$105,'PL AQUIS+SERV CGU-R E ITEM'!$B13,'PREÇOS DETALHADOS A PREENCHER'!$C$2:$C$105,4)","v":0},{"$f":"SUMIFS('PREÇOS DETALHADOS A PREENCHER'!$O$2:$O$105,'PREÇOS DETALHADOS A PREENCHER'!$B$2:$B$105,Tabela2[[#This Row],[CGU-R]],'PREÇOS DETALHADOS A PREENCHER'!$L$2:$L$105,5)+SUMIFS('PREÇOS DETALHADOS A PREENCHER'!$O$2:$O$105,'PREÇOS DETALHADOS A PREENCHER'!$B$2:$B$105,Tabela2[[#This Row],[CGU-R]],'PREÇOS DETALHADOS A PREENCHER'!$L$2:$L$105,6)+SUMIFS('PREÇOS DETALHADOS A PREENCHER'!$O$2:$O$105,'PREÇOS DETALHADOS A PREENCHER'!$B$2:$B$105,Tabela2[[#This Row],[CGU-R]],'PREÇOS DETALHADOS A PREENCHER'!$L$2:$L$105,7)+SUMIFS('PREÇOS DETALHADOS A PREENCHER'!$O$2:$O$105,'PREÇOS DETALHADOS A PREENCHER'!$B$2:$B$105,Tabela2[[#This Row],[CGU-R]],'PREÇOS DETALHADOS A PREENCHER'!$L$2:$L$105,8)","v":0},12,{"$f":"Tabela2[[#This Row],[MANUTENÇÃO (MÊS)]]*E13","v":0},{"$f":"Tabela2[[#This Row],[EQUIP + INFRA + SUPERV. REMOTA]]+Tabela2[[#This Row],[MANUTENÇÃO (TOTAL)]]","v":0},null,null,{"$f":"SUMIFS('PREÇOS DETALHADOS A PREENCHER'!$K$2:$K$105,'PREÇOS DETALHADOS A PREENCHER'!$B$2:$B$105,'PL AQUIS+SERV CGU-R E ITEM'!$B13,'PREÇOS DETALHADOS A PREENCHER'!$D$2:$D$105,J$3)","v":0},{"$f":"SUMIFS('PREÇOS DETALHADOS A PREENCHER'!$K$2:$K$105,'PREÇOS DETALHADOS A PREENCHER'!$B$2:$B$105,'PL AQUIS+SERV CGU-R E ITEM'!$B13,'PREÇOS DETALHADOS A PREENCHER'!$D$2:$D$105,K$3)","v":0},{"$f":"SUMIFS('PREÇOS DETALHADOS A PREENCHER'!$K$2:$K$105,'PREÇOS DETALHADOS A PREENCHER'!$B$2:$B$105,'PL AQUIS+SERV CGU-R E ITEM'!$B13,'PREÇOS DETALHADOS A PREENCHER'!$D$2:$D$105,L$3)","v":0},{"$f":"SUMIFS('PREÇOS DETALHADOS A PREENCHER'!$K$2:$K$105,'PREÇOS DETALHADOS A PREENCHER'!$B$2:$B$105,'PL AQUIS+SERV CGU-R E ITEM'!$B13,'PREÇOS DETALHADOS A PREENCHER'!$D$2:$D$105,M$3)","v":0},{"$f":"SUMIFS('PREÇOS DETALHADOS A PREENCHER'!$K$2:$K$105,'PREÇOS DETALHADOS A PREENCHER'!$B$2:$B$105,'PL AQUIS+SERV CGU-R E ITEM'!$B13,'PREÇOS DETALHADOS A PREENCHER'!$D$2:$D$105,N$3)","v":0},{"$f":"SUMIFS('PREÇOS DETALHADOS A PREENCHER'!$K$2:$K$105,'PREÇOS DETALHADOS A PREENCHER'!$B$2:$B$105,'PL AQUIS+SERV CGU-R E ITEM'!$B13,'PREÇOS DETALHADOS A PREENCHER'!$D$2:$D$105,O$3)","v":0},{"$f":"SUMIFS('PREÇOS DETALHADOS A PREENCHER'!$K$2:$K$105,'PREÇOS DETALHADOS A PREENCHER'!$B$2:$B$105,'PL AQUIS+SERV CGU-R E ITEM'!$B13,'PREÇOS DETALHADOS A PREENCHER'!$D$2:$D$105,P$3)","v":0},{"$f":"SUMIFS('PREÇOS DETALHADOS A PREENCHER'!$K$2:$K$105,'PREÇOS DETALHADOS A PREENCHER'!$B$2:$B$105,'PL AQUIS+SERV CGU-R E ITEM'!$B13,'PREÇOS DETALHADOS A PREENCHER'!$D$2:$D$105,Q$3)","v":0},{"$f":"SUMIFS('PREÇOS DETALHADOS A PREENCHER'!$K$2:$K$105,'PREÇOS DETALHADOS A PREENCHER'!$B$2:$B$105,'PL AQUIS+SERV CGU-R E ITEM'!$B13,'PREÇOS DETALHADOS A PREENCHER'!$D$2:$D$105,R$3)","v":0},{"$f":"SUMIFS('PREÇOS DETALHADOS A PREENCHER'!$K$2:$K$105,'PREÇOS DETALHADOS A PREENCHER'!$B$2:$B$105,'PL AQUIS+SERV CGU-R E ITEM'!$B13,'PREÇOS DETALHADOS A PREENCHER'!$D$2:$D$105,S$3)","v":0},{"$f":"SUMIFS('PREÇOS DETALHADOS A PREENCHER'!$K$2:$K$105,'PREÇOS DETALHADOS A PREENCHER'!$B$2:$B$105,'PL AQUIS+SERV CGU-R E ITEM'!$B13,'PREÇOS DETALHADOS A PREENCHER'!$D$2:$D$105,T$3)","v":0},{"$f":"SUMIFS('PREÇOS DETALHADOS A PREENCHER'!$K$2:$K$105,'PREÇOS DETALHADOS A PREENCHER'!$B$2:$B$105,'PL AQUIS+SERV CGU-R E ITEM'!$B13,'PREÇOS DETALHADOS A PREENCHER'!$D$2:$D$105,U$3)","v":0},{"$f":"SUMIFS('PREÇOS DETALHADOS A PREENCHER'!$K$2:$K$105,'PREÇOS DETALHADOS A PREENCHER'!$B$2:$B$105,'PL AQUIS+SERV CGU-R E ITEM'!$B13,'PREÇOS DETALHADOS A PREENCHER'!$D$2:$D$105,V$3)","v":0},{"$f":"SUMIFS('PREÇOS DETALHADOS A PREENCHER'!$K$2:$K$105,'PREÇOS DETALHADOS A PREENCHER'!$B$2:$B$105,'PL AQUIS+SERV CGU-R E ITEM'!$B13,'PREÇOS DETALHADOS A PREENCHER'!$D$2:$D$105,W$3)","v":0},{"$f":"SUMIFS('PREÇOS DETALHADOS A PREENCHER'!$K$2:$K$105,'PREÇOS DETALHADOS A PREENCHER'!$B$2:$B$105,'PL AQUIS+SERV CGU-R E ITEM'!$B13,'PREÇOS DETALHADOS A PREENCHER'!$D$2:$D$105,X$3)","v":0},{"$f":"SUMIFS('PREÇOS DETALHADOS A PREENCHER'!$R$2:$R$105,'PREÇOS DETALHADOS A PREENCHER'!$B$2:$B$105,'PL AQUIS+SERV CGU-R E ITEM'!$B13,'PREÇOS DETALHADOS A PREENCHER'!$M$2:$M$105,Y$3)","v":0},{"$f":"SUMIFS('PREÇOS DETALHADOS A PREENCHER'!$R$2:$R$105,'PREÇOS DETALHADOS A PREENCHER'!$B$2:$B$105,'PL AQUIS+SERV CGU-R E ITEM'!$B13,'PREÇOS DETALHADOS A PREENCHER'!$M$2:$M$105,Z$3)","v":0},{"$f":"SUMIFS('PREÇOS DETALHADOS A PREENCHER'!$R$2:$R$105,'PREÇOS DETALHADOS A PREENCHER'!$B$2:$B$105,'PL AQUIS+SERV CGU-R E ITEM'!$B13,'PREÇOS DETALHADOS A PREENCHER'!$M$2:$M$105,AA$3)","v":0}]
[null,"PB",{"$f":"SUMIFS('PREÇOS DETALHADOS A PREENCHER'!$J$2:$J$105,'PREÇOS DETALHADOS A PREENCHER'!$B$2:$B$105,'PL AQUIS+SERV CGU-R E ITEM'!$B14,'PREÇOS DETALHADOS A PREENCHER'!$C$2:$C$105,1)+SUMIFS('PREÇOS DETALHADOS A PREENCHER'!$J$2:$J$105,'PREÇOS DETALHADOS A PREENCHER'!$B$2:$B$105,'PL AQUIS+SERV CGU-R E ITEM'!$B14,'PREÇOS DETALHADOS A PREENCHER'!$C$2:$C$105,2)+SUMIFS('PREÇOS DETALHADOS A PREENCHER'!$J$2:$J$105,'PREÇOS DETALHADOS A PREENCHER'!$B$2:$B$105,'PL AQUIS+SERV CGU-R E ITEM'!$B14,'PREÇOS DETALHADOS A PREENCHER'!$C$2:$C$105,3)+SUMIFS('PREÇOS DETALHADOS A PREENCHER'!$J$2:$J$105,'PREÇOS DETALHADOS A PREENCHER'!$B$2:$B$105,'PL AQUIS+SERV CGU-R E ITEM'!$B14,'PREÇOS DETALHADOS A PREENCHER'!$C$2:$C$105,4)","v":0},{"$f":"SUMIFS('PREÇOS DETALHADOS A PREENCHER'!$O$2:$O$105,'PREÇOS DETALHADOS A PREENCHER'!$B$2:$B$105,Tabela2[[#This Row],[CGU-R]],'PREÇOS DETALHADOS A PREENCHER'!$L$2:$L$105,5)+SUMIFS('PREÇOS DETALHADOS A PREENCHER'!$O$2:$O$105,'PREÇOS DETALHADOS A PREENCHER'!$B$2:$B$105,Tabela2[[#This Row],[CGU-R]],'PREÇOS DETALHADOS A PREENCHER'!$L$2:$L$105,6)+SUMIFS('PREÇOS DETALHADOS A PREENCHER'!$O$2:$O$105,'PREÇOS DETALHADOS A PREENCHER'!$B$2:$B$105,Tabela2[[#This Row],[CGU-R]],'PREÇOS DETALHADOS A PREENCHER'!$L$2:$L$105,7)+SUMIFS('PREÇOS DETALHADOS A PREENCHER'!$O$2:$O$105,'PREÇOS DETALHADOS A PREENCHER'!$B$2:$B$105,Tabela2[[#This Row],[CGU-R]],'PREÇOS DETALHADOS A PREENCHER'!$L$2:$L$105,8)","v":0},12,{"$f":"Tabela2[[#This Row],[MANUTENÇÃO (MÊS)]]*E14","v":0},{"$f":"Tabela2[[#This Row],[EQUIP + INFRA + SUPERV. REMOTA]]+Tabela2[[#This Row],[MANUTENÇÃO (TOTAL)]]","v":0},null,null,{"$f":"SUMIFS('PREÇOS DETALHADOS A PREENCHER'!$K$2:$K$105,'PREÇOS DETALHADOS A PREENCHER'!$B$2:$B$105,'PL AQUIS+SERV CGU-R E ITEM'!$B14,'PREÇOS DETALHADOS A PREENCHER'!$D$2:$D$105,J$3)","v":0},{"$f":"SUMIFS('PREÇOS DETALHADOS A PREENCHER'!$K$2:$K$105,'PREÇOS DETALHADOS A PREENCHER'!$B$2:$B$105,'PL AQUIS+SERV CGU-R E ITEM'!$B14,'PREÇOS DETALHADOS A PREENCHER'!$D$2:$D$105,K$3)","v":0},{"$f":"SUMIFS('PREÇOS DETALHADOS A PREENCHER'!$K$2:$K$105,'PREÇOS DETALHADOS A PREENCHER'!$B$2:$B$105,'PL AQUIS+SERV CGU-R E ITEM'!$B14,'PREÇOS DETALHADOS A PREENCHER'!$D$2:$D$105,L$3)","v":0},{"$f":"SUMIFS('PREÇOS DETALHADOS A PREENCHER'!$K$2:$K$105,'PREÇOS DETALHADOS A PREENCHER'!$B$2:$B$105,'PL AQUIS+SERV CGU-R E ITEM'!$B14,'PREÇOS DETALHADOS A PREENCHER'!$D$2:$D$105,M$3)","v":0},{"$f":"SUMIFS('PREÇOS DETALHADOS A PREENCHER'!$K$2:$K$105,'PREÇOS DETALHADOS A PREENCHER'!$B$2:$B$105,'PL AQUIS+SERV CGU-R E ITEM'!$B14,'PREÇOS DETALHADOS A PREENCHER'!$D$2:$D$105,N$3)","v":0},{"$f":"SUMIFS('PREÇOS DETALHADOS A PREENCHER'!$K$2:$K$105,'PREÇOS DETALHADOS A PREENCHER'!$B$2:$B$105,'PL AQUIS+SERV CGU-R E ITEM'!$B14,'PREÇOS DETALHADOS A PREENCHER'!$D$2:$D$105,O$3)","v":0},{"$f":"SUMIFS('PREÇOS DETALHADOS A PREENCHER'!$K$2:$K$105,'PREÇOS DETALHADOS A PREENCHER'!$B$2:$B$105,'PL AQUIS+SERV CGU-R E ITEM'!$B14,'PREÇOS DETALHADOS A PREENCHER'!$D$2:$D$105,P$3)","v":0},{"$f":"SUMIFS('PREÇOS DETALHADOS A PREENCHER'!$K$2:$K$105,'PREÇOS DETALHADOS A PREENCHER'!$B$2:$B$105,'PL AQUIS+SERV CGU-R E ITEM'!$B14,'PREÇOS DETALHADOS A PREENCHER'!$D$2:$D$105,Q$3)","v":0},{"$f":"SUMIFS('PREÇOS DETALHADOS A PREENCHER'!$K$2:$K$105,'PREÇOS DETALHADOS A PREENCHER'!$B$2:$B$105,'PL AQUIS+SERV CGU-R E ITEM'!$B14,'PREÇOS DETALHADOS A PREENCHER'!$D$2:$D$105,R$3)","v":0},{"$f":"SUMIFS('PREÇOS DETALHADOS A PREENCHER'!$K$2:$K$105,'PREÇOS DETALHADOS A PREENCHER'!$B$2:$B$105,'PL AQUIS+SERV CGU-R E ITEM'!$B14,'PREÇOS DETALHADOS A PREENCHER'!$D$2:$D$105,S$3)","v":0},{"$f":"SUMIFS('PREÇOS DETALHADOS A PREENCHER'!$K$2:$K$105,'PREÇOS DETALHADOS A PREENCHER'!$B$2:$B$105,'PL AQUIS+SERV CGU-R E ITEM'!$B14,'PREÇOS DETALHADOS A PREENCHER'!$D$2:$D$105,T$3)","v":0},{"$f":"SUMIFS('PREÇOS DETALHADOS A PREENCHER'!$K$2:$K$105,'PREÇOS DETALHADOS A PREENCHER'!$B$2:$B$105,'PL AQUIS+SERV CGU-R E ITEM'!$B14,'PREÇOS DETALHADOS A PREENCHER'!$D$2:$D$105,U$3)","v":0},{"$f":"SUMIFS('PREÇOS DETALHADOS A PREENCHER'!$K$2:$K$105,'PREÇOS DETALHADOS A PREENCHER'!$B$2:$B$105,'PL AQUIS+SERV CGU-R E ITEM'!$B14,'PREÇOS DETALHADOS A PREENCHER'!$D$2:$D$105,V$3)","v":0},{"$f":"SUMIFS('PREÇOS DETALHADOS A PREENCHER'!$K$2:$K$105,'PREÇOS DETALHADOS A PREENCHER'!$B$2:$B$105,'PL AQUIS+SERV CGU-R E ITEM'!$B14,'PREÇOS DETALHADOS A PREENCHER'!$D$2:$D$105,W$3)","v":0},{"$f":"SUMIFS('PREÇOS DETALHADOS A PREENCHER'!$K$2:$K$105,'PREÇOS DETALHADOS A PREENCHER'!$B$2:$B$105,'PL AQUIS+SERV CGU-R E ITEM'!$B14,'PREÇOS DETALHADOS A PREENCHER'!$D$2:$D$105,X$3)","v":0},{"$f":"SUMIFS('PREÇOS DETALHADOS A PREENCHER'!$R$2:$R$105,'PREÇOS DETALHADOS A PREENCHER'!$B$2:$B$105,'PL AQUIS+SERV CGU-R E ITEM'!$B14,'PREÇOS DETALHADOS A PREENCHER'!$M$2:$M$105,Y$3)","v":0},{"$f":"SUMIFS('PREÇOS DETALHADOS A PREENCHER'!$R$2:$R$105,'PREÇOS DETALHADOS A PREENCHER'!$B$2:$B$105,'PL AQUIS+SERV CGU-R E ITEM'!$B14,'PREÇOS DETALHADOS A PREENCHER'!$M$2:$M$105,Z$3)","v":0},{"$f":"SUMIFS('PREÇOS DETALHADOS A PREENCHER'!$R$2:$R$105,'PREÇOS DETALHADOS A PREENCHER'!$B$2:$B$105,'PL AQUIS+SERV CGU-R E ITEM'!$B14,'PREÇOS DETALHADOS A PREENCHER'!$M$2:$M$105,AA$3)","v":0}]
[null,"PE",{"$f":"SUMIFS('PREÇOS DETALHADOS A PREENCHER'!$J$2:$J$105,'PREÇOS DETALHADOS A PREENCHER'!$B$2:$B$105,'PL AQUIS+SERV CGU-R E ITEM'!$B15,'PREÇOS DETALHADOS A PREENCHER'!$C$2:$C$105,1)+SUMIFS('PREÇOS DETALHADOS A PREENCHER'!$J$2:$J$105,'PREÇOS DETALHADOS A PREENCHER'!$B$2:$B$105,'PL AQUIS+SERV CGU-R E ITEM'!$B15,'PREÇOS DETALHADOS A PREENCHER'!$C$2:$C$105,2)+SUMIFS('PREÇOS DETALHADOS A PREENCHER'!$J$2:$J$105,'PREÇOS DETALHADOS A PREENCHER'!$B$2:$B$105,'PL AQUIS+SERV CGU-R E ITEM'!$B15,'PREÇOS DETALHADOS A PREENCHER'!$C$2:$C$105,3)+SUMIFS('PREÇOS DETALHADOS A PREENCHER'!$J$2:$J$105,'PREÇOS DETALHADOS A PREENCHER'!$B$2:$B$105,'PL AQUIS+SERV CGU-R E ITEM'!$B15,'PREÇOS DETALHADOS A PREENCHER'!$C$2:$C$105,4)","v":0},{"$f":"SUMIFS('PREÇOS DETALHADOS A PREENCHER'!$O$2:$O$105,'PREÇOS DETALHADOS A PREENCHER'!$B$2:$B$105,Tabela2[[#This Row],[CGU-R]],'PREÇOS DETALHADOS A PREENCHER'!$L$2:$L$105,5)+SUMIFS('PREÇOS DETALHADOS A PREENCHER'!$O$2:$O$105,'PREÇOS DETALHADOS A PREENCHER'!$B$2:$B$105,Tabela2[[#This Row],[CGU-R]],'PREÇOS DETALHADOS A PREENCHER'!$L$2:$L$105,6)+SUMIFS('PREÇOS DETALHADOS A PREENCHER'!$O$2:$O$105,'PREÇOS DETALHADOS A PREENCHER'!$B$2:$B$105,Tabela2[[#This Row],[CGU-R]],'PREÇOS DETALHADOS A PREENCHER'!$L$2:$L$105,7)+SUMIFS('PREÇOS DETALHADOS A PREENCHER'!$O$2:$O$105,'PREÇOS DETALHADOS A PREENCHER'!$B$2:$B$105,Tabela2[[#This Row],[CGU-R]],'PREÇOS DETALHADOS A PREENCHER'!$L$2:$L$105,8)","v":0},12,{"$f":"Tabela2[[#This Row],[MANUTENÇÃO (MÊS)]]*E15","v":0},{"$f":"Tabela2[[#This Row],[EQUIP + INFRA + SUPERV. REMOTA]]+Tabela2[[#This Row],[MANUTENÇÃO (TOTAL)]]","v":0},null,null,{"$f":"SUMIFS('PREÇOS DETALHADOS A PREENCHER'!$K$2:$K$105,'PREÇOS DETALHADOS A PREENCHER'!$B$2:$B$105,'PL AQUIS+SERV CGU-R E ITEM'!$B15,'PREÇOS DETALHADOS A PREENCHER'!$D$2:$D$105,J$3)","v":0},{"$f":"SUMIFS('PREÇOS DETALHADOS A PREENCHER'!$K$2:$K$105,'PREÇOS DETALHADOS A PREENCHER'!$B$2:$B$105,'PL AQUIS+SERV CGU-R E ITEM'!$B15,'PREÇOS DETALHADOS A PREENCHER'!$D$2:$D$105,K$3)","v":0},{"$f":"SUMIFS('PREÇOS DETALHADOS A PREENCHER'!$K$2:$K$105,'PREÇOS DETALHADOS A PREENCHER'!$B$2:$B$105,'PL AQUIS+SERV CGU-R E ITEM'!$B15,'PREÇOS DETALHADOS A PREENCHER'!$D$2:$D$105,L$3)","v":0},{"$f":"SUMIFS('PREÇOS DETALHADOS A PREENCHER'!$K$2:$K$105,'PREÇOS DETALHADOS A PREENCHER'!$B$2:$B$105,'PL AQUIS+SERV CGU-R E ITEM'!$B15,'PREÇOS DETALHADOS A PREENCHER'!$D$2:$D$105,M$3)","v":0},{"$f":"SUMIFS('PREÇOS DETALHADOS A PREENCHER'!$K$2:$K$105,'PREÇOS DETALHADOS A PREENCHER'!$B$2:$B$105,'PL AQUIS+SERV CGU-R E ITEM'!$B15,'PREÇOS DETALHADOS A PREENCHER'!$D$2:$D$105,N$3)","v":0},{"$f":"SUMIFS('PREÇOS DETALHADOS A PREENCHER'!$K$2:$K$105,'PREÇOS DETALHADOS A PREENCHER'!$B$2:$B$105,'PL AQUIS+SERV CGU-R E ITEM'!$B15,'PREÇOS DETALHADOS A PREENCHER'!$D$2:$D$105,O$3)","v":0},{"$f":"SUMIFS('PREÇOS DETALHADOS A PREENCHER'!$K$2:$K$105,'PREÇOS DETALHADOS A PREENCHER'!$B$2:$B$105,'PL AQUIS+SERV CGU-R E ITEM'!$B15,'PREÇOS DETALHADOS A PREENCHER'!$D$2:$D$105,P$3)","v":0},{"$f":"SUMIFS('PREÇOS DETALHADOS A PREENCHER'!$K$2:$K$105,'PREÇOS DETALHADOS A PREENCHER'!$B$2:$B$105,'PL AQUIS+SERV CGU-R E ITEM'!$B15,'PREÇOS DETALHADOS A PREENCHER'!$D$2:$D$105,Q$3)","v":0},{"$f":"SUMIFS('PREÇOS DETALHADOS A PREENCHER'!$K$2:$K$105,'PREÇOS DETALHADOS A PREENCHER'!$B$2:$B$105,'PL AQUIS+SERV CGU-R E ITEM'!$B15,'PREÇOS DETALHADOS A PREENCHER'!$D$2:$D$105,R$3)","v":0},{"$f":"SUMIFS('PREÇOS DETALHADOS A PREENCHER'!$K$2:$K$105,'PREÇOS DETALHADOS A PREENCHER'!$B$2:$B$105,'PL AQUIS+SERV CGU-R E ITEM'!$B15,'PREÇOS DETALHADOS A PREENCHER'!$D$2:$D$105,S$3)","v":0},{"$f":"SUMIFS('PREÇOS DETALHADOS A PREENCHER'!$K$2:$K$105,'PREÇOS DETALHADOS A PREENCHER'!$B$2:$B$105,'PL AQUIS+SERV CGU-R E ITEM'!$B15,'PREÇOS DETALHADOS A PREENCHER'!$D$2:$D$105,T$3)","v":0},{"$f":"SUMIFS('PREÇOS DETALHADOS A PREENCHER'!$K$2:$K$105,'PREÇOS DETALHADOS A PREENCHER'!$B$2:$B$105,'PL AQUIS+SERV CGU-R E ITEM'!$B15,'PREÇOS DETALHADOS A PREENCHER'!$D$2:$D$105,U$3)","v":0},{"$f":"SUMIFS('PREÇOS DETALHADOS A PREENCHER'!$K$2:$K$105,'PREÇOS DETALHADOS A PREENCHER'!$B$2:$B$105,'PL AQUIS+SERV CGU-R E ITEM'!$B15,'PREÇOS DETALHADOS A PREENCHER'!$D$2:$D$105,V$3)","v":0},{"$f":"SUMIFS('PREÇOS DETALHADOS A PREENCHER'!$K$2:$K$105,'PREÇOS DETALHADOS A PREENCHER'!$B$2:$B$105,'PL AQUIS+SERV CGU-R E ITEM'!$B15,'PREÇOS DETALHADOS A PREENCHER'!$D$2:$D$105,W$3)","v":0},{"$f":"SUMIFS('PREÇOS DETALHADOS A PREENCHER'!$K$2:$K$105,'PREÇOS DETALHADOS A PREENCHER'!$B$2:$B$105,'PL AQUIS+SERV CGU-R E ITEM'!$B15,'PREÇOS DETALHADOS A PREENCHER'!$D$2:$D$105,X$3)","v":0},{"$f":"SUMIFS('PREÇOS DETALHADOS A PREENCHER'!$R$2:$R$105,'PREÇOS DETALHADOS A PREENCHER'!$B$2:$B$105,'PL AQUIS+SERV CGU-R E ITEM'!$B15,'PREÇOS DETALHADOS A PREENCHER'!$M$2:$M$105,Y$3)","v":0},{"$f":"SUMIFS('PREÇOS DETALHADOS A PREENCHER'!$R$2:$R$105,'PREÇOS DETALHADOS A PREENCHER'!$B$2:$B$105,'PL AQUIS+SERV CGU-R E ITEM'!$B15,'PREÇOS DETALHADOS A PREENCHER'!$M$2:$M$105,Z$3)","v":0},{"$f":"SUMIFS('PREÇOS DETALHADOS A PREENCHER'!$R$2:$R$105,'PREÇOS DETALHADOS A PREENCHER'!$B$2:$B$105,'PL AQUIS+SERV CGU-R E ITEM'!$B15,'PREÇOS DETALHADOS A PREENCHER'!$M$2:$M$105,AA$3)","v":0}]
[null,"PI",{"$f":"SUMIFS('PREÇOS DETALHADOS A PREENCHER'!$J$2:$J$105,'PREÇOS DETALHADOS A PREENCHER'!$B$2:$B$105,'PL AQUIS+SERV CGU-R E ITEM'!$B16,'PREÇOS DETALHADOS A PREENCHER'!$C$2:$C$105,1)+SUMIFS('PREÇOS DETALHADOS A PREENCHER'!$J$2:$J$105,'PREÇOS DETALHADOS A PREENCHER'!$B$2:$B$105,'PL AQUIS+SERV CGU-R E ITEM'!$B16,'PREÇOS DETALHADOS A PREENCHER'!$C$2:$C$105,2)+SUMIFS('PREÇOS DETALHADOS A PREENCHER'!$J$2:$J$105,'PREÇOS DETALHADOS A PREENCHER'!$B$2:$B$105,'PL AQUIS+SERV CGU-R E ITEM'!$B16,'PREÇOS DETALHADOS A PREENCHER'!$C$2:$C$105,3)+SUMIFS('PREÇOS DETALHADOS A PREENCHER'!$J$2:$J$105,'PREÇOS DETALHADOS A PREENCHER'!$B$2:$B$105,'PL AQUIS+SERV CGU-R E ITEM'!$B16,'PREÇOS DETALHADOS A PREENCHER'!$C$2:$C$105,4)","v":0},{"$f":"SUMIFS('PREÇOS DETALHADOS A PREENCHER'!$O$2:$O$105,'PREÇOS DETALHADOS A PREENCHER'!$B$2:$B$105,Tabela2[[#This Row],[CGU-R]],'PREÇOS DETALHADOS A PREENCHER'!$L$2:$L$105,5)+SUMIFS('PREÇOS DETALHADOS A PREENCHER'!$O$2:$O$105,'PREÇOS DETALHADOS A PREENCHER'!$B$2:$B$105,Tabela2[[#This Row],[CGU-R]],'PREÇOS DETALHADOS A PREENCHER'!$L$2:$L$105,6)+SUMIFS('PREÇOS DETALHADOS A PREENCHER'!$O$2:$O$105,'PREÇOS DETALHADOS A PREENCHER'!$B$2:$B$105,Tabela2[[#This Row],[CGU-R]],'PREÇOS DETALHADOS A PREENCHER'!$L$2:$L$105,7)+SUMIFS('PREÇOS DETALHADOS A PREENCHER'!$O$2:$O$105,'PREÇOS DETALHADOS A PREENCHER'!$B$2:$B$105,Tabela2[[#This Row],[CGU-R]],'PREÇOS DETALHADOS A PREENCHER'!$L$2:$L$105,8)","v":0},12,{"$f":"Tabela2[[#This Row],[MANUTENÇÃO (MÊS)]]*E16","v":0},{"$f":"Tabela2[[#This Row],[EQUIP + INFRA + SUPERV. REMOTA]]+Tabela2[[#This Row],[MANUTENÇÃO (TOTAL)]]","v":0},null,null,{"$f":"SUMIFS('PREÇOS DETALHADOS A PREENCHER'!$K$2:$K$105,'PREÇOS DETALHADOS A PREENCHER'!$B$2:$B$105,'PL AQUIS+SERV CGU-R E ITEM'!$B16,'PREÇOS DETALHADOS A PREENCHER'!$D$2:$D$105,J$3)","v":0},{"$f":"SUMIFS('PREÇOS DETALHADOS A PREENCHER'!$K$2:$K$105,'PREÇOS DETALHADOS A PREENCHER'!$B$2:$B$105,'PL AQUIS+SERV CGU-R E ITEM'!$B16,'PREÇOS DETALHADOS A PREENCHER'!$D$2:$D$105,K$3)","v":0},{"$f":"SUMIFS('PREÇOS DETALHADOS A PREENCHER'!$K$2:$K$105,'PREÇOS DETALHADOS A PREENCHER'!$B$2:$B$105,'PL AQUIS+SERV CGU-R E ITEM'!$B16,'PREÇOS DETALHADOS A PREENCHER'!$D$2:$D$105,L$3)","v":0},{"$f":"SUMIFS('PREÇOS DETALHADOS A PREENCHER'!$K$2:$K$105,'PREÇOS DETALHADOS A PREENCHER'!$B$2:$B$105,'PL AQUIS+SERV CGU-R E ITEM'!$B16,'PREÇOS DETALHADOS A PREENCHER'!$D$2:$D$105,M$3)","v":0},{"$f":"SUMIFS('PREÇOS DETALHADOS A PREENCHER'!$K$2:$K$105,'PREÇOS DETALHADOS A PREENCHER'!$B$2:$B$105,'PL AQUIS+SERV CGU-R E ITEM'!$B16,'PREÇOS DETALHADOS A PREENCHER'!$D$2:$D$105,N$3)","v":0},{"$f":"SUMIFS('PREÇOS DETALHADOS A PREENCHER'!$K$2:$K$105,'PREÇOS DETALHADOS A PREENCHER'!$B$2:$B$105,'PL AQUIS+SERV CGU-R E ITEM'!$B16,'PREÇOS DETALHADOS A PREENCHER'!$D$2:$D$105,O$3)","v":0},{"$f":"SUMIFS('PREÇOS DETALHADOS A PREENCHER'!$K$2:$K$105,'PREÇOS DETALHADOS A PREENCHER'!$B$2:$B$105,'PL AQUIS+SERV CGU-R E ITEM'!$B16,'PREÇOS DETALHADOS A PREENCHER'!$D$2:$D$105,P$3)","v":0},{"$f":"SUMIFS('PREÇOS DETALHADOS A PREENCHER'!$K$2:$K$105,'PREÇOS DETALHADOS A PREENCHER'!$B$2:$B$105,'PL AQUIS+SERV CGU-R E ITEM'!$B16,'PREÇOS DETALHADOS A PREENCHER'!$D$2:$D$105,Q$3)","v":0},{"$f":"SUMIFS('PREÇOS DETALHADOS A PREENCHER'!$K$2:$K$105,'PREÇOS DETALHADOS A PREENCHER'!$B$2:$B$105,'PL AQUIS+SERV CGU-R E ITEM'!$B16,'PREÇOS DETALHADOS A PREENCHER'!$D$2:$D$105,R$3)","v":0},{"$f":"SUMIFS('PREÇOS DETALHADOS A PREENCHER'!$K$2:$K$105,'PREÇOS DETALHADOS A PREENCHER'!$B$2:$B$105,'PL AQUIS+SERV CGU-R E ITEM'!$B16,'PREÇOS DETALHADOS A PREENCHER'!$D$2:$D$105,S$3)","v":0},{"$f":"SUMIFS('PREÇOS DETALHADOS A PREENCHER'!$K$2:$K$105,'PREÇOS DETALHADOS A PREENCHER'!$B$2:$B$105,'PL AQUIS+SERV CGU-R E ITEM'!$B16,'PREÇOS DETALHADOS A PREENCHER'!$D$2:$D$105,T$3)","v":0},{"$f":"SUMIFS('PREÇOS DETALHADOS A PREENCHER'!$K$2:$K$105,'PREÇOS DETALHADOS A PREENCHER'!$B$2:$B$105,'PL AQUIS+SERV CGU-R E ITEM'!$B16,'PREÇOS DETALHADOS A PREENCHER'!$D$2:$D$105,U$3)","v":0},{"$f":"SUMIFS('PREÇOS DETALHADOS A PREENCHER'!$K$2:$K$105,'PREÇOS DETALHADOS A PREENCHER'!$B$2:$B$105,'PL AQUIS+SERV CGU-R E ITEM'!$B16,'PREÇOS DETALHADOS A PREENCHER'!$D$2:$D$105,V$3)","v":0},{"$f":"SUMIFS('PREÇOS DETALHADOS A PREENCHER'!$K$2:$K$105,'PREÇOS DETALHADOS A PREENCHER'!$B$2:$B$105,'PL AQUIS+SERV CGU-R E ITEM'!$B16,'PREÇOS DETALHADOS A PREENCHER'!$D$2:$D$105,W$3)","v":0},{"$f":"SUMIFS('PREÇOS DETALHADOS A PREENCHER'!$K$2:$K$105,'PREÇOS DETALHADOS A PREENCHER'!$B$2:$B$105,'PL AQUIS+SERV CGU-R E ITEM'!$B16,'PREÇOS DETALHADOS A PREENCHER'!$D$2:$D$105,X$3)","v":0},{"$f":"SUMIFS('PREÇOS DETALHADOS A PREENCHER'!$R$2:$R$105,'PREÇOS DETALHADOS A PREENCHER'!$B$2:$B$105,'PL AQUIS+SERV CGU-R E ITEM'!$B16,'PREÇOS DETALHADOS A PREENCHER'!$M$2:$M$105,Y$3)","v":0},{"$f":"SUMIFS('PREÇOS DETALHADOS A PREENCHER'!$R$2:$R$105,'PREÇOS DETALHADOS A PREENCHER'!$B$2:$B$105,'PL AQUIS+SERV CGU-R E ITEM'!$B16,'PREÇOS DETALHADOS A PREENCHER'!$M$2:$M$105,Z$3)","v":0},{"$f":"SUMIFS('PREÇOS DETALHADOS A PREENCHER'!$R$2:$R$105,'PREÇOS DETALHADOS A PREENCHER'!$B$2:$B$105,'PL AQUIS+SERV CGU-R E ITEM'!$B16,'PREÇOS DETALHADOS A PREENCHER'!$M$2:$M$105,AA$3)","v":0}]
[null,"PR",{"$f":"SUMIFS('PREÇOS DETALHADOS A PREENCHER'!$J$2:$J$105,'PREÇOS DETALHADOS A PREENCHER'!$B$2:$B$105,'PL AQUIS+SERV CGU-R E ITEM'!$B17,'PREÇOS DETALHADOS A PREENCHER'!$C$2:$C$105,1)+SUMIFS('PREÇOS DETALHADOS A PREENCHER'!$J$2:$J$105,'PREÇOS DETALHADOS A PREENCHER'!$B$2:$B$105,'PL AQUIS+SERV CGU-R E ITEM'!$B17,'PREÇOS DETALHADOS A PREENCHER'!$C$2:$C$105,2)+SUMIFS('PREÇOS DETALHADOS A PREENCHER'!$J$2:$J$105,'PREÇOS DETALHADOS A PREENCHER'!$B$2:$B$105,'PL AQUIS+SERV CGU-R E ITEM'!$B17,'PREÇOS DETALHADOS A PREENCHER'!$C$2:$C$105,3)+SUMIFS('PREÇOS DETALHADOS A PREENCHER'!$J$2:$J$105,'PREÇOS DETALHADOS A PREENCHER'!$B$2:$B$105,'PL AQUIS+SERV CGU-R E ITEM'!$B17,'PREÇOS DETALHADOS A PREENCHER'!$C$2:$C$105,4)","v":0},{"$f":"SUMIFS('PREÇOS DETALHADOS A PREENCHER'!$O$2:$O$105,'PREÇOS DETALHADOS A PREENCHER'!$B$2:$B$105,Tabela2[[#This Row],[CGU-R]],'PREÇOS DETALHADOS A PREENCHER'!$L$2:$L$105,5)+SUMIFS('PREÇOS DETALHADOS A PREENCHER'!$O$2:$O$105,'PREÇOS DETALHADOS A PREENCHER'!$B$2:$B$105,Tabela2[[#This Row],[CGU-R]],'PREÇOS DETALHADOS A PREENCHER'!$L$2:$L$105,6)+SUMIFS('PREÇOS DETALHADOS A PREENCHER'!$O$2:$O$105,'PREÇOS DETALHADOS A PREENCHER'!$B$2:$B$105,Tabela2[[#This Row],[CGU-R]],'PREÇOS DETALHADOS A PREENCHER'!$L$2:$L$105,7)+SUMIFS('PREÇOS DETALHADOS A PREENCHER'!$O$2:$O$105,'PREÇOS DETALHADOS A PREENCHER'!$B$2:$B$105,Tabela2[[#This Row],[CGU-R]],'PREÇOS DETALHADOS A PREENCHER'!$L$2:$L$105,8)","v":0},12,{"$f":"Tabela2[[#This Row],[MANUTENÇÃO (MÊS)]]*E17","v":0},{"$f":"Tabela2[[#This Row],[EQUIP + INFRA + SUPERV. REMOTA]]+Tabela2[[#This Row],[MANUTENÇÃO (TOTAL)]]","v":0},null,null,{"$f":"SUMIFS('PREÇOS DETALHADOS A PREENCHER'!$K$2:$K$105,'PREÇOS DETALHADOS A PREENCHER'!$B$2:$B$105,'PL AQUIS+SERV CGU-R E ITEM'!$B17,'PREÇOS DETALHADOS A PREENCHER'!$D$2:$D$105,J$3)","v":0},{"$f":"SUMIFS('PREÇOS DETALHADOS A PREENCHER'!$K$2:$K$105,'PREÇOS DETALHADOS A PREENCHER'!$B$2:$B$105,'PL AQUIS+SERV CGU-R E ITEM'!$B17,'PREÇOS DETALHADOS A PREENCHER'!$D$2:$D$105,K$3)","v":0},{"$f":"SUMIFS('PREÇOS DETALHADOS A PREENCHER'!$K$2:$K$105,'PREÇOS DETALHADOS A PREENCHER'!$B$2:$B$105,'PL AQUIS+SERV CGU-R E ITEM'!$B17,'PREÇOS DETALHADOS A PREENCHER'!$D$2:$D$105,L$3)","v":0},{"$f":"SUMIFS('PREÇOS DETALHADOS A PREENCHER'!$K$2:$K$105,'PREÇOS DETALHADOS A PREENCHER'!$B$2:$B$105,'PL AQUIS+SERV CGU-R E ITEM'!$B17,'PREÇOS DETALHADOS A PREENCHER'!$D$2:$D$105,M$3)","v":0},{"$f":"SUMIFS('PREÇOS DETALHADOS A PREENCHER'!$K$2:$K$105,'PREÇOS DETALHADOS A PREENCHER'!$B$2:$B$105,'PL AQUIS+SERV CGU-R E ITEM'!$B17,'PREÇOS DETALHADOS A PREENCHER'!$D$2:$D$105,N$3)","v":0},{"$f":"SUMIFS('PREÇOS DETALHADOS A PREENCHER'!$K$2:$K$105,'PREÇOS DETALHADOS A PREENCHER'!$B$2:$B$105,'PL AQUIS+SERV CGU-R E ITEM'!$B17,'PREÇOS DETALHADOS A PREENCHER'!$D$2:$D$105,O$3)","v":0},{"$f":"SUMIFS('PREÇOS DETALHADOS A PREENCHER'!$K$2:$K$105,'PREÇOS DETALHADOS A PREENCHER'!$B$2:$B$105,'PL AQUIS+SERV CGU-R E ITEM'!$B17,'PREÇOS DETALHADOS A PREENCHER'!$D$2:$D$105,P$3)","v":0},{"$f":"SUMIFS('PREÇOS DETALHADOS A PREENCHER'!$K$2:$K$105,'PREÇOS DETALHADOS A PREENCHER'!$B$2:$B$105,'PL AQUIS+SERV CGU-R E ITEM'!$B17,'PREÇOS DETALHADOS A PREENCHER'!$D$2:$D$105,Q$3)","v":0},{"$f":"SUMIFS('PREÇOS DETALHADOS A PREENCHER'!$K$2:$K$105,'PREÇOS DETALHADOS A PREENCHER'!$B$2:$B$105,'PL AQUIS+SERV CGU-R E ITEM'!$B17,'PREÇOS DETALHADOS A PREENCHER'!$D$2:$D$105,R$3)","v":0},{"$f":"SUMIFS('PREÇOS DETALHADOS A PREENCHER'!$K$2:$K$105,'PREÇOS DETALHADOS A PREENCHER'!$B$2:$B$105,'PL AQUIS+SERV CGU-R E ITEM'!$B17,'PREÇOS DETALHADOS A PREENCHER'!$D$2:$D$105,S$3)","v":0},{"$f":"SUMIFS('PREÇOS DETALHADOS A PREENCHER'!$K$2:$K$105,'PREÇOS DETALHADOS A PREENCHER'!$B$2:$B$105,'PL AQUIS+SERV CGU-R E ITEM'!$B17,'PREÇOS DETALHADOS A PREENCHER'!$D$2:$D$105,T$3)","v":0},{"$f":"SUMIFS('PREÇOS DETALHADOS A PREENCHER'!$K$2:$K$105,'PREÇOS DETALHADOS A PREENCHER'!$B$2:$B$105,'PL AQUIS+SERV CGU-R E ITEM'!$B17,'PREÇOS DETALHADOS A PREENCHER'!$D$2:$D$105,U$3)","v":0},{"$f":"SUMIFS('PREÇOS DETALHADOS A PREENCHER'!$K$2:$K$105,'PREÇOS DETALHADOS A PREENCHER'!$B$2:$B$105,'PL AQUIS+SERV CGU-R E ITEM'!$B17,'PREÇOS DETALHADOS A PREENCHER'!$D$2:$D$105,V$3)","v":0},{"$f":"SUMIFS('PREÇOS DETALHADOS A PREENCHER'!$K$2:$K$105,'PREÇOS DETALHADOS A PREENCHER'!$B$2:$B$105,'PL AQUIS+SERV CGU-R E ITEM'!$B17,'PREÇOS DETALHADOS A PREENCHER'!$D$2:$D$105,W$3)","v":0},{"$f":"SUMIFS('PREÇOS DETALHADOS A PREENCHER'!$K$2:$K$105,'PREÇOS DETALHADOS A PREENCHER'!$B$2:$B$105,'PL AQUIS+SERV CGU-R E ITEM'!$B17,'PREÇOS DETALHADOS A PREENCHER'!$D$2:$D$105,X$3)","v":0},{"$f":"SUMIFS('PREÇOS DETALHADOS A PREENCHER'!$R$2:$R$105,'PREÇOS DETALHADOS A PREENCHER'!$B$2:$B$105,'PL AQUIS+SERV CGU-R E ITEM'!$B17,'PREÇOS DETALHADOS A PREENCHER'!$M$2:$M$105,Y$3)","v":0},{"$f":"SUMIFS('PREÇOS DETALHADOS A PREENCHER'!$R$2:$R$105,'PREÇOS DETALHADOS A PREENCHER'!$B$2:$B$105,'PL AQUIS+SERV CGU-R E ITEM'!$B17,'PREÇOS DETALHADOS A PREENCHER'!$M$2:$M$105,Z$3)","v":0},{"$f":"SUMIFS('PREÇOS DETALHADOS A PREENCHER'!$R$2:$R$105,'PREÇOS DETALHADOS A PREENCHER'!$B$2:$B$105,'PL AQUIS+SERV CGU-R E ITEM'!$B17,'PREÇOS DETALHADOS A PREENCHER'!$M$2:$M$105,AA$3)","v":0}]
[null,"RJ",{"$f":"SUMIFS('PREÇOS DETALHADOS A PREENCHER'!$J$2:$J$105,'PREÇOS DETALHADOS A PREENCHER'!$B$2:$B$105,'PL AQUIS+SERV CGU-R E ITEM'!$B18,'PREÇOS DETALHADOS A PREENCHER'!$C$2:$C$105,1)+SUMIFS('PREÇOS DETALHADOS A PREENCHER'!$J$2:$J$105,'PREÇOS DETALHADOS A PREENCHER'!$B$2:$B$105,'PL AQUIS+SERV CGU-R E ITEM'!$B18,'PREÇOS DETALHADOS A PREENCHER'!$C$2:$C$105,2)+SUMIFS('PREÇOS DETALHADOS A PREENCHER'!$J$2:$J$105,'PREÇOS DETALHADOS A PREENCHER'!$B$2:$B$105,'PL AQUIS+SERV CGU-R E ITEM'!$B18,'PREÇOS DETALHADOS A PREENCHER'!$C$2:$C$105,3)+SUMIFS('PREÇOS DETALHADOS A PREENCHER'!$J$2:$J$105,'PREÇOS DETALHADOS A PREENCHER'!$B$2:$B$105,'PL AQUIS+SERV CGU-R E ITEM'!$B18,'PREÇOS DETALHADOS A PREENCHER'!$C$2:$C$105,4)","v":0},{"$f":"SUMIFS('PREÇOS DETALHADOS A PREENCHER'!$O$2:$O$105,'PREÇOS DETALHADOS A PREENCHER'!$B$2:$B$105,Tabela2[[#This Row],[CGU-R]],'PREÇOS DETALHADOS A PREENCHER'!$L$2:$L$105,5)+SUMIFS('PREÇOS DETALHADOS A PREENCHER'!$O$2:$O$105,'PREÇOS DETALHADOS A PREENCHER'!$B$2:$B$105,Tabela2[[#This Row],[CGU-R]],'PREÇOS DETALHADOS A PREENCHER'!$L$2:$L$105,6)+SUMIFS('PREÇOS DETALHADOS A PREENCHER'!$O$2:$O$105,'PREÇOS DETALHADOS A PREENCHER'!$B$2:$B$105,Tabela2[[#This Row],[CGU-R]],'PREÇOS DETALHADOS A PREENCHER'!$L$2:$L$105,7)+SUMIFS('PREÇOS DETALHADOS A PREENCHER'!$O$2:$O$105,'PREÇOS DETALHADOS A PREENCHER'!$B$2:$B$105,Tabela2[[#This Row],[CGU-R]],'PREÇOS DETALHADOS A PREENCHER'!$L$2:$L$105,8)","v":0},12,{"$f":"Tabela2[[#This Row],[MANUTENÇÃO (MÊS)]]*E18","v":0},{"$f":"Tabela2[[#This Row],[EQUIP + INFRA + SUPERV. REMOTA]]+Tabela2[[#This Row],[MANUTENÇÃO (TOTAL)]]","v":0},null,null,{"$f":"SUMIFS('PREÇOS DETALHADOS A PREENCHER'!$K$2:$K$105,'PREÇOS DETALHADOS A PREENCHER'!$B$2:$B$105,'PL AQUIS+SERV CGU-R E ITEM'!$B18,'PREÇOS DETALHADOS A PREENCHER'!$D$2:$D$105,J$3)","v":0},{"$f":"SUMIFS('PREÇOS DETALHADOS A PREENCHER'!$K$2:$K$105,'PREÇOS DETALHADOS A PREENCHER'!$B$2:$B$105,'PL AQUIS+SERV CGU-R E ITEM'!$B18,'PREÇOS DETALHADOS A PREENCHER'!$D$2:$D$105,K$3)","v":0},{"$f":"SUMIFS('PREÇOS DETALHADOS A PREENCHER'!$K$2:$K$105,'PREÇOS DETALHADOS A PREENCHER'!$B$2:$B$105,'PL AQUIS+SERV CGU-R E ITEM'!$B18,'PREÇOS DETALHADOS A PREENCHER'!$D$2:$D$105,L$3)","v":0},{"$f":"SUMIFS('PREÇOS DETALHADOS A PREENCHER'!$K$2:$K$105,'PREÇOS DETALHADOS A PREENCHER'!$B$2:$B$105,'PL AQUIS+SERV CGU-R E ITEM'!$B18,'PREÇOS DETALHADOS A PREENCHER'!$D$2:$D$105,M$3)","v":0},{"$f":"SUMIFS('PREÇOS DETALHADOS A PREENCHER'!$K$2:$K$105,'PREÇOS DETALHADOS A PREENCHER'!$B$2:$B$105,'PL AQUIS+SERV CGU-R E ITEM'!$B18,'PREÇOS DETALHADOS A PREENCHER'!$D$2:$D$105,N$3)","v":0},{"$f":"SUMIFS('PREÇOS DETALHADOS A PREENCHER'!$K$2:$K$105,'PREÇOS DETALHADOS A PREENCHER'!$B$2:$B$105,'PL AQUIS+SERV CGU-R E ITEM'!$B18,'PREÇOS DETALHADOS A PREENCHER'!$D$2:$D$105,O$3)","v":0},{"$f":"SUMIFS('PREÇOS DETALHADOS A PREENCHER'!$K$2:$K$105,'PREÇOS DETALHADOS A PREENCHER'!$B$2:$B$105,'PL AQUIS+SERV CGU-R E ITEM'!$B18,'PREÇOS DETALHADOS A PREENCHER'!$D$2:$D$105,P$3)","v":0},{"$f":"SUMIFS('PREÇOS DETALHADOS A PREENCHER'!$K$2:$K$105,'PREÇOS DETALHADOS A PREENCHER'!$B$2:$B$105,'PL AQUIS+SERV CGU-R E ITEM'!$B18,'PREÇOS DETALHADOS A PREENCHER'!$D$2:$D$105,Q$3)","v":0},{"$f":"SUMIFS('PREÇOS DETALHADOS A PREENCHER'!$K$2:$K$105,'PREÇOS DETALHADOS A PREENCHER'!$B$2:$B$105,'PL AQUIS+SERV CGU-R E ITEM'!$B18,'PREÇOS DETALHADOS A PREENCHER'!$D$2:$D$105,R$3)","v":0},{"$f":"SUMIFS('PREÇOS DETALHADOS A PREENCHER'!$K$2:$K$105,'PREÇOS DETALHADOS A PREENCHER'!$B$2:$B$105,'PL AQUIS+SERV CGU-R E ITEM'!$B18,'PREÇOS DETALHADOS A PREENCHER'!$D$2:$D$105,S$3)","v":0},{"$f":"SUMIFS('PREÇOS DETALHADOS A PREENCHER'!$K$2:$K$105,'PREÇOS DETALHADOS A PREENCHER'!$B$2:$B$105,'PL AQUIS+SERV CGU-R E ITEM'!$B18,'PREÇOS DETALHADOS A PREENCHER'!$D$2:$D$105,T$3)","v":0},{"$f":"SUMIFS('PREÇOS DETALHADOS A PREENCHER'!$K$2:$K$105,'PREÇOS DETALHADOS A PREENCHER'!$B$2:$B$105,'PL AQUIS+SERV CGU-R E ITEM'!$B18,'PREÇOS DETALHADOS A PREENCHER'!$D$2:$D$105,U$3)","v":0},{"$f":"SUMIFS('PREÇOS DETALHADOS A PREENCHER'!$K$2:$K$105,'PREÇOS DETALHADOS A PREENCHER'!$B$2:$B$105,'PL AQUIS+SERV CGU-R E ITEM'!$B18,'PREÇOS DETALHADOS A PREENCHER'!$D$2:$D$105,V$3)","v":0},{"$f":"SUMIFS('PREÇOS DETALHADOS A PREENCHER'!$K$2:$K$105,'PREÇOS DETALHADOS A PREENCHER'!$B$2:$B$105,'PL AQUIS+SERV CGU-R E ITEM'!$B18,'PREÇOS DETALHADOS A PREENCHER'!$D$2:$D$105,W$3)","v":0},{"$f":"SUMIFS('PREÇOS DETALHADOS A PREENCHER'!$K$2:$K$105,'PREÇOS DETALHADOS A PREENCHER'!$B$2:$B$105,'PL AQUIS+SERV CGU-R E ITEM'!$B18,'PREÇOS DETALHADOS A PREENCHER'!$D$2:$D$105,X$3)","v":0},{"$f":"SUMIFS('PREÇOS DETALHADOS A PREENCHER'!$R$2:$R$105,'PREÇOS DETALHADOS A PREENCHER'!$B$2:$B$105,'PL AQUIS+SERV CGU-R E ITEM'!$B18,'PREÇOS DETALHADOS A PREENCHER'!$M$2:$M$105,Y$3)","v":0},{"$f":"SUMIFS('PREÇOS DETALHADOS A PREENCHER'!$R$2:$R$105,'PREÇOS DETALHADOS A PREENCHER'!$B$2:$B$105,'PL AQUIS+SERV CGU-R E ITEM'!$B18,'PREÇOS DETALHADOS A PREENCHER'!$M$2:$M$105,Z$3)","v":0},{"$f":"SUMIFS('PREÇOS DETALHADOS A PREENCHER'!$R$2:$R$105,'PREÇOS DETALHADOS A PREENCHER'!$B$2:$B$105,'PL AQUIS+SERV CGU-R E ITEM'!$B18,'PREÇOS DETALHADOS A PREENCHER'!$M$2:$M$105,AA$3)","v":0}]
[null,"RN",{"$f":"SUMIFS('PREÇOS DETALHADOS A PREENCHER'!$J$2:$J$105,'PREÇOS DETALHADOS A PREENCHER'!$B$2:$B$105,'PL AQUIS+SERV CGU-R E ITEM'!$B19,'PREÇOS DETALHADOS A PREENCHER'!$C$2:$C$105,1)+SUMIFS('PREÇOS DETALHADOS A PREENCHER'!$J$2:$J$105,'PREÇOS DETALHADOS A PREENCHER'!$B$2:$B$105,'PL AQUIS+SERV CGU-R E ITEM'!$B19,'PREÇOS DETALHADOS A PREENCHER'!$C$2:$C$105,2)+SUMIFS('PREÇOS DETALHADOS A PREENCHER'!$J$2:$J$105,'PREÇOS DETALHADOS A PREENCHER'!$B$2:$B$105,'PL AQUIS+SERV CGU-R E ITEM'!$B19,'PREÇOS DETALHADOS A PREENCHER'!$C$2:$C$105,3)+SUMIFS('PREÇOS DETALHADOS A PREENCHER'!$J$2:$J$105,'PREÇOS DETALHADOS A PREENCHER'!$B$2:$B$105,'PL AQUIS+SERV CGU-R E ITEM'!$B19,'PREÇOS DETALHADOS A PREENCHER'!$C$2:$C$105,4)","v":0},{"$f":"SUMIFS('PREÇOS DETALHADOS A PREENCHER'!$O$2:$O$105,'PREÇOS DETALHADOS A PREENCHER'!$B$2:$B$105,Tabela2[[#This Row],[CGU-R]],'PREÇOS DETALHADOS A PREENCHER'!$L$2:$L$105,5)+SUMIFS('PREÇOS DETALHADOS A PREENCHER'!$O$2:$O$105,'PREÇOS DETALHADOS A PREENCHER'!$B$2:$B$105,Tabela2[[#This Row],[CGU-R]],'PREÇOS DETALHADOS A PREENCHER'!$L$2:$L$105,6)+SUMIFS('PREÇOS DETALHADOS A PREENCHER'!$O$2:$O$105,'PREÇOS DETALHADOS A PREENCHER'!$B$2:$B$105,Tabela2[[#This Row],[CGU-R]],'PREÇOS DETALHADOS A PREENCHER'!$L$2:$L$105,7)+SUMIFS('PREÇOS DETALHADOS A PREENCHER'!$O$2:$O$105,'PREÇOS DETALHADOS A PREENCHER'!$B$2:$B$105,Tabela2[[#This Row],[CGU-R]],'PREÇOS DETALHADOS A PREENCHER'!$L$2:$L$105,8)","v":0},12,{"$f":"Tabela2[[#This Row],[MANUTENÇÃO (MÊS)]]*E19","v":0},{"$f":"Tabela2[[#This Row],[EQUIP + INFRA + SUPERV. REMOTA]]+Tabela2[[#This Row],[MANUTENÇÃO (TOTAL)]]","v":0},null,null,{"$f":"SUMIFS('PREÇOS DETALHADOS A PREENCHER'!$K$2:$K$105,'PREÇOS DETALHADOS A PREENCHER'!$B$2:$B$105,'PL AQUIS+SERV CGU-R E ITEM'!$B19,'PREÇOS DETALHADOS A PREENCHER'!$D$2:$D$105,J$3)","v":0},{"$f":"SUMIFS('PREÇOS DETALHADOS A PREENCHER'!$K$2:$K$105,'PREÇOS DETALHADOS A PREENCHER'!$B$2:$B$105,'PL AQUIS+SERV CGU-R E ITEM'!$B19,'PREÇOS DETALHADOS A PREENCHER'!$D$2:$D$105,K$3)","v":0},{"$f":"SUMIFS('PREÇOS DETALHADOS A PREENCHER'!$K$2:$K$105,'PREÇOS DETALHADOS A PREENCHER'!$B$2:$B$105,'PL AQUIS+SERV CGU-R E ITEM'!$B19,'PREÇOS DETALHADOS A PREENCHER'!$D$2:$D$105,L$3)","v":0},{"$f":"SUMIFS('PREÇOS DETALHADOS A PREENCHER'!$K$2:$K$105,'PREÇOS DETALHADOS A PREENCHER'!$B$2:$B$105,'PL AQUIS+SERV CGU-R E ITEM'!$B19,'PREÇOS DETALHADOS A PREENCHER'!$D$2:$D$105,M$3)","v":0},{"$f":"SUMIFS('PREÇOS DETALHADOS A PREENCHER'!$K$2:$K$105,'PREÇOS DETALHADOS A PREENCHER'!$B$2:$B$105,'PL AQUIS+SERV CGU-R E ITEM'!$B19,'PREÇOS DETALHADOS A PREENCHER'!$D$2:$D$105,N$3)","v":0},{"$f":"SUMIFS('PREÇOS DETALHADOS A PREENCHER'!$K$2:$K$105,'PREÇOS DETALHADOS A PREENCHER'!$B$2:$B$105,'PL AQUIS+SERV CGU-R E ITEM'!$B19,'PREÇOS DETALHADOS A PREENCHER'!$D$2:$D$105,O$3)","v":0},{"$f":"SUMIFS('PREÇOS DETALHADOS A PREENCHER'!$K$2:$K$105,'PREÇOS DETALHADOS A PREENCHER'!$B$2:$B$105,'PL AQUIS+SERV CGU-R E ITEM'!$B19,'PREÇOS DETALHADOS A PREENCHER'!$D$2:$D$105,P$3)","v":0},{"$f":"SUMIFS('PREÇOS DETALHADOS A PREENCHER'!$K$2:$K$105,'PREÇOS DETALHADOS A PREENCHER'!$B$2:$B$105,'PL AQUIS+SERV CGU-R E ITEM'!$B19,'PREÇOS DETALHADOS A PREENCHER'!$D$2:$D$105,Q$3)","v":0},{"$f":"SUMIFS('PREÇOS DETALHADOS A PREENCHER'!$K$2:$K$105,'PREÇOS DETALHADOS A PREENCHER'!$B$2:$B$105,'PL AQUIS+SERV CGU-R E ITEM'!$B19,'PREÇOS DETALHADOS A PREENCHER'!$D$2:$D$105,R$3)","v":0},{"$f":"SUMIFS('PREÇOS DETALHADOS A PREENCHER'!$K$2:$K$105,'PREÇOS DETALHADOS A PREENCHER'!$B$2:$B$105,'PL AQUIS+SERV CGU-R E ITEM'!$B19,'PREÇOS DETALHADOS A PREENCHER'!$D$2:$D$105,S$3)","v":0},{"$f":"SUMIFS('PREÇOS DETALHADOS A PREENCHER'!$K$2:$K$105,'PREÇOS DETALHADOS A PREENCHER'!$B$2:$B$105,'PL AQUIS+SERV CGU-R E ITEM'!$B19,'PREÇOS DETALHADOS A PREENCHER'!$D$2:$D$105,T$3)","v":0},{"$f":"SUMIFS('PREÇOS DETALHADOS A PREENCHER'!$K$2:$K$105,'PREÇOS DETALHADOS A PREENCHER'!$B$2:$B$105,'PL AQUIS+SERV CGU-R E ITEM'!$B19,'PREÇOS DETALHADOS A PREENCHER'!$D$2:$D$105,U$3)","v":0},{"$f":"SUMIFS('PREÇOS DETALHADOS A PREENCHER'!$K$2:$K$105,'PREÇOS DETALHADOS A PREENCHER'!$B$2:$B$105,'PL AQUIS+SERV CGU-R E ITEM'!$B19,'PREÇOS DETALHADOS A PREENCHER'!$D$2:$D$105,V$3)","v":0},{"$f":"SUMIFS('PREÇOS DETALHADOS A PREENCHER'!$K$2:$K$105,'PREÇOS DETALHADOS A PREENCHER'!$B$2:$B$105,'PL AQUIS+SERV CGU-R E ITEM'!$B19,'PREÇOS DETALHADOS A PREENCHER'!$D$2:$D$105,W$3)","v":0},{"$f":"SUMIFS('PREÇOS DETALHADOS A PREENCHER'!$K$2:$K$105,'PREÇOS DETALHADOS A PREENCHER'!$B$2:$B$105,'PL AQUIS+SERV CGU-R E ITEM'!$B19,'PREÇOS DETALHADOS A PREENCHER'!$D$2:$D$105,X$3)","v":0},{"$f":"SUMIFS('PREÇOS DETALHADOS A PREENCHER'!$R$2:$R$105,'PREÇOS DETALHADOS A PREENCHER'!$B$2:$B$105,'PL AQUIS+SERV CGU-R E ITEM'!$B19,'PREÇOS DETALHADOS A PREENCHER'!$M$2:$M$105,Y$3)","v":0},{"$f":"SUMIFS('PREÇOS DETALHADOS A PREENCHER'!$R$2:$R$105,'PREÇOS DETALHADOS A PREENCHER'!$B$2:$B$105,'PL AQUIS+SERV CGU-R E ITEM'!$B19,'PREÇOS DETALHADOS A PREENCHER'!$M$2:$M$105,Z$3)","v":0},{"$f":"SUMIFS('PREÇOS DETALHADOS A PREENCHER'!$R$2:$R$105,'PREÇOS DETALHADOS A PREENCHER'!$B$2:$B$105,'PL AQUIS+SERV CGU-R E ITEM'!$B19,'PREÇOS DETALHADOS A PREENCHER'!$M$2:$M$105,AA$3)","v":0}]
[null,"RO",{"$f":"SUMIFS('PREÇOS DETALHADOS A PREENCHER'!$J$2:$J$105,'PREÇOS DETALHADOS A PREENCHER'!$B$2:$B$105,'PL AQUIS+SERV CGU-R E ITEM'!$B20,'PREÇOS DETALHADOS A PREENCHER'!$C$2:$C$105,1)+SUMIFS('PREÇOS DETALHADOS A PREENCHER'!$J$2:$J$105,'PREÇOS DETALHADOS A PREENCHER'!$B$2:$B$105,'PL AQUIS+SERV CGU-R E ITEM'!$B20,'PREÇOS DETALHADOS A PREENCHER'!$C$2:$C$105,2)+SUMIFS('PREÇOS DETALHADOS A PREENCHER'!$J$2:$J$105,'PREÇOS DETALHADOS A PREENCHER'!$B$2:$B$105,'PL AQUIS+SERV CGU-R E ITEM'!$B20,'PREÇOS DETALHADOS A PREENCHER'!$C$2:$C$105,3)+SUMIFS('PREÇOS DETALHADOS A PREENCHER'!$J$2:$J$105,'PREÇOS DETALHADOS A PREENCHER'!$B$2:$B$105,'PL AQUIS+SERV CGU-R E ITEM'!$B20,'PREÇOS DETALHADOS A PREENCHER'!$C$2:$C$105,4)","v":0},{"$f":"SUMIFS('PREÇOS DETALHADOS A PREENCHER'!$O$2:$O$105,'PREÇOS DETALHADOS A PREENCHER'!$B$2:$B$105,Tabela2[[#This Row],[CGU-R]],'PREÇOS DETALHADOS A PREENCHER'!$L$2:$L$105,5)+SUMIFS('PREÇOS DETALHADOS A PREENCHER'!$O$2:$O$105,'PREÇOS DETALHADOS A PREENCHER'!$B$2:$B$105,Tabela2[[#This Row],[CGU-R]],'PREÇOS DETALHADOS A PREENCHER'!$L$2:$L$105,6)+SUMIFS('PREÇOS DETALHADOS A PREENCHER'!$O$2:$O$105,'PREÇOS DETALHADOS A PREENCHER'!$B$2:$B$105,Tabela2[[#This Row],[CGU-R]],'PREÇOS DETALHADOS A PREENCHER'!$L$2:$L$105,7)+SUMIFS('PREÇOS DETALHADOS A PREENCHER'!$O$2:$O$105,'PREÇOS DETALHADOS A PREENCHER'!$B$2:$B$105,Tabela2[[#This Row],[CGU-R]],'PREÇOS DETALHADOS A PREENCHER'!$L$2:$L$105,8)","v":0},12,{"$f":"Tabela2[[#This Row],[MANUTENÇÃO (MÊS)]]*E20","v":0},{"$f":"Tabela2[[#This Row],[EQUIP + INFRA + SUPERV. REMOTA]]+Tabela2[[#This Row],[MANUTENÇÃO (TOTAL)]]","v":0},null,null,{"$f":"SUMIFS('PREÇOS DETALHADOS A PREENCHER'!$K$2:$K$105,'PREÇOS DETALHADOS A PREENCHER'!$B$2:$B$105,'PL AQUIS+SERV CGU-R E ITEM'!$B20,'PREÇOS DETALHADOS A PREENCHER'!$D$2:$D$105,J$3)","v":0},{"$f":"SUMIFS('PREÇOS DETALHADOS A PREENCHER'!$K$2:$K$105,'PREÇOS DETALHADOS A PREENCHER'!$B$2:$B$105,'PL AQUIS+SERV CGU-R E ITEM'!$B20,'PREÇOS DETALHADOS A PREENCHER'!$D$2:$D$105,K$3)","v":0},{"$f":"SUMIFS('PREÇOS DETALHADOS A PREENCHER'!$K$2:$K$105,'PREÇOS DETALHADOS A PREENCHER'!$B$2:$B$105,'PL AQUIS+SERV CGU-R E ITEM'!$B20,'PREÇOS DETALHADOS A PREENCHER'!$D$2:$D$105,L$3)","v":0},{"$f":"SUMIFS('PREÇOS DETALHADOS A PREENCHER'!$K$2:$K$105,'PREÇOS DETALHADOS A PREENCHER'!$B$2:$B$105,'PL AQUIS+SERV CGU-R E ITEM'!$B20,'PREÇOS DETALHADOS A PREENCHER'!$D$2:$D$105,M$3)","v":0},{"$f":"SUMIFS('PREÇOS DETALHADOS A PREENCHER'!$K$2:$K$105,'PREÇOS DETALHADOS A PREENCHER'!$B$2:$B$105,'PL AQUIS+SERV CGU-R E ITEM'!$B20,'PREÇOS DETALHADOS A PREENCHER'!$D$2:$D$105,N$3)","v":0},{"$f":"SUMIFS('PREÇOS DETALHADOS A PREENCHER'!$K$2:$K$105,'PREÇOS DETALHADOS A PREENCHER'!$B$2:$B$105,'PL AQUIS+SERV CGU-R E ITEM'!$B20,'PREÇOS DETALHADOS A PREENCHER'!$D$2:$D$105,O$3)","v":0},{"$f":"SUMIFS('PREÇOS DETALHADOS A PREENCHER'!$K$2:$K$105,'PREÇOS DETALHADOS A PREENCHER'!$B$2:$B$105,'PL AQUIS+SERV CGU-R E ITEM'!$B20,'PREÇOS DETALHADOS A PREENCHER'!$D$2:$D$105,P$3)","v":0},{"$f":"SUMIFS('PREÇOS DETALHADOS A PREENCHER'!$K$2:$K$105,'PREÇOS DETALHADOS A PREENCHER'!$B$2:$B$105,'PL AQUIS+SERV CGU-R E ITEM'!$B20,'PREÇOS DETALHADOS A PREENCHER'!$D$2:$D$105,Q$3)","v":0},{"$f":"SUMIFS('PREÇOS DETALHADOS A PREENCHER'!$K$2:$K$105,'PREÇOS DETALHADOS A PREENCHER'!$B$2:$B$105,'PL AQUIS+SERV CGU-R E ITEM'!$B20,'PREÇOS DETALHADOS A PREENCHER'!$D$2:$D$105,R$3)","v":0},{"$f":"SUMIFS('PREÇOS DETALHADOS A PREENCHER'!$K$2:$K$105,'PREÇOS DETALHADOS A PREENCHER'!$B$2:$B$105,'PL AQUIS+SERV CGU-R E ITEM'!$B20,'PREÇOS DETALHADOS A PREENCHER'!$D$2:$D$105,S$3)","v":0},{"$f":"SUMIFS('PREÇOS DETALHADOS A PREENCHER'!$K$2:$K$105,'PREÇOS DETALHADOS A PREENCHER'!$B$2:$B$105,'PL AQUIS+SERV CGU-R E ITEM'!$B20,'PREÇOS DETALHADOS A PREENCHER'!$D$2:$D$105,T$3)","v":0},{"$f":"SUMIFS('PREÇOS DETALHADOS A PREENCHER'!$K$2:$K$105,'PREÇOS DETALHADOS A PREENCHER'!$B$2:$B$105,'PL AQUIS+SERV CGU-R E ITEM'!$B20,'PREÇOS DETALHADOS A PREENCHER'!$D$2:$D$105,U$3)","v":0},{"$f":"SUMIFS('PREÇOS DETALHADOS A PREENCHER'!$K$2:$K$105,'PREÇOS DETALHADOS A PREENCHER'!$B$2:$B$105,'PL AQUIS+SERV CGU-R E ITEM'!$B20,'PREÇOS DETALHADOS A PREENCHER'!$D$2:$D$105,V$3)","v":0},{"$f":"SUMIFS('PREÇOS DETALHADOS A PREENCHER'!$K$2:$K$105,'PREÇOS DETALHADOS A PREENCHER'!$B$2:$B$105,'PL AQUIS+SERV CGU-R E ITEM'!$B20,'PREÇOS DETALHADOS A PREENCHER'!$D$2:$D$105,W$3)","v":0},{"$f":"SUMIFS('PREÇOS DETALHADOS A PREENCHER'!$K$2:$K$105,'PREÇOS DETALHADOS A PREENCHER'!$B$2:$B$105,'PL AQUIS+SERV CGU-R E ITEM'!$B20,'PREÇOS DETALHADOS A PREENCHER'!$D$2:$D$105,X$3)","v":0},{"$f":"SUMIFS('PREÇOS DETALHADOS A PREENCHER'!$R$2:$R$105,'PREÇOS DETALHADOS A PREENCHER'!$B$2:$B$105,'PL AQUIS+SERV CGU-R E ITEM'!$B20,'PREÇOS DETALHADOS A PREENCHER'!$M$2:$M$105,Y$3)","v":0},{"$f":"SUMIFS('PREÇOS DETALHADOS A PREENCHER'!$R$2:$R$105,'PREÇOS DETALHADOS A PREENCHER'!$B$2:$B$105,'PL AQUIS+SERV CGU-R E ITEM'!$B20,'PREÇOS DETALHADOS A PREENCHER'!$M$2:$M$105,Z$3)","v":0},{"$f":"SUMIFS('PREÇOS DETALHADOS A PREENCHER'!$R$2:$R$105,'PREÇOS DETALHADOS A PREENCHER'!$B$2:$B$105,'PL AQUIS+SERV CGU-R E ITEM'!$B20,'PREÇOS DETALHADOS A PREENCHER'!$M$2:$M$105,AA$3)","v":0}]
[null,"RR",{"$f":"SUMIFS('PREÇOS DETALHADOS A PREENCHER'!$J$2:$J$105,'PREÇOS DETALHADOS A PREENCHER'!$B$2:$B$105,'PL AQUIS+SERV CGU-R E ITEM'!$B21,'PREÇOS DETALHADOS A PREENCHER'!$C$2:$C$105,1)+SUMIFS('PREÇOS DETALHADOS A PREENCHER'!$J$2:$J$105,'PREÇOS DETALHADOS A PREENCHER'!$B$2:$B$105,'PL AQUIS+SERV CGU-R E ITEM'!$B21,'PREÇOS DETALHADOS A PREENCHER'!$C$2:$C$105,2)+SUMIFS('PREÇOS DETALHADOS A PREENCHER'!$J$2:$J$105,'PREÇOS DETALHADOS A PREENCHER'!$B$2:$B$105,'PL AQUIS+SERV CGU-R E ITEM'!$B21,'PREÇOS DETALHADOS A PREENCHER'!$C$2:$C$105,3)+SUMIFS('PREÇOS DETALHADOS A PREENCHER'!$J$2:$J$105,'PREÇOS DETALHADOS A PREENCHER'!$B$2:$B$105,'PL AQUIS+SERV CGU-R E ITEM'!$B21,'PREÇOS DETALHADOS A PREENCHER'!$C$2:$C$105,4)","v":0},{"$f":"SUMIFS('PREÇOS DETALHADOS A PREENCHER'!$O$2:$O$105,'PREÇOS DETALHADOS A PREENCHER'!$B$2:$B$105,Tabela2[[#This Row],[CGU-R]],'PREÇOS DETALHADOS A PREENCHER'!$L$2:$L$105,5)+SUMIFS('PREÇOS DETALHADOS A PREENCHER'!$O$2:$O$105,'PREÇOS DETALHADOS A PREENCHER'!$B$2:$B$105,Tabela2[[#This Row],[CGU-R]],'PREÇOS DETALHADOS A PREENCHER'!$L$2:$L$105,6)+SUMIFS('PREÇOS DETALHADOS A PREENCHER'!$O$2:$O$105,'PREÇOS DETALHADOS A PREENCHER'!$B$2:$B$105,Tabela2[[#This Row],[CGU-R]],'PREÇOS DETALHADOS A PREENCHER'!$L$2:$L$105,7)+SUMIFS('PREÇOS DETALHADOS A PREENCHER'!$O$2:$O$105,'PREÇOS DETALHADOS A PREENCHER'!$B$2:$B$105,Tabela2[[#This Row],[CGU-R]],'PREÇOS DETALHADOS A PREENCHER'!$L$2:$L$105,8)","v":0},12,{"$f":"Tabela2[[#This Row],[MANUTENÇÃO (MÊS)]]*E21","v":0},{"$f":"Tabela2[[#This Row],[EQUIP + INFRA + SUPERV. REMOTA]]+Tabela2[[#This Row],[MANUTENÇÃO (TOTAL)]]","v":0},null,null,{"$f":"SUMIFS('PREÇOS DETALHADOS A PREENCHER'!$K$2:$K$105,'PREÇOS DETALHADOS A PREENCHER'!$B$2:$B$105,'PL AQUIS+SERV CGU-R E ITEM'!$B21,'PREÇOS DETALHADOS A PREENCHER'!$D$2:$D$105,J$3)","v":0},{"$f":"SUMIFS('PREÇOS DETALHADOS A PREENCHER'!$K$2:$K$105,'PREÇOS DETALHADOS A PREENCHER'!$B$2:$B$105,'PL AQUIS+SERV CGU-R E ITEM'!$B21,'PREÇOS DETALHADOS A PREENCHER'!$D$2:$D$105,K$3)","v":0},{"$f":"SUMIFS('PREÇOS DETALHADOS A PREENCHER'!$K$2:$K$105,'PREÇOS DETALHADOS A PREENCHER'!$B$2:$B$105,'PL AQUIS+SERV CGU-R E ITEM'!$B21,'PREÇOS DETALHADOS A PREENCHER'!$D$2:$D$105,L$3)","v":0},{"$f":"SUMIFS('PREÇOS DETALHADOS A PREENCHER'!$K$2:$K$105,'PREÇOS DETALHADOS A PREENCHER'!$B$2:$B$105,'PL AQUIS+SERV CGU-R E ITEM'!$B21,'PREÇOS DETALHADOS A PREENCHER'!$D$2:$D$105,M$3)","v":0},{"$f":"SUMIFS('PREÇOS DETALHADOS A PREENCHER'!$K$2:$K$105,'PREÇOS DETALHADOS A PREENCHER'!$B$2:$B$105,'PL AQUIS+SERV CGU-R E ITEM'!$B21,'PREÇOS DETALHADOS A PREENCHER'!$D$2:$D$105,N$3)","v":0},{"$f":"SUMIFS('PREÇOS DETALHADOS A PREENCHER'!$K$2:$K$105,'PREÇOS DETALHADOS A PREENCHER'!$B$2:$B$105,'PL AQUIS+SERV CGU-R E ITEM'!$B21,'PREÇOS DETALHADOS A PREENCHER'!$D$2:$D$105,O$3)","v":0},{"$f":"SUMIFS('PREÇOS DETALHADOS A PREENCHER'!$K$2:$K$105,'PREÇOS DETALHADOS A PREENCHER'!$B$2:$B$105,'PL AQUIS+SERV CGU-R E ITEM'!$B21,'PREÇOS DETALHADOS A PREENCHER'!$D$2:$D$105,P$3)","v":0},{"$f":"SUMIFS('PREÇOS DETALHADOS A PREENCHER'!$K$2:$K$105,'PREÇOS DETALHADOS A PREENCHER'!$B$2:$B$105,'PL AQUIS+SERV CGU-R E ITEM'!$B21,'PREÇOS DETALHADOS A PREENCHER'!$D$2:$D$105,Q$3)","v":0},{"$f":"SUMIFS('PREÇOS DETALHADOS A PREENCHER'!$K$2:$K$105,'PREÇOS DETALHADOS A PREENCHER'!$B$2:$B$105,'PL AQUIS+SERV CGU-R E ITEM'!$B21,'PREÇOS DETALHADOS A PREENCHER'!$D$2:$D$105,R$3)","v":0},{"$f":"SUMIFS('PREÇOS DETALHADOS A PREENCHER'!$K$2:$K$105,'PREÇOS DETALHADOS A PREENCHER'!$B$2:$B$105,'PL AQUIS+SERV CGU-R E ITEM'!$B21,'PREÇOS DETALHADOS A PREENCHER'!$D$2:$D$105,S$3)","v":0},{"$f":"SUMIFS('PREÇOS DETALHADOS A PREENCHER'!$K$2:$K$105,'PREÇOS DETALHADOS A PREENCHER'!$B$2:$B$105,'PL AQUIS+SERV CGU-R E ITEM'!$B21,'PREÇOS DETALHADOS A PREENCHER'!$D$2:$D$105,T$3)","v":0},{"$f":"SUMIFS('PREÇOS DETALHADOS A PREENCHER'!$K$2:$K$105,'PREÇOS DETALHADOS A PREENCHER'!$B$2:$B$105,'PL AQUIS+SERV CGU-R E ITEM'!$B21,'PREÇOS DETALHADOS A PREENCHER'!$D$2:$D$105,U$3)","v":0},{"$f":"SUMIFS('PREÇOS DETALHADOS A PREENCHER'!$K$2:$K$105,'PREÇOS DETALHADOS A PREENCHER'!$B$2:$B$105,'PL AQUIS+SERV CGU-R E ITEM'!$B21,'PREÇOS DETALHADOS A PREENCHER'!$D$2:$D$105,V$3)","v":0},{"$f":"SUMIFS('PREÇOS DETALHADOS A PREENCHER'!$K$2:$K$105,'PREÇOS DETALHADOS A PREENCHER'!$B$2:$B$105,'PL AQUIS+SERV CGU-R E ITEM'!$B21,'PREÇOS DETALHADOS A PREENCHER'!$D$2:$D$105,W$3)","v":0},{"$f":"SUMIFS('PREÇOS DETALHADOS A PREENCHER'!$K$2:$K$105,'PREÇOS DETALHADOS A PREENCHER'!$B$2:$B$105,'PL AQUIS+SERV CGU-R E ITEM'!$B21,'PREÇOS DETALHADOS A PREENCHER'!$D$2:$D$105,X$3)","v":0},{"$f":"SUMIFS('PREÇOS DETALHADOS A PREENCHER'!$R$2:$R$105,'PREÇOS DETALHADOS A PREENCHER'!$B$2:$B$105,'PL AQUIS+SERV CGU-R E ITEM'!$B21,'PREÇOS DETALHADOS A PREENCHER'!$M$2:$M$105,Y$3)","v":0},{"$f":"SUMIFS('PREÇOS DETALHADOS A PREENCHER'!$R$2:$R$105,'PREÇOS DETALHADOS A PREENCHER'!$B$2:$B$105,'PL AQUIS+SERV CGU-R E ITEM'!$B21,'PREÇOS DETALHADOS A PREENCHER'!$M$2:$M$105,Z$3)","v":0},{"$f":"SUMIFS('PREÇOS DETALHADOS A PREENCHER'!$R$2:$R$105,'PREÇOS DETALHADOS A PREENCHER'!$B$2:$B$105,'PL AQUIS+SERV CGU-R E ITEM'!$B21,'PREÇOS DETALHADOS A PREENCHER'!$M$2:$M$105,AA$3)","v":0}]
[null,"RS",{"$f":"SUMIFS('PREÇOS DETALHADOS A PREENCHER'!$J$2:$J$105,'PREÇOS DETALHADOS A PREENCHER'!$B$2:$B$105,'PL AQUIS+SERV CGU-R E ITEM'!$B22,'PREÇOS DETALHADOS A PREENCHER'!$C$2:$C$105,1)+SUMIFS('PREÇOS DETALHADOS A PREENCHER'!$J$2:$J$105,'PREÇOS DETALHADOS A PREENCHER'!$B$2:$B$105,'PL AQUIS+SERV CGU-R E ITEM'!$B22,'PREÇOS DETALHADOS A PREENCHER'!$C$2:$C$105,2)+SUMIFS('PREÇOS DETALHADOS A PREENCHER'!$J$2:$J$105,'PREÇOS DETALHADOS A PREENCHER'!$B$2:$B$105,'PL AQUIS+SERV CGU-R E ITEM'!$B22,'PREÇOS DETALHADOS A PREENCHER'!$C$2:$C$105,3)+SUMIFS('PREÇOS DETALHADOS A PREENCHER'!$J$2:$J$105,'PREÇOS DETALHADOS A PREENCHER'!$B$2:$B$105,'PL AQUIS+SERV CGU-R E ITEM'!$B22,'PREÇOS DETALHADOS A PREENCHER'!$C$2:$C$105,4)","v":0},{"$f":"SUMIFS('PREÇOS DETALHADOS A PREENCHER'!$O$2:$O$105,'PREÇOS DETALHADOS A PREENCHER'!$B$2:$B$105,Tabela2[[#This Row],[CGU-R]],'PREÇOS DETALHADOS A PREENCHER'!$L$2:$L$105,5)+SUMIFS('PREÇOS DETALHADOS A PREENCHER'!$O$2:$O$105,'PREÇOS DETALHADOS A PREENCHER'!$B$2:$B$105,Tabela2[[#This Row],[CGU-R]],'PREÇOS DETALHADOS A PREENCHER'!$L$2:$L$105,6)+SUMIFS('PREÇOS DETALHADOS A PREENCHER'!$O$2:$O$105,'PREÇOS DETALHADOS A PREENCHER'!$B$2:$B$105,Tabela2[[#This Row],[CGU-R]],'PREÇOS DETALHADOS A PREENCHER'!$L$2:$L$105,7)+SUMIFS('PREÇOS DETALHADOS A PREENCHER'!$O$2:$O$105,'PREÇOS DETALHADOS A PREENCHER'!$B$2:$B$105,Tabela2[[#This Row],[CGU-R]],'PREÇOS DETALHADOS A PREENCHER'!$L$2:$L$105,8)","v":0},12,{"$f":"Tabela2[[#This Row],[MANUTENÇÃO (MÊS)]]*E22","v":0},{"$f":"Tabela2[[#This Row],[EQUIP + INFRA + SUPERV. REMOTA]]+Tabela2[[#This Row],[MANUTENÇÃO (TOTAL)]]","v":0},null,null,{"$f":"SUMIFS('PREÇOS DETALHADOS A PREENCHER'!$K$2:$K$105,'PREÇOS DETALHADOS A PREENCHER'!$B$2:$B$105,'PL AQUIS+SERV CGU-R E ITEM'!$B22,'PREÇOS DETALHADOS A PREENCHER'!$D$2:$D$105,J$3)","v":0},{"$f":"SUMIFS('PREÇOS DETALHADOS A PREENCHER'!$K$2:$K$105,'PREÇOS DETALHADOS A PREENCHER'!$B$2:$B$105,'PL AQUIS+SERV CGU-R E ITEM'!$B22,'PREÇOS DETALHADOS A PREENCHER'!$D$2:$D$105,K$3)","v":0},{"$f":"SUMIFS('PREÇOS DETALHADOS A PREENCHER'!$K$2:$K$105,'PREÇOS DETALHADOS A PREENCHER'!$B$2:$B$105,'PL AQUIS+SERV CGU-R E ITEM'!$B22,'PREÇOS DETALHADOS A PREENCHER'!$D$2:$D$105,L$3)","v":0},{"$f":"SUMIFS('PREÇOS DETALHADOS A PREENCHER'!$K$2:$K$105,'PREÇOS DETALHADOS A PREENCHER'!$B$2:$B$105,'PL AQUIS+SERV CGU-R E ITEM'!$B22,'PREÇOS DETALHADOS A PREENCHER'!$D$2:$D$105,M$3)","v":0},{"$f":"SUMIFS('PREÇOS DETALHADOS A PREENCHER'!$K$2:$K$105,'PREÇOS DETALHADOS A PREENCHER'!$B$2:$B$105,'PL AQUIS+SERV CGU-R E ITEM'!$B22,'PREÇOS DETALHADOS A PREENCHER'!$D$2:$D$105,N$3)","v":0},{"$f":"SUMIFS('PREÇOS DETALHADOS A PREENCHER'!$K$2:$K$105,'PREÇOS DETALHADOS A PREENCHER'!$B$2:$B$105,'PL AQUIS+SERV CGU-R E ITEM'!$B22,'PREÇOS DETALHADOS A PREENCHER'!$D$2:$D$105,O$3)","v":0},{"$f":"SUMIFS('PREÇOS DETALHADOS A PREENCHER'!$K$2:$K$105,'PREÇOS DETALHADOS A PREENCHER'!$B$2:$B$105,'PL AQUIS+SERV CGU-R E ITEM'!$B22,'PREÇOS DETALHADOS A PREENCHER'!$D$2:$D$105,P$3)","v":0},{"$f":"SUMIFS('PREÇOS DETALHADOS A PREENCHER'!$K$2:$K$105,'PREÇOS DETALHADOS A PREENCHER'!$B$2:$B$105,'PL AQUIS+SERV CGU-R E ITEM'!$B22,'PREÇOS DETALHADOS A PREENCHER'!$D$2:$D$105,Q$3)","v":0},{"$f":"SUMIFS('PREÇOS DETALHADOS A PREENCHER'!$K$2:$K$105,'PREÇOS DETALHADOS A PREENCHER'!$B$2:$B$105,'PL AQUIS+SERV CGU-R E ITEM'!$B22,'PREÇOS DETALHADOS A PREENCHER'!$D$2:$D$105,R$3)","v":0},{"$f":"SUMIFS('PREÇOS DETALHADOS A PREENCHER'!$K$2:$K$105,'PREÇOS DETALHADOS A PREENCHER'!$B$2:$B$105,'PL AQUIS+SERV CGU-R E ITEM'!$B22,'PREÇOS DETALHADOS A PREENCHER'!$D$2:$D$105,S$3)","v":0},{"$f":"SUMIFS('PREÇOS DETALHADOS A PREENCHER'!$K$2:$K$105,'PREÇOS DETALHADOS A PREENCHER'!$B$2:$B$105,'PL AQUIS+SERV CGU-R E ITEM'!$B22,'PREÇOS DETALHADOS A PREENCHER'!$D$2:$D$105,T$3)","v":0},{"$f":"SUMIFS('PREÇOS DETALHADOS A PREENCHER'!$K$2:$K$105,'PREÇOS DETALHADOS A PREENCHER'!$B$2:$B$105,'PL AQUIS+SERV CGU-R E ITEM'!$B22,'PREÇOS DETALHADOS A PREENCHER'!$D$2:$D$105,U$3)","v":0},{"$f":"SUMIFS('PREÇOS DETALHADOS A PREENCHER'!$K$2:$K$105,'PREÇOS DETALHADOS A PREENCHER'!$B$2:$B$105,'PL AQUIS+SERV CGU-R E ITEM'!$B22,'PREÇOS DETALHADOS A PREENCHER'!$D$2:$D$105,V$3)","v":0},{"$f":"SUMIFS('PREÇOS DETALHADOS A PREENCHER'!$K$2:$K$105,'PREÇOS DETALHADOS A PREENCHER'!$B$2:$B$105,'PL AQUIS+SERV CGU-R E ITEM'!$B22,'PREÇOS DETALHADOS A PREENCHER'!$D$2:$D$105,W$3)","v":0},{"$f":"SUMIFS('PREÇOS DETALHADOS A PREENCHER'!$K$2:$K$105,'PREÇOS DETALHADOS A PREENCHER'!$B$2:$B$105,'PL AQUIS+SERV CGU-R E ITEM'!$B22,'PREÇOS DETALHADOS A PREENCHER'!$D$2:$D$105,X$3)","v":0},{"$f":"SUMIFS('PREÇOS DETALHADOS A PREENCHER'!$R$2:$R$105,'PREÇOS DETALHADOS A PREENCHER'!$B$2:$B$105,'PL AQUIS+SERV CGU-R E ITEM'!$B22,'PREÇOS DETALHADOS A PREENCHER'!$M$2:$M$105,Y$3)","v":0},{"$f":"SUMIFS('PREÇOS DETALHADOS A PREENCHER'!$R$2:$R$105,'PREÇOS DETALHADOS A PREENCHER'!$B$2:$B$105,'PL AQUIS+SERV CGU-R E ITEM'!$B22,'PREÇOS DETALHADOS A PREENCHER'!$M$2:$M$105,Z$3)","v":0},{"$f":"SUMIFS('PREÇOS DETALHADOS A PREENCHER'!$R$2:$R$105,'PREÇOS DETALHADOS A PREENCHER'!$B$2:$B$105,'PL AQUIS+SERV CGU-R E ITEM'!$B22,'PREÇOS DETALHADOS A PREENCHER'!$M$2:$M$105,AA$3)","v":0}]
[null,"SC",{"$f":"SUMIFS('PREÇOS DETALHADOS A PREENCHER'!$J$2:$J$105,'PREÇOS DETALHADOS A PREENCHER'!$B$2:$B$105,'PL AQUIS+SERV CGU-R E ITEM'!$B23,'PREÇOS DETALHADOS A PREENCHER'!$C$2:$C$105,1)+SUMIFS('PREÇOS DETALHADOS A PREENCHER'!$J$2:$J$105,'PREÇOS DETALHADOS A PREENCHER'!$B$2:$B$105,'PL AQUIS+SERV CGU-R E ITEM'!$B23,'PREÇOS DETALHADOS A PREENCHER'!$C$2:$C$105,2)+SUMIFS('PREÇOS DETALHADOS A PREENCHER'!$J$2:$J$105,'PREÇOS DETALHADOS A PREENCHER'!$B$2:$B$105,'PL AQUIS+SERV CGU-R E ITEM'!$B23,'PREÇOS DETALHADOS A PREENCHER'!$C$2:$C$105,3)+SUMIFS('PREÇOS DETALHADOS A PREENCHER'!$J$2:$J$105,'PREÇOS DETALHADOS A PREENCHER'!$B$2:$B$105,'PL AQUIS+SERV CGU-R E ITEM'!$B23,'PREÇOS DETALHADOS A PREENCHER'!$C$2:$C$105,4)","v":0},{"$f":"SUMIFS('PREÇOS DETALHADOS A PREENCHER'!$O$2:$O$105,'PREÇOS DETALHADOS A PREENCHER'!$B$2:$B$105,Tabela2[[#This Row],[CGU-R]],'PREÇOS DETALHADOS A PREENCHER'!$L$2:$L$105,5)+SUMIFS('PREÇOS DETALHADOS A PREENCHER'!$O$2:$O$105,'PREÇOS DETALHADOS A PREENCHER'!$B$2:$B$105,Tabela2[[#This Row],[CGU-R]],'PREÇOS DETALHADOS A PREENCHER'!$L$2:$L$105,6)+SUMIFS('PREÇOS DETALHADOS A PREENCHER'!$O$2:$O$105,'PREÇOS DETALHADOS A PREENCHER'!$B$2:$B$105,Tabela2[[#This Row],[CGU-R]],'PREÇOS DETALHADOS A PREENCHER'!$L$2:$L$105,7)+SUMIFS('PREÇOS DETALHADOS A PREENCHER'!$O$2:$O$105,'PREÇOS DETALHADOS A PREENCHER'!$B$2:$B$105,Tabela2[[#This Row],[CGU-R]],'PREÇOS DETALHADOS A PREENCHER'!$L$2:$L$105,8)","v":0},12,{"$f":"Tabela2[[#This Row],[MANUTENÇÃO (MÊS)]]*E23","v":0},{"$f":"Tabela2[[#This Row],[EQUIP + INFRA + SUPERV. REMOTA]]+Tabela2[[#This Row],[MANUTENÇÃO (TOTAL)]]","v":0},null,null,{"$f":"SUMIFS('PREÇOS DETALHADOS A PREENCHER'!$K$2:$K$105,'PREÇOS DETALHADOS A PREENCHER'!$B$2:$B$105,'PL AQUIS+SERV CGU-R E ITEM'!$B23,'PREÇOS DETALHADOS A PREENCHER'!$D$2:$D$105,J$3)","v":0},{"$f":"SUMIFS('PREÇOS DETALHADOS A PREENCHER'!$K$2:$K$105,'PREÇOS DETALHADOS A PREENCHER'!$B$2:$B$105,'PL AQUIS+SERV CGU-R E ITEM'!$B23,'PREÇOS DETALHADOS A PREENCHER'!$D$2:$D$105,K$3)","v":0},{"$f":"SUMIFS('PREÇOS DETALHADOS A PREENCHER'!$K$2:$K$105,'PREÇOS DETALHADOS A PREENCHER'!$B$2:$B$105,'PL AQUIS+SERV CGU-R E ITEM'!$B23,'PREÇOS DETALHADOS A PREENCHER'!$D$2:$D$105,L$3)","v":0},{"$f":"SUMIFS('PREÇOS DETALHADOS A PREENCHER'!$K$2:$K$105,'PREÇOS DETALHADOS A PREENCHER'!$B$2:$B$105,'PL AQUIS+SERV CGU-R E ITEM'!$B23,'PREÇOS DETALHADOS A PREENCHER'!$D$2:$D$105,M$3)","v":0},{"$f":"SUMIFS('PREÇOS DETALHADOS A PREENCHER'!$K$2:$K$105,'PREÇOS DETALHADOS A PREENCHER'!$B$2:$B$105,'PL AQUIS+SERV CGU-R E ITEM'!$B23,'PREÇOS DETALHADOS A PREENCHER'!$D$2:$D$105,N$3)","v":0},{"$f":"SUMIFS('PREÇOS DETALHADOS A PREENCHER'!$K$2:$K$105,'PREÇOS DETALHADOS A PREENCHER'!$B$2:$B$105,'PL AQUIS+SERV CGU-R E ITEM'!$B23,'PREÇOS DETALHADOS A PREENCHER'!$D$2:$D$105,O$3)","v":0},{"$f":"SUMIFS('PREÇOS DETALHADOS A PREENCHER'!$K$2:$K$105,'PREÇOS DETALHADOS A PREENCHER'!$B$2:$B$105,'PL AQUIS+SERV CGU-R E ITEM'!$B23,'PREÇOS DETALHADOS A PREENCHER'!$D$2:$D$105,P$3)","v":0},{"$f":"SUMIFS('PREÇOS DETALHADOS A PREENCHER'!$K$2:$K$105,'PREÇOS DETALHADOS A PREENCHER'!$B$2:$B$105,'PL AQUIS+SERV CGU-R E ITEM'!$B23,'PREÇOS DETALHADOS A PREENCHER'!$D$2:$D$105,Q$3)","v":0},{"$f":"SUMIFS('PREÇOS DETALHADOS A PREENCHER'!$K$2:$K$105,'PREÇOS DETALHADOS A PREENCHER'!$B$2:$B$105,'PL AQUIS+SERV CGU-R E ITEM'!$B23,'PREÇOS DETALHADOS A PREENCHER'!$D$2:$D$105,R$3)","v":0},{"$f":"SUMIFS('PREÇOS DETALHADOS A PREENCHER'!$K$2:$K$105,'PREÇOS DETALHADOS A PREENCHER'!$B$2:$B$105,'PL AQUIS+SERV CGU-R E ITEM'!$B23,'PREÇOS DETALHADOS A PREENCHER'!$D$2:$D$105,S$3)","v":0},{"$f":"SUMIFS('PREÇOS DETALHADOS A PREENCHER'!$K$2:$K$105,'PREÇOS DETALHADOS A PREENCHER'!$B$2:$B$105,'PL AQUIS+SERV CGU-R E ITEM'!$B23,'PREÇOS DETALHADOS A PREENCHER'!$D$2:$D$105,T$3)","v":0},{"$f":"SUMIFS('PREÇOS DETALHADOS A PREENCHER'!$K$2:$K$105,'PREÇOS DETALHADOS A PREENCHER'!$B$2:$B$105,'PL AQUIS+SERV CGU-R E ITEM'!$B23,'PREÇOS DETALHADOS A PREENCHER'!$D$2:$D$105,U$3)","v":0},{"$f":"SUMIFS('PREÇOS DETALHADOS A PREENCHER'!$K$2:$K$105,'PREÇOS DETALHADOS A PREENCHER'!$B$2:$B$105,'PL AQUIS+SERV CGU-R E ITEM'!$B23,'PREÇOS DETALHADOS A PREENCHER'!$D$2:$D$105,V$3)","v":0},{"$f":"SUMIFS('PREÇOS DETALHADOS A PREENCHER'!$K$2:$K$105,'PREÇOS DETALHADOS A PREENCHER'!$B$2:$B$105,'PL AQUIS+SERV CGU-R E ITEM'!$B23,'PREÇOS DETALHADOS A PREENCHER'!$D$2:$D$105,W$3)","v":0},{"$f":"SUMIFS('PREÇOS DETALHADOS A PREENCHER'!$K$2:$K$105,'PREÇOS DETALHADOS A PREENCHER'!$B$2:$B$105,'PL AQUIS+SERV CGU-R E ITEM'!$B23,'PREÇOS DETALHADOS A PREENCHER'!$D$2:$D$105,X$3)","v":0},{"$f":"SUMIFS('PREÇOS DETALHADOS A PREENCHER'!$R$2:$R$105,'PREÇOS DETALHADOS A PREENCHER'!$B$2:$B$105,'PL AQUIS+SERV CGU-R E ITEM'!$B23,'PREÇOS DETALHADOS A PREENCHER'!$M$2:$M$105,Y$3)","v":0},{"$f":"SUMIFS('PREÇOS DETALHADOS A PREENCHER'!$R$2:$R$105,'PREÇOS DETALHADOS A PREENCHER'!$B$2:$B$105,'PL AQUIS+SERV CGU-R E ITEM'!$B23,'PREÇOS DETALHADOS A PREENCHER'!$M$2:$M$105,Z$3)","v":0},{"$f":"SUMIFS('PREÇOS DETALHADOS A PREENCHER'!$R$2:$R$105,'PREÇOS DETALHADOS A PREENCHER'!$B$2:$B$105,'PL AQUIS+SERV CGU-R E ITEM'!$B23,'PREÇOS DETALHADOS A PREENCHER'!$M$2:$M$105,AA$3)","v":0}]
[null,"SE",{"$f":"SUMIFS('PREÇOS DETALHADOS A PREENCHER'!$J$2:$J$105,'PREÇOS DETALHADOS A PREENCHER'!$B$2:$B$105,'PL AQUIS+SERV CGU-R E ITEM'!$B24,'PREÇOS DETALHADOS A PREENCHER'!$C$2:$C$105,1)+SUMIFS('PREÇOS DETALHADOS A PREENCHER'!$J$2:$J$105,'PREÇOS DETALHADOS A PREENCHER'!$B$2:$B$105,'PL AQUIS+SERV CGU-R E ITEM'!$B24,'PREÇOS DETALHADOS A PREENCHER'!$C$2:$C$105,2)+SUMIFS('PREÇOS DETALHADOS A PREENCHER'!$J$2:$J$105,'PREÇOS DETALHADOS A PREENCHER'!$B$2:$B$105,'PL AQUIS+SERV CGU-R E ITEM'!$B24,'PREÇOS DETALHADOS A PREENCHER'!$C$2:$C$105,3)+SUMIFS('PREÇOS DETALHADOS A PREENCHER'!$J$2:$J$105,'PREÇOS DETALHADOS A PREENCHER'!$B$2:$B$105,'PL AQUIS+SERV CGU-R E ITEM'!$B24,'PREÇOS DETALHADOS A PREENCHER'!$C$2:$C$105,4)","v":0},{"$f":"SUMIFS('PREÇOS DETALHADOS A PREENCHER'!$O$2:$O$105,'PREÇOS DETALHADOS A PREENCHER'!$B$2:$B$105,Tabela2[[#This Row],[CGU-R]],'PREÇOS DETALHADOS A PREENCHER'!$L$2:$L$105,5)+SUMIFS('PREÇOS DETALHADOS A PREENCHER'!$O$2:$O$105,'PREÇOS DETALHADOS A PREENCHER'!$B$2:$B$105,Tabela2[[#This Row],[CGU-R]],'PREÇOS DETALHADOS A PREENCHER'!$L$2:$L$105,6)+SUMIFS('PREÇOS DETALHADOS A PREENCHER'!$O$2:$O$105,'PREÇOS DETALHADOS A PREENCHER'!$B$2:$B$105,Tabela2[[#This Row],[CGU-R]],'PREÇOS DETALHADOS A PREENCHER'!$L$2:$L$105,7)+SUMIFS('PREÇOS DETALHADOS A PREENCHER'!$O$2:$O$105,'PREÇOS DETALHADOS A PREENCHER'!$B$2:$B$105,Tabela2[[#This Row],[CGU-R]],'PREÇOS DETALHADOS A PREENCHER'!$L$2:$L$105,8)","v":0},12,{"$f":"Tabela2[[#This Row],[MANUTENÇÃO (MÊS)]]*E24","v":0},{"$f":"Tabela2[[#This Row],[EQUIP + INFRA + SUPERV. REMOTA]]+Tabela2[[#This Row],[MANUTENÇÃO (TOTAL)]]","v":0},null,null,{"$f":"SUMIFS('PREÇOS DETALHADOS A PREENCHER'!$K$2:$K$105,'PREÇOS DETALHADOS A PREENCHER'!$B$2:$B$105,'PL AQUIS+SERV CGU-R E ITEM'!$B24,'PREÇOS DETALHADOS A PREENCHER'!$D$2:$D$105,J$3)","v":0},{"$f":"SUMIFS('PREÇOS DETALHADOS A PREENCHER'!$K$2:$K$105,'PREÇOS DETALHADOS A PREENCHER'!$B$2:$B$105,'PL AQUIS+SERV CGU-R E ITEM'!$B24,'PREÇOS DETALHADOS A PREENCHER'!$D$2:$D$105,K$3)","v":0},{"$f":"SUMIFS('PREÇOS DETALHADOS A PREENCHER'!$K$2:$K$105,'PREÇOS DETALHADOS A PREENCHER'!$B$2:$B$105,'PL AQUIS+SERV CGU-R E ITEM'!$B24,'PREÇOS DETALHADOS A PREENCHER'!$D$2:$D$105,L$3)","v":0},{"$f":"SUMIFS('PREÇOS DETALHADOS A PREENCHER'!$K$2:$K$105,'PREÇOS DETALHADOS A PREENCHER'!$B$2:$B$105,'PL AQUIS+SERV CGU-R E ITEM'!$B24,'PREÇOS DETALHADOS A PREENCHER'!$D$2:$D$105,M$3)","v":0},{"$f":"SUMIFS('PREÇOS DETALHADOS A PREENCHER'!$K$2:$K$105,'PREÇOS DETALHADOS A PREENCHER'!$B$2:$B$105,'PL AQUIS+SERV CGU-R E ITEM'!$B24,'PREÇOS DETALHADOS A PREENCHER'!$D$2:$D$105,N$3)","v":0},{"$f":"SUMIFS('PREÇOS DETALHADOS A PREENCHER'!$K$2:$K$105,'PREÇOS DETALHADOS A PREENCHER'!$B$2:$B$105,'PL AQUIS+SERV CGU-R E ITEM'!$B24,'PREÇOS DETALHADOS A PREENCHER'!$D$2:$D$105,O$3)","v":0},{"$f":"SUMIFS('PREÇOS DETALHADOS A PREENCHER'!$K$2:$K$105,'PREÇOS DETALHADOS A PREENCHER'!$B$2:$B$105,'PL AQUIS+SERV CGU-R E ITEM'!$B24,'PREÇOS DETALHADOS A PREENCHER'!$D$2:$D$105,P$3)","v":0},{"$f":"SUMIFS('PREÇOS DETALHADOS A PREENCHER'!$K$2:$K$105,'PREÇOS DETALHADOS A PREENCHER'!$B$2:$B$105,'PL AQUIS+SERV CGU-R E ITEM'!$B24,'PREÇOS DETALHADOS A PREENCHER'!$D$2:$D$105,Q$3)","v":0},{"$f":"SUMIFS('PREÇOS DETALHADOS A PREENCHER'!$K$2:$K$105,'PREÇOS DETALHADOS A PREENCHER'!$B$2:$B$105,'PL AQUIS+SERV CGU-R E ITEM'!$B24,'PREÇOS DETALHADOS A PREENCHER'!$D$2:$D$105,R$3)","v":0},{"$f":"SUMIFS('PREÇOS DETALHADOS A PREENCHER'!$K$2:$K$105,'PREÇOS DETALHADOS A PREENCHER'!$B$2:$B$105,'PL AQUIS+SERV CGU-R E ITEM'!$B24,'PREÇOS DETALHADOS A PREENCHER'!$D$2:$D$105,S$3)","v":0},{"$f":"SUMIFS('PREÇOS DETALHADOS A PREENCHER'!$K$2:$K$105,'PREÇOS DETALHADOS A PREENCHER'!$B$2:$B$105,'PL AQUIS+SERV CGU-R E ITEM'!$B24,'PREÇOS DETALHADOS A PREENCHER'!$D$2:$D$105,T$3)","v":0},{"$f":"SUMIFS('PREÇOS DETALHADOS A PREENCHER'!$K$2:$K$105,'PREÇOS DETALHADOS A PREENCHER'!$B$2:$B$105,'PL AQUIS+SERV CGU-R E ITEM'!$B24,'PREÇOS DETALHADOS A PREENCHER'!$D$2:$D$105,U$3)","v":0},{"$f":"SUMIFS('PREÇOS DETALHADOS A PREENCHER'!$K$2:$K$105,'PREÇOS DETALHADOS A PREENCHER'!$B$2:$B$105,'PL AQUIS+SERV CGU-R E ITEM'!$B24,'PREÇOS DETALHADOS A PREENCHER'!$D$2:$D$105,V$3)","v":0},{"$f":"SUMIFS('PREÇOS DETALHADOS A PREENCHER'!$K$2:$K$105,'PREÇOS DETALHADOS A PREENCHER'!$B$2:$B$105,'PL AQUIS+SERV CGU-R E ITEM'!$B24,'PREÇOS DETALHADOS A PREENCHER'!$D$2:$D$105,W$3)","v":0},{"$f":"SUMIFS('PREÇOS DETALHADOS A PREENCHER'!$K$2:$K$105,'PREÇOS DETALHADOS A PREENCHER'!$B$2:$B$105,'PL AQUIS+SERV CGU-R E ITEM'!$B24,'PREÇOS DETALHADOS A PREENCHER'!$D$2:$D$105,X$3)","v":0},{"$f":"SUMIFS('PREÇOS DETALHADOS A PREENCHER'!$R$2:$R$105,'PREÇOS DETALHADOS A PREENCHER'!$B$2:$B$105,'PL AQUIS+SERV CGU-R E ITEM'!$B24,'PREÇOS DETALHADOS A PREENCHER'!$M$2:$M$105,Y$3)","v":0},{"$f":"SUMIFS('PREÇOS DETALHADOS A PREENCHER'!$R$2:$R$105,'PREÇOS DETALHADOS A PREENCHER'!$B$2:$B$105,'PL AQUIS+SERV CGU-R E ITEM'!$B24,'PREÇOS DETALHADOS A PREENCHER'!$M$2:$M$105,Z$3)","v":0},{"$f":"SUMIFS('PREÇOS DETALHADOS A PREENCHER'!$R$2:$R$105,'PREÇOS DETALHADOS A PREENCHER'!$B$2:$B$105,'PL AQUIS+SERV CGU-R E ITEM'!$B24,'PREÇOS DETALHADOS A PREENCHER'!$M$2:$M$105,AA$3)","v":0}]
[null,"TO",{"$f":"SUMIFS('PREÇOS DETALHADOS A PREENCHER'!$J$2:$J$105,'PREÇOS DETALHADOS A PREENCHER'!$B$2:$B$105,'PL AQUIS+SERV CGU-R E ITEM'!$B25,'PREÇOS DETALHADOS A PREENCHER'!$C$2:$C$105,1)+SUMIFS('PREÇOS DETALHADOS A PREENCHER'!$J$2:$J$105,'PREÇOS DETALHADOS A PREENCHER'!$B$2:$B$105,'PL AQUIS+SERV CGU-R E ITEM'!$B25,'PREÇOS DETALHADOS A PREENCHER'!$C$2:$C$105,2)+SUMIFS('PREÇOS DETALHADOS A PREENCHER'!$J$2:$J$105,'PREÇOS DETALHADOS A PREENCHER'!$B$2:$B$105,'PL AQUIS+SERV CGU-R E ITEM'!$B25,'PREÇOS DETALHADOS A PREENCHER'!$C$2:$C$105,3)+SUMIFS('PREÇOS DETALHADOS A PREENCHER'!$J$2:$J$105,'PREÇOS DETALHADOS A PREENCHER'!$B$2:$B$105,'PL AQUIS+SERV CGU-R E ITEM'!$B25,'PREÇOS DETALHADOS A PREENCHER'!$C$2:$C$105,4)","v":0},{"$f":"SUMIFS('PREÇOS DETALHADOS A PREENCHER'!$O$2:$O$105,'PREÇOS DETALHADOS A PREENCHER'!$B$2:$B$105,Tabela2[[#This Row],[CGU-R]],'PREÇOS DETALHADOS A PREENCHER'!$L$2:$L$105,5)+SUMIFS('PREÇOS DETALHADOS A PREENCHER'!$O$2:$O$105,'PREÇOS DETALHADOS A PREENCHER'!$B$2:$B$105,Tabela2[[#This Row],[CGU-R]],'PREÇOS DETALHADOS A PREENCHER'!$L$2:$L$105,6)+SUMIFS('PREÇOS DETALHADOS A PREENCHER'!$O$2:$O$105,'PREÇOS DETALHADOS A PREENCHER'!$B$2:$B$105,Tabela2[[#This Row],[CGU-R]],'PREÇOS DETALHADOS A PREENCHER'!$L$2:$L$105,7)+SUMIFS('PREÇOS DETALHADOS A PREENCHER'!$O$2:$O$105,'PREÇOS DETALHADOS A PREENCHER'!$B$2:$B$105,Tabela2[[#This Row],[CGU-R]],'PREÇOS DETALHADOS A PREENCHER'!$L$2:$L$105,8)","v":0},12,{"$f":"Tabela2[[#This Row],[MANUTENÇÃO (MÊS)]]*E25","v":0},{"$f":"Tabela2[[#This Row],[EQUIP + INFRA + SUPERV. REMOTA]]+Tabela2[[#This Row],[MANUTENÇÃO (TOTAL)]]","v":0},null,null,{"$f":"SUMIFS('PREÇOS DETALHADOS A PREENCHER'!$K$2:$K$105,'PREÇOS DETALHADOS A PREENCHER'!$B$2:$B$105,'PL AQUIS+SERV CGU-R E ITEM'!$B25,'PREÇOS DETALHADOS A PREENCHER'!$D$2:$D$105,J$3)","v":0},{"$f":"SUMIFS('PREÇOS DETALHADOS A PREENCHER'!$K$2:$K$105,'PREÇOS DETALHADOS A PREENCHER'!$B$2:$B$105,'PL AQUIS+SERV CGU-R E ITEM'!$B25,'PREÇOS DETALHADOS A PREENCHER'!$D$2:$D$105,K$3)","v":0},{"$f":"SUMIFS('PREÇOS DETALHADOS A PREENCHER'!$K$2:$K$105,'PREÇOS DETALHADOS A PREENCHER'!$B$2:$B$105,'PL AQUIS+SERV CGU-R E ITEM'!$B25,'PREÇOS DETALHADOS A PREENCHER'!$D$2:$D$105,L$3)","v":0},{"$f":"SUMIFS('PREÇOS DETALHADOS A PREENCHER'!$K$2:$K$105,'PREÇOS DETALHADOS A PREENCHER'!$B$2:$B$105,'PL AQUIS+SERV CGU-R E ITEM'!$B25,'PREÇOS DETALHADOS A PREENCHER'!$D$2:$D$105,M$3)","v":0},{"$f":"SUMIFS('PREÇOS DETALHADOS A PREENCHER'!$K$2:$K$105,'PREÇOS DETALHADOS A PREENCHER'!$B$2:$B$105,'PL AQUIS+SERV CGU-R E ITEM'!$B25,'PREÇOS DETALHADOS A PREENCHER'!$D$2:$D$105,N$3)","v":0},{"$f":"SUMIFS('PREÇOS DETALHADOS A PREENCHER'!$K$2:$K$105,'PREÇOS DETALHADOS A PREENCHER'!$B$2:$B$105,'PL AQUIS+SERV CGU-R E ITEM'!$B25,'PREÇOS DETALHADOS A PREENCHER'!$D$2:$D$105,O$3)","v":0},{"$f":"SUMIFS('PREÇOS DETALHADOS A PREENCHER'!$K$2:$K$105,'PREÇOS DETALHADOS A PREENCHER'!$B$2:$B$105,'PL AQUIS+SERV CGU-R E ITEM'!$B25,'PREÇOS DETALHADOS A PREENCHER'!$D$2:$D$105,P$3)","v":0},{"$f":"SUMIFS('PREÇOS DETALHADOS A PREENCHER'!$K$2:$K$105,'PREÇOS DETALHADOS A PREENCHER'!$B$2:$B$105,'PL AQUIS+SERV CGU-R E ITEM'!$B25,'PREÇOS DETALHADOS A PREENCHER'!$D$2:$D$105,Q$3)","v":0},{"$f":"SUMIFS('PREÇOS DETALHADOS A PREENCHER'!$K$2:$K$105,'PREÇOS DETALHADOS A PREENCHER'!$B$2:$B$105,'PL AQUIS+SERV CGU-R E ITEM'!$B25,'PREÇOS DETALHADOS A PREENCHER'!$D$2:$D$105,R$3)","v":0},{"$f":"SUMIFS('PREÇOS DETALHADOS A PREENCHER'!$K$2:$K$105,'PREÇOS DETALHADOS A PREENCHER'!$B$2:$B$105,'PL AQUIS+SERV CGU-R E ITEM'!$B25,'PREÇOS DETALHADOS A PREENCHER'!$D$2:$D$105,S$3)","v":0},{"$f":"SUMIFS('PREÇOS DETALHADOS A PREENCHER'!$K$2:$K$105,'PREÇOS DETALHADOS A PREENCHER'!$B$2:$B$105,'PL AQUIS+SERV CGU-R E ITEM'!$B25,'PREÇOS DETALHADOS A PREENCHER'!$D$2:$D$105,T$3)","v":0},{"$f":"SUMIFS('PREÇOS DETALHADOS A PREENCHER'!$K$2:$K$105,'PREÇOS DETALHADOS A PREENCHER'!$B$2:$B$105,'PL AQUIS+SERV CGU-R E ITEM'!$B25,'PREÇOS DETALHADOS A PREENCHER'!$D$2:$D$105,U$3)","v":0},{"$f":"SUMIFS('PREÇOS DETALHADOS A PREENCHER'!$K$2:$K$105,'PREÇOS DETALHADOS A PREENCHER'!$B$2:$B$105,'PL AQUIS+SERV CGU-R E ITEM'!$B25,'PREÇOS DETALHADOS A PREENCHER'!$D$2:$D$105,V$3)","v":0},{"$f":"SUMIFS('PREÇOS DETALHADOS A PREENCHER'!$K$2:$K$105,'PREÇOS DETALHADOS A PREENCHER'!$B$2:$B$105,'PL AQUIS+SERV CGU-R E ITEM'!$B25,'PREÇOS DETALHADOS A PREENCHER'!$D$2:$D$105,W$3)","v":0},{"$f":"SUMIFS('PREÇOS DETALHADOS A PREENCHER'!$K$2:$K$105,'PREÇOS DETALHADOS A PREENCHER'!$B$2:$B$105,'PL AQUIS+SERV CGU-R E ITEM'!$B25,'PREÇOS DETALHADOS A PREENCHER'!$D$2:$D$105,X$3)","v":0},{"$f":"SUMIFS('PREÇOS DETALHADOS A PREENCHER'!$R$2:$R$105,'PREÇOS DETALHADOS A PREENCHER'!$B$2:$B$105,'PL AQUIS+SERV CGU-R E ITEM'!$B25,'PREÇOS DETALHADOS A PREENCHER'!$M$2:$M$105,Y$3)","v":0},{"$f":"SUMIFS('PREÇOS DETALHADOS A PREENCHER'!$R$2:$R$105,'PREÇOS DETALHADOS A PREENCHER'!$B$2:$B$105,'PL AQUIS+SERV CGU-R E ITEM'!$B25,'PREÇOS DETALHADOS A PREENCHER'!$M$2:$M$105,Z$3)","v":0},{"$f":"SUMIFS('PREÇOS DETALHADOS A PREENCHER'!$R$2:$R$105,'PREÇOS DETALHADOS A PREENCHER'!$B$2:$B$105,'PL AQUIS+SERV CGU-R E ITEM'!$B25,'PREÇOS DETALHADOS A PREENCHER'!$M$2:$M$105,AA$3)","v":0}]
[null,"DF",{"$f":"SUMIFS('PREÇOS DETALHADOS A PREENCHER'!$J$2:$J$105,'PREÇOS DETALHADOS A PREENCHER'!$B$2:$B$105,'PL AQUIS+SERV CGU-R E ITEM'!$B26,'PREÇOS DETALHADOS A PREENCHER'!$C$2:$C$105,1)+SUMIFS('PREÇOS DETALHADOS A PREENCHER'!$J$2:$J$105,'PREÇOS DETALHADOS A PREENCHER'!$B$2:$B$105,'PL AQUIS+SERV CGU-R E ITEM'!$B26,'PREÇOS DETALHADOS A PREENCHER'!$C$2:$C$105,2)+SUMIFS('PREÇOS DETALHADOS A PREENCHER'!$J$2:$J$105,'PREÇOS DETALHADOS A PREENCHER'!$B$2:$B$105,'PL AQUIS+SERV CGU-R E ITEM'!$B26,'PREÇOS DETALHADOS A PREENCHER'!$C$2:$C$105,3)+SUMIFS('PREÇOS DETALHADOS A PREENCHER'!$J$2:$J$105,'PREÇOS DETALHADOS A PREENCHER'!$B$2:$B$105,'PL AQUIS+SERV CGU-R E ITEM'!$B26,'PREÇOS DETALHADOS A PREENCHER'!$C$2:$C$105,4)","v":0},{"$f":"SUMIFS('PREÇOS DETALHADOS A PREENCHER'!$O$2:$O$105,'PREÇOS DETALHADOS A PREENCHER'!$B$2:$B$105,Tabela2[[#This Row],[CGU-R]],'PREÇOS DETALHADOS A PREENCHER'!$L$2:$L$105,5)+SUMIFS('PREÇOS DETALHADOS A PREENCHER'!$O$2:$O$105,'PREÇOS DETALHADOS A PREENCHER'!$B$2:$B$105,Tabela2[[#This Row],[CGU-R]],'PREÇOS DETALHADOS A PREENCHER'!$L$2:$L$105,6)+SUMIFS('PREÇOS DETALHADOS A PREENCHER'!$O$2:$O$105,'PREÇOS DETALHADOS A PREENCHER'!$B$2:$B$105,Tabela2[[#This Row],[CGU-R]],'PREÇOS DETALHADOS A PREENCHER'!$L$2:$L$105,7)+SUMIFS('PREÇOS DETALHADOS A PREENCHER'!$O$2:$O$105,'PREÇOS DETALHADOS A PREENCHER'!$B$2:$B$105,Tabela2[[#This Row],[CGU-R]],'PREÇOS DETALHADOS A PREENCHER'!$L$2:$L$105,8)","v":0},12,{"$f":"Tabela2[[#This Row],[MANUTENÇÃO (MÊS)]]*E26","v":0},{"$f":"Tabela2[[#This Row],[EQUIP + INFRA + SUPERV. REMOTA]]+Tabela2[[#This Row],[MANUTENÇÃO (TOTAL)]]","v":0},null,null,{"$f":"SUMIFS('PREÇOS DETALHADOS A PREENCHER'!$K$2:$K$105,'PREÇOS DETALHADOS A PREENCHER'!$B$2:$B$105,'PL AQUIS+SERV CGU-R E ITEM'!$B26,'PREÇOS DETALHADOS A PREENCHER'!$D$2:$D$105,J$3)","v":0},{"$f":"SUMIFS('PREÇOS DETALHADOS A PREENCHER'!$K$2:$K$105,'PREÇOS DETALHADOS A PREENCHER'!$B$2:$B$105,'PL AQUIS+SERV CGU-R E ITEM'!$B26,'PREÇOS DETALHADOS A PREENCHER'!$D$2:$D$105,K$3)","v":0},{"$f":"SUMIFS('PREÇOS DETALHADOS A PREENCHER'!$K$2:$K$105,'PREÇOS DETALHADOS A PREENCHER'!$B$2:$B$105,'PL AQUIS+SERV CGU-R E ITEM'!$B26,'PREÇOS DETALHADOS A PREENCHER'!$D$2:$D$105,L$3)","v":0},{"$f":"SUMIFS('PREÇOS DETALHADOS A PREENCHER'!$K$2:$K$105,'PREÇOS DETALHADOS A PREENCHER'!$B$2:$B$105,'PL AQUIS+SERV CGU-R E ITEM'!$B26,'PREÇOS DETALHADOS A PREENCHER'!$D$2:$D$105,M$3)","v":0},{"$f":"SUMIFS('PREÇOS DETALHADOS A PREENCHER'!$K$2:$K$105,'PREÇOS DETALHADOS A PREENCHER'!$B$2:$B$105,'PL AQUIS+SERV CGU-R E ITEM'!$B26,'PREÇOS DETALHADOS A PREENCHER'!$D$2:$D$105,N$3)","v":0},{"$f":"SUMIFS('PREÇOS DETALHADOS A PREENCHER'!$K$2:$K$105,'PREÇOS DETALHADOS A PREENCHER'!$B$2:$B$105,'PL AQUIS+SERV CGU-R E ITEM'!$B26,'PREÇOS DETALHADOS A PREENCHER'!$D$2:$D$105,O$3)","v":0},{"$f":"SUMIFS('PREÇOS DETALHADOS A PREENCHER'!$K$2:$K$105,'PREÇOS DETALHADOS A PREENCHER'!$B$2:$B$105,'PL AQUIS+SERV CGU-R E ITEM'!$B26,'PREÇOS DETALHADOS A PREENCHER'!$D$2:$D$105,P$3)","v":0},{"$f":"SUMIFS('PREÇOS DETALHADOS A PREENCHER'!$K$2:$K$105,'PREÇOS DETALHADOS A PREENCHER'!$B$2:$B$105,'PL AQUIS+SERV CGU-R E ITEM'!$B26,'PREÇOS DETALHADOS A PREENCHER'!$D$2:$D$105,Q$3)","v":0},{"$f":"SUMIFS('PREÇOS DETALHADOS A PREENCHER'!$K$2:$K$105,'PREÇOS DETALHADOS A PREENCHER'!$B$2:$B$105,'PL AQUIS+SERV CGU-R E ITEM'!$B26,'PREÇOS DETALHADOS A PREENCHER'!$D$2:$D$105,R$3)","v":0},{"$f":"SUMIFS('PREÇOS DETALHADOS A PREENCHER'!$K$2:$K$105,'PREÇOS DETALHADOS A PREENCHER'!$B$2:$B$105,'PL AQUIS+SERV CGU-R E ITEM'!$B26,'PREÇOS DETALHADOS A PREENCHER'!$D$2:$D$105,S$3)","v":0},{"$f":"SUMIFS('PREÇOS DETALHADOS A PREENCHER'!$K$2:$K$105,'PREÇOS DETALHADOS A PREENCHER'!$B$2:$B$105,'PL AQUIS+SERV CGU-R E ITEM'!$B26,'PREÇOS DETALHADOS A PREENCHER'!$D$2:$D$105,T$3)","v":0},{"$f":"SUMIFS('PREÇOS DETALHADOS A PREENCHER'!$K$2:$K$105,'PREÇOS DETALHADOS A PREENCHER'!$B$2:$B$105,'PL AQUIS+SERV CGU-R E ITEM'!$B26,'PREÇOS DETALHADOS A PREENCHER'!$D$2:$D$105,U$3)","v":0},{"$f":"SUMIFS('PREÇOS DETALHADOS A PREENCHER'!$K$2:$K$105,'PREÇOS DETALHADOS A PREENCHER'!$B$2:$B$105,'PL AQUIS+SERV CGU-R E ITEM'!$B26,'PREÇOS DETALHADOS A PREENCHER'!$D$2:$D$105,V$3)","v":0},{"$f":"SUMIFS('PREÇOS DETALHADOS A PREENCHER'!$K$2:$K$105,'PREÇOS DETALHADOS A PREENCHER'!$B$2:$B$105,'PL AQUIS+SERV CGU-R E ITEM'!$B26,'PREÇOS DETALHADOS A PREENCHER'!$D$2:$D$105,W$3)","v":0},{"$f":"SUMIFS('PREÇOS DETALHADOS A PREENCHER'!$K$2:$K$105,'PREÇOS DETALHADOS A PREENCHER'!$B$2:$B$105,'PL AQUIS+SERV CGU-R E ITEM'!$B26,'PREÇOS DETALHADOS A PREENCHER'!$D$2:$D$105,X$3)","v":0},{"$f":"SUMIFS('PREÇOS DETALHADOS A PREENCHER'!$R$2:$R$105,'PREÇOS DETALHADOS A PREENCHER'!$B$2:$B$105,'PL AQUIS+SERV CGU-R E ITEM'!$B26,'PREÇOS DETALHADOS A PREENCHER'!$M$2:$M$105,Y$3)","v":0},{"$f":"SUMIFS('PREÇOS DETALHADOS A PREENCHER'!$R$2:$R$105,'PREÇOS DETALHADOS A PREENCHER'!$B$2:$B$105,'PL AQUIS+SERV CGU-R E ITEM'!$B26,'PREÇOS DETALHADOS A PREENCHER'!$M$2:$M$105,Z$3)","v":0},{"$f":"SUMIFS('PREÇOS DETALHADOS A PREENCHER'!$R$2:$R$105,'PREÇOS DETALHADOS A PREENCHER'!$B$2:$B$105,'PL AQUIS+SERV CGU-R E ITEM'!$B26,'PREÇOS DETALHADOS A PREENCHER'!$M$2:$M$105,AA$3)","v":0}]
[null,"TOTAL",{"$f":"SUM(C4:C26)","v":0},{"$f":"SUM(D4:D26)","v":0},12,{"$f":"SUM(F4:F26)","v":0},{"$f":"SUM(G4:G26)","v":0},null,null,{"$f":"SUM(J4:J26)","v":0},{"$f":"SUM(K4:K26)","v":0},0,0,0,0,0,0,{"$f":"SUM(R4:R26)","v":0},0,0,0,{"$f":"SUM(V4:V26)","v":0},0,{"$f":"SUM(X4:X26)","v":0},0,0,0]
[]
[]
[]
[null,null,null,null,null,"CHECK 1",{"$f":"IF(G27-'PREÇOS POR ITEM CONF LICITAÇÃO'!J26=0,\"OK\",\"PREENCHIMENTO INCORRETO\")","v":"OK"}]
[]
[null,null,null,null,null,"CHECK 2",{"$f":"IF('PREÇOS DETALHADOS A PREENCHER'!S106-'PREÇOS POR ITEM CONF LICITAÇÃO'!J26=0,\"OK\",\"PREENCHIMENTO INCORRETO\")","v":"OK"}]

{"sheet":"PPL DIN","index":7,"n_rows":126,"n_cols":4,"rows_kept":126,"cut":false,"hidden":false,"merged":[]}
[]
[]
["Rótulos de Linha","# PREÇO TOTAL 1","# PREÇO TOTAL 2","# PREÇO TOTAL (VIGÊNCIA)"]
["AC",0,0,0]
["Infraestrutura Elétrica - CGU-R/AC",0,0,0]
["Treinamento (Operação e Supervisão Local) - CGU-R/AC",0,0,0]
["UPS Predial 5kVA + BB 10min - CGU-R/AC",0,0,0]
["UPS Rack 3kVA + BB 30min -  CGU-R/AC",0,0,0]
["AL",0,0,0]
["Infraestrutura Elétrica - CGU-R/AL",0,0,0]
["Treinamento (Operação e Supervisão Local) - CGU-R/AL",0,0,0]
["UPS Rack 3kVA + BB 30min -  CGU-R/AL",0,0,0]
["UPS Predial 10kVA + BB 10min - CGU-R/AL ",0,0,0]
["AM",0,0,0]
["Infraestrutura Elétrica - CGU-R/AM",0,0,0]
["Treinamento (Operação e Supervisão Local) - CGU-R/AM",0,0,0]
["UPS Predial 8kVA + BB 10min - CGU-R/AM",0,0,0]
["UPS Rack 5kVA + BB 30min - CGU-R/AM",0,0,0]
["AP",0,0,0]
["Infraestrutura Elétrica - CGU-R/AP",0,0,0]
["Treinamento (Operação e Supervisão Local) - CGU-R/AP",0,0,0]
["UPS Predial 3kVA + BB 10min - CGU-R/AP",0,0,0]
["UPS Rack 3kVA + BB 30min - CGU-R/AP",0,0,0]
["BA",0,0,0]
["Infraestrutura Elétrica - CGU-R/BA",0,0,0]
["Treinamento (Operação e Supervisão Local) - CGU-R/BA",0,0,0]
["UPS Predial 15kVA + BB 10min - CGU-R/BA",0,0,0]
["UPS Rack 2kVA + BB 30min - CGU-R/BA",0,0,0]
["UPS Rack 5kVA + BB 30min - CGU-R/BA",0,0,0]
["CE",0,0,0]
["Infraestrutura Elétrica - CGU-R/CE",0,0,0]
["Treinamento (Operação e Supervisão Local) - CGU-R/CE",0,0,0]
["UPS Predial 8kVA + BB 10min - CGU-R/CE",0,0,0]
["UPS Rack 5kVA + BB 30min - CGU-R/CE",0,0,0]
["DF",0,0,0]
["Treinamento (Operação e Supervisão Remota) - CGU-SEDE/DF",0,0,0]
["Supervisão remota/local (software/licenças) - CGU-SEDE/DF",0,0,0]
["ES",0,0,0]
["Infraestrutura Elétrica - CGU-R/ES",0,0,0]
["Treinamento (Operação e Supervisão Local) - CGU-R/ES",0,0,0]
["UPS Predial 10kVA + BB 10min - CGU-R/ES",0,0,0]
["UPS Rack 5kVA + BB 15min - CGU-R/ES",0,0,0]
["MA",0,0,0]
["Infraestrutura Elétrica - CGU-R/MA",0,0,0]
["Treinamento (Operação e Supervisão Local) - CGU-R/MA",0,0,0]
["UPS Predial 10kVA + BB 10min - CGU-R/MA",0,0,0]
["UPS Rack 2kVA + BB 30min - CGU-R/MA",0,0,0]
["UPS Rack 5kVA + BB 30min - CGU-R/MA",0,0,0]
["MG",0,0,0]
["Infraestrutura Elétrica - CGU-R/MG",0,0,0]
["Treinamento (Operação e Supervisão Local) - CGU-R/MG",0,0,0]
["UPS Predial 10kVA + BB 10min - CGU-R/MG",0,0,0]
["UPS Rack 2kVA +  BB 15min - CGU-R/MG",0,0,0]
["UPS Rack 5kVA +  BB 15min - CGU-R/MG",0,0,0]
["MT",0,0,0]
["Infraestrutura Elétrica - CGU-R/MT",0,0,0]
["Treinamento (Operação e Supervisão Local) - CGU-R/MT",0,0,0]
["UPS Predial 5kVA + BB 10min - CGU-R/MT",0,0,0]
["UPS Rack 3kVA +  BB 15min - CCGU-R/MT",0,0,0]
["PB",0,0,0]
["Infraestrutura Elétrica - CGU-R/PB",0,0,0]
["Treinamento (Operação e Supervisão Local) - CGU/R-PB",0,0,0]
["UPS Predial 10kVA +  BB 10min - CCGU-R/PB",0,0,0]
["UPS Rack 5kVA +  BB 30min - CCGU-R/PB",0,0,0]
["PE",0,0,0]
["Infraestrutura Elétrica - CGU-R/PE",0,0,0]
["Treinamento (Operação e Supervisão Local) - CGU-R/PE",0,0,0]
["UPS Predial 15kVA + BB 10min - CGU-R/PE",0,0,0]
["UPS Rack 5kVA +  BB 30min - CCGU-R/PE",0,0,0]
["PI",0,0,0]
["Infraestrutura Elétrica - CGU-R/PI",0,0,0]
["Treinamento (Operação e Supervisão Local) - CGU-R/PI",0,0,0]
["UPS Predial 8kVA +  BB 10min - CCGU-R/PI",0,0,0]
["UPS Rack 2kVA +  BB 30min - CGU-R/PI",0,0,0]
["UPS Rack 3kVA +  BB 30min - CCGU-R/PI",0,0,0]
["PR",0,0,0]
["Infraestrutura Elétrica - CGU-R/PR",0,0,0]
["Treinamento (Operação e Supervisão Local) - CGU-R/PR",0,0,0]
["UPS Predial 10kVA + BB 10MIN - CGU-R/PR",0,0,0]
["UPS Predial 20kVA + BB 10MIN - CGU-R/PR",0,0,0]
["UPS Rack 5kVA + BB 15 min - CGU-R/PR",0,0,0]
["RJ",0,0,0]
["Infraestrutura Elétrica - CGU-R/RJ",0,0,0]
["Treinamento (Operação e Supervisão Local) - CGU-R/PR",0,0,0]
["UPS Predial 15kVA + BB 10min - CGU-R/RJ",0,0,0]
["UPS Predial 8kVA + BB 10min - CGU-R/RJ",0,0,0]
["UPS Rack 2kVA + BB 15min - CGU-R/RJ",0,0,0]
["UPS Rack 5kVA + BB 15min - CGU-R/RJ",0,0,0]
["RN",0,0,0]
["Infraestrutura Elétrica - CGU-R/RN",0,0,0]
["Treinamento (Operação e Supervisão Local) - CGU-R/RN",0,0,0]
["UPS Predial 10kVA + BB 10min - CGU-R/RN",0,0,0]
["UPS Rack 2kVA + BB 30min - CGU-R/RN",0,0,0]
["UPS Rack 5kVA + BB 30min - CGU-R/RN",0,0,0]
["RO",0,0,0]
["Infraestrutura Elétrica  - CGU-R/RO",0,0,0]
["Treinamento (Operação e Supervisão Local) - CGU-R/RO",0,0,0]
["UPS Rack 3kVA + BB 30min - CGU-R/RO",0,0,0]
["UPS Predial 5kVA + BB 10min - CGU-R/RO",0,0,0]
["RR",0,0,0]
["Infraestrutura Elétrica - CGU-R/RR",0,0,0]
["Treinamento (Operação e Supervisão Local) - CGU-R/RO",0,0,0]
["UPS Rack 3kVA + BB 30min - CGU-R/RR",0,0,0]
["UPS Predial 5kVA + BB 10min - CGU-R/RO",0,0,0]
["RS",0,0,0]
["Infraestrutura Elétrica - CGU-R/RS",0,0,0]
["Treinamento (Operação e Supervisão Local) - CGU-R/RS",0,0,0]
["UPS Predial 10kVA + BB 10min - CGU-R/RS",0,0,0]
["UPS Rack 5kVA + BB 15min - CGU-R/RS",0,0,0]
["SC",0,0,0]
["Infraestrutura Elétrica - CGU-R/SC",0,0,0]
["Treinamento (Operação e Supervisão Local) - CGU-R/SC",0,0,0]
["UPS Predial 10kVA + BB 10min - CGU-R/SC",0,0,0]
["UPS Rack 5kVA + BB 15min - CGU-R/SC",0,0,0]
["SE",0,0,0]
["Infraestrutura Elétrica - CGU-R/SE",0,0,0]
["Treinamento (Operação e Supervisão Local) - CGU-R/SE",0,0,0]
["UPS Predial 10kVA + BB 10min - CGU-R/SE",0,0,0]
["UPS Rack 5kVA + BB 30min - CGU-R/SE",0,0,0]
["TO",0,0,0]
["Infraestrutura Elétrica - CGU-R/TO",0,0,0]
["Treinamento (Operação e Supervisão Local) - CGU-R/TO",0,0,0]
["UPS Rack 2kVA + BB 15min - CGU-R/TO",0,0,0]
["UPS Rack 3kVA+ BB 15min - CGU-R/TO",0,0,0]
["UPS Predial 5kVA + BB 10 min - CGU-R/TO",0,0,0]
["Total Geral",0,0,0]

{"sheet":"DESEMBOLSO","index":8,"n_rows":29,"n_cols":13,"rows_kept":29,"cut":false,"hidden":false,"merged":[[1,4,1,8],[28,1,28,3]]}
[null,null,null,1,0,0.85,0.1,0.05,{"$f":"9/12","v":0.75},{"$f":"3/12","v":0.25}]
[null,null,null,"15 MESES","ANO I",null,null,null,null,"ANO II"]
[null,"SIGLA","Unidade da CGU nos Estados","Custo Total por Localidade R$","Planejamento (30 dias)","Execução (até 90 dias)","Recebimento Parcial (20 dias)","Recebimento Final (10 dias)","Serviços de Locação com Assistência e Manutenção Mensal (9 meses) - ANO I","Serviços de Locação com Assistência e Manutenção Mensal (3 meses) - ANO II",null,null,"CHECK"]
[null,"AC","Controladoria Regional da União no Estado do Acre",{"$f":"D$1*VLOOKUP($B4,INFLOC,6,0)","v":0},{"$f":"E$1*VLOOKUP($B4,INFLOC,2,0)","v":0},0,0,0,{"$f":"I$1*VLOOKUP($B4,INFLOC,3,0)*12","v":0},0,null,null,{"$f":"IF(SUM(E4:J4)-D4=0,\"OK\",SUM(E4:J4)-D4)","v":"OK"}]
[null,"AL","Controladoria Regional da União no Estado de Alagoas",0,0,0,0,0,0,0,null,null,"OK"]
[null,"AM","Controladoria Regional da União no Estado do Amazonas",0,0,0,0,0,0,0,null,null,"OK"]
[null,"AP","Controladoria Regional da União no Estado do Amapá",0,0,0,0,0,0,0,null,null,"OK"]
[null,"BA","Controladoria Regional da União no Estado da Bahia",0,0,0,0,0,0,0,null,null,"OK"]
[null,"CE","Controladoria Regional da União no Estado do Ceará",0,0,0,0,0,0,0,null,null,"OK"]
[null,"ES","Controladoria Regional da União no Estado do Espírito Santo",0,0,0,0,0,0,0,null,null,"OK"]
[null,"MA","Controladoria Regional da União no Estado do Maranhão",0,0,0,0,0,0,0,null,null,"OK"]
[null,"MG","Controladoria Regional da União no Estado de Minas Gerais",0,0,0,0,0,0,0,null,null,"OK"]
[null,"MT","Controladoria Regional da União no Estado do Mato Grosso",0,0,0,0,0,0,0,null,null,"OK"]
[null,"PB","Controladoria Regional da União no Estado da Paraíba",0,0,0,0,0,0,0,null,null,"OK"]
[null,"PE","Controladoria Regional da União no Estado de Pernambuco",0,0,0,0,0,0,0,null,null,"OK"]
[null,"PI","Controladoria Regional da União no Estado do Piauí",0,0,0,0,0,0,0,null,null,"OK"]
[null,"PR","Controladoria Regional da União no Estado do Paraná",0,0,0,0,0,0,0,null,null,"OK"]
[null,"RJ","Controladoria Regional da União no Estado do Rio de Janeiro",0,0,0,0,0,0,0,null,null,"OK"]
[null,"RN","Controladoria Regional da União no Estado do Rio Grande do Norte",0,0,0,0,0,0,0,null,null,"OK"]
[null,"RO","Controladoria Regional da União no Estado de Rondônia",0,0,0,0,0,0,0,null,null,"OK"]
[null,"RR","Controladoria Regional da União no Estado de Roraima",0,0,0,0,0,0,0,null,null,"OK"]
[null,"RS","Controladoria Regional da União no Estado do Rio Grande do Sul",0,0,0,0,0,0,0,null,null,"OK"]
[null,"SC","Controladoria Regional da União no Estado de Santa Catarina",0,0,0,0,0,0,0,null,null,"OK"]
[null,"SE","Controladoria Regional da União no Estado de Sergipe",0,0,0,0,0,0,0,null,null,"OK"]
[null,"TO","Controladoria Regional da União no Estado do Tocantins",0,0,0,0,0,0,0,null,null,"OK"]
[null,"DF","SEDE da CGU - Brásilia - DF",0,0,0,0,0,0,0,null,null,"OK"]
[null,null,{"$f":"_xlfn.CONCAT(\"TOTAL GERAL (\",LEFT(D2,2),\" MESES)\")","v":"TOTAL GERAL (15 MESES)"},{"$f":"SUM(D4:D26)","v":0},{"$f":"SUM(E4:E26)","v":0},{"$f":"SUM(F4:F26)","v":0},0,0,0,0,null,null,"OK"]
[]
[null,"OBS.: Trata-se de uma projeção de custos para 15 (quinze) meses"]

{"sheet":"FASES-ETAPAS","index":9,"n_rows":38,"n_cols":32,"rows_kept":38,"cut":false,"hidden":false,"merged":[[30,17,33,18],[37,17,40,18],[8,27,11,28],[16,25,19,26],[8,31,11,32],[30,27,33,28],[37,27,40,28],[27,21,27,22],[30,21,33,22],[37,21,40,22],[27,27,27,28],[5,26,6,29],[4,31,4,32],[13,27,13,28],[8,23,11,24],[16,21,19,22],[4,21,4,22],[13,15,13,16],[13,19,13,20],[13,23,13,24],[1,1,1,10],[8,19,11,20],[2,1,3,2],[8,15,11,16]]}
[]
[null,"CRONOGRAMA FÍSICO DE REFERÊNCIA"]
[null,"TABELA ESTIMATIVA DE FASES E ETAPAS DE EXECUÇÃO CONTRATUAL",null,"FASE 1",null,null,null,null,null,null,"FASE 2"]
[null,null,null,"ETAPA 1","ETAPA 2",null,null,"ETAPA 3","ETAPA 4"]
[null,"Nº","UNIDADE DA CGU NOS ESTADOS","Planejamento (30 dias)","Execução (90 dias)",null,null,"Recebimento Parcial (20 dias) - TRP","Recebimento Definitivo (10 dias) - TRD",null,"Serviços de Aquisição com Assistência e Manutenção Mensal (até 12 meses ou 360 dias) ",null,null,null,null,null,null,null,null,null,null,"FASE 1",null,null,null,null,null,null,null,null,null,"FASE 2"]
[null,1,"Controladoria Regional da União no Estado do Acre",null,null,null,null,null,null,null,null,null,null,null,null,null,null,null,null,null,null,null,null,null,null,null,"A emissão do TRP dá ensejo a Fase 2 da Unidade da CGU"]
[null,2,"Controladoria Regional da União no Estado de Alagoas"]
[null,3,"Controladoria Regional da União no Estado do Amazonas"]
[null,4,"Controladoria Regional da União no Estado do Amapá",null,null,null,null,null,null,null,null,null,null,null,null,"PLANEJAMENTO",null,null,null,"EXECUÇÃO ",null,null,null,"TERMO DE RECEBIMENTO PROVISÓRIO ",null,null,null,"TERMO DE RECEBIMENTO DEFINITIVO ",null,null,null,"MANUTEÇÃO"]
[null,5,"Controladoria Regional da União no Estado da Bahia"]
[null,6,"Controladoria Regional da União no Estado do Ceará"]
[null,7,"Controladoria Regional da União no Estado do Espírito Santo"]
[null,8,"Controladoria Regional da União no Estado do Maranhão"]
[null,9,"Controladoria Regional da União no Estado de Minas Gerais",null,null,null,null,null,null,null,null,null,null,null,null,"Etapa 1",null,null,null,"Etapa 2",null,null,null,"Etapa 3",null,null,null,"Etapa 4"]
[null,10,"Controladoria Regional da União no Estado do Mato Grosso"]
[null,11,"Controladoria Regional da União no Estado da Paraíba"]
[null,12,"Controladoria Regional da União no Estado de Pernambuco",null,null,null,null,null,null,null,null,null,null,null,null,null,null,null,null,null,null,"TESTES E AJUSTES / SUPERVISÓRIO PARCIAL / TREINAMENTO",null,null,null,"TESTES E AJUSTES / SUPERVISÓRIO FINALIZADO"]
[null,13,"Controladoria Regional da União no Estado do Piauí"]
[null,14,"Controladoria Regional da União no Estado do Paraná"]
[null,15,"Controladoria Regional da União no Estado do Rio de Janeiro"]
[null,16,"Controladoria Regional da União no Estado do Rio Grande do Norte"]
[null,17,"Controladoria Regional da União no Estado de Rondônia"]
[null,18,"Controladoria Regional da União no Estado de Roraima"]
[null,19,"Controladoria Regional da União no Estado do Rio Grande do Sul"]
[null,20,"Controladoria Regional da União no Estado de Santa Catarina"]
[null,21,"Controladoria Regional da União no Estado de Sergipe"]
[null,22,"Controladoria Regional da União no Estado do Tocantins"]
[null,23,"SEDE da CGU - Brásilia - DF",null,null,null,null,null,null,null,null,null,null,null,null,null,null,null,null,null,null,"FASE 1",null,null,null,null,null,"FASE 2"]
[]
[]
[null,null,null,null,null,null,null,null,null,null,null,null,null,null,null,null,null,"TESTES E AJUSTES / SUPERVISÓRIO PARCIAL / TREINAMENTO",null,null,null,"TERMO DE RECEBIMENTO PROVISÓRIO DO(S) SIE DE RACK DE TI",null,null,null,null,null,"MANUTEÇÃO DO(S) SIE DE RACK DE TI"]
[null,"OBS.: A Tabela é orientativa, pois o prazo de manutenção do SIE de cada Unidade da CGU poderá ser estendido, para até 12 meses, em função da  execução antecipada das Etapa 2 e 3."]
[]
[]
[]
[]
[]
[null,null,null,null,null,null,null,null,null,null,null,null,null,null,null,null,null,"TESTES E AJUSTES / SUPERVISÓRIO PARCIAL / TREINAMENTO",null,null,null,"TERMO DE RECEBIMENTO PROVISÓRIO DO(S) SIE PREDIAL(AIS)",null,null,null,null,null,"MANUTEÇÃO DO(S) SIE PREDIAL(AIS)"]

{"sheet":"ACRÔNIMOS","index":10,"n_rows":13,"n_cols":3,"rows_kept":13,"cut":false,"hidden":true,"merged":[]}
[]
[]
[]
[]
[]
[null,"CGU","Controladoria-Geral de União"]
[null,"CGU-R","Unidade da CGU nos Estados ou Superintendência Regional da CGU"]
[null,"SEDE","Sede da CGU em Brasíla"]
[null,"SIE","Sistema Ininterrupto de Energia (nobreaks, bancos de baterias, infraestrurura elétrica e supervisório)"]
[null,"RE","Relatório de Ensaios realizados em Laboratório acreditado pelo INMETRO (equipamentos protótipos ou paradigmas)"]
[null,"OS","Ordem de Serviço para realização dos reparo do SIE"]
[null,"TAC","Testes de Aceitação em Campo"]
[null,"RT","Relatório Técnico com o TAC e Treinamento"]

{"sheet":"FATURAMENTO","index":11,"n_rows":50,"n_cols":13,"rows_kept":50,"cut":false,"hidden":true,"merged":[[31,9,33,10],[36,3,38,4],[36,6,38,7],[36,9,38,10],[5,9,5,10],[22,9,24,10],[31,6,33,7],[7,3,9,4],[12,3,14,4],[17,3,19,4],[1,3,1,13],[7,12,43,13],[3,3,3,4],[3,6,3,7],[3,9,3,10],[3,12,3,13],[22,3,24,4],[22,6,24,7],[5,12,5,13],[7,9,9,10],[12,6,14,7],[17,6,19,7],[41,6,43,7],[12,9,14,10],[17,9,19,10],[41,9,43,10],[41,3,43,4],[5,3,5,4],[5,6,5,7],[7,6,9,7],[31,3,33,4]]}
[]
[null,null,null,"CÁLCULO EXEMPLIFICATIVO DO ÚLTIMO FATURAMENTO (PRO-RATA/IMR/PENALIDADES)"]
[]
[null,null,null,"Passo 1",null,null,"Passo 2",null,null,"Passo 3",null,null,"Passo 4"]
[]
[null,null,null,"Último mês de Medição (Final do 60 meses)",null,null,"Pro-rata/Envio de Boletim de Medição (BM)",null,null,"Análise do BM,  Aplicação do IMR e/ou Penalidades",null,null,"Mês subsequente a Última Medição"]
[]
[null,null,null,"SIE Predial da CGU-R/1",null,null,"17 dias de execução da Locação com Manutenção",null,null,"Pagamento de 17/30 CM - IMR - Penalidades",null,null,"Emissão da NF e Faturamento conforme Passo 3"]
[]
[]
[]
[]
[null,null,null,"SIE de Rack CGU-R/1",null,null,"12 dias de execução da Locação com Manutenção",null,null,"Pagamento de 12/30 CM - IMR - Penalidades"]
[]
[]
[]
[]
[null,null,null,"SIE Predial da CGU-R/1",null,null,"5 dias de execução da Locação com Manutenção",null,null,"Pagamento de 5/30 CM - IMR - Penalidades"]
[]
[]
[]
[]
[null,null,null,"SIE de Rack CGU-R/1",null,null,"8 dias de execução da Locação com Manutenção",null,null,"Pagamento de 8/30 CM - IMR - Penalidades"]
[]
[]
[]
[]
[]
[]
[]
[]
[null,null,null,"CGU-R/22-RA",null,null,"5 dias de execução da Locação com Manutenção",null,null,"Pagamento de 5/30 CM - IMR - Penalidades"]
[]
[]
[]
[]
[null,null,null,"CGU-R/22-PD",null,null,"5 dias de execução da Locação com Manutenção",null,null,"Pagamento de 5/30 CM - IMR - Penalidades"]
[]
[]
[]
[]
[null,null,null,"CGU-SEDE",null,null,"30 dias de execução da Locação com Manutenção",null,null,"Pagamento de 30/30 CM - IMR - Penalidades"]
[]
[]
[]
[]
[null,null,null,"Legenda:"]
[null,null,null,"BM","Boletim de Medição"]
[null,null,null,"CGU-R","Unidade da CGU no Estado ou Superintendência Regional"]
[null,null,null,"CM","Custo Mensal de Locação com Manutenção "]

{"sheet":"SIE CGU-R","index":12,"n_rows":132,"n_cols":21,"rows_kept":132,"cut":false,"hidden":false,"merged":[[97,18,98,20],[131,9,133,11],[90,9,91,11],[119,17,120,19],[108,4,111,5],[124,6,126,7],[124,13,126,14],[103,11,105,12],[102,7,105,8],[107,12,108,13],[82,13,84,14],[82,6,84,7],[82,17,84,19],[60,7,63,8],[68,20,69,23],[61,11,63,12],[65,12,66,13],[12,3,15,5],[12,12,15,17],[13,6,14,11],[67,4,70,5],[67,15,70,16],[22,11,22,15],[24,6,25,11],[27,6,27,11],[30,3,30,17],[17,14,17,15],[16,4,19,5],[16,8,19,9],[16,12,19,13],[17,6,17,7],[17,10,17,11],[2,3,2,17],[6,3,6,5],[6,12,6,17],[8,4,11,5],[8,8,11,9],[8,12,11,13],[8,16,11,17],[9,6,9,7],[9,10,9,11],[5,6,6,11],[9,14,9,15]]}
[]
[]
[null,null,null,"ESQUEMA BÁSICO DE IMPLANTAÇÃO DOS SIE PREDIAL E DE RACK NAS UNIDADES REGIONAIS DA CGU NOS ESTADOS"]
[]
[]
[null,null,null,null,null,null,"ESCOPO CONTRATADA (Infraestrutura elétrica, nobreak(s), supervisório e treinamento"]
[null,null,null,"ESCOPO CGU (infraestrutura geral e climatização)",null,null,null,null,null,null,null,null,"ESCOPO CGU (infraestrutura geral e climatização)"]
[]
[null,null,null,null,"QUADRO ELÉTRICO DO PRÉDIO (ENTRADA)",null,null,null,"SIE (PREDIAL)",null,null,null,"QUADRO ELÉTRICO DO PRÉDIO (SAÍDA)",null,null,null,"ESTAÇÕES DE TRABALHO"]
[null,null,null,null,null,null,"10m",null,null,null,"10m"]
[]
[]
[]
[null,null,null,null,null,null,"REDE TCP/IP (LOCAL)"]
[]
[]
[null,null,null,null,"QUADRO ELÉTRICO DO PRÉDIO (ENTRADA)",null,null,null,"SIE (RACK)",null,null,null,"RACK DE TI"]
[null,null,null,null,null,null,"10m",null,null,null,"10m"]
[]
[]
[]
[]
[null,null,null,null,null,null,null,null,null,null,null,"ESCOPO CONTRATADA: Supervisório"]
[]
[null,null,null,null,null,null,"CGU-SEDE - Brasília"]
[]
[]
[null,null,null,null,null,null,"REDE TCP/IP (LOCAL)"]
[]
[]
[null,null,null,"Obs.: A responsabilidade de manutenção do SIE (Infraestrutura, equipamentos e supervisório) é da Contradada durante a vigência contratual."]
[]
[]
[]
[]
[]
[]
[]
[]
[]
[]
[]
[]
[]
[]
[]
[]
[]
[]
[]
[]
[]
[]
[]
[]
[]
[]
[]
[]
[]
[null,null,null,null,null,null,null,"LOCAL QUE IRÁ ABRIGAR O(S) NOBREAK(S)"]
[null,null,null,null,null,null,null,null,null,null,null,"QUADRO DE BYPASS (CONTRATADA)"]
[]
[]
[]
[null,null,null,null,null,null,null,null,null,null,null,null,"AUTOTRAFO (CONTRATADA)"]
[]
[null,null,null,null,"QUADRO ELETRICO DE ENTRADA DO PRÉDIO (CGU-R)",null,null,null,null,null,null,null,null,null,null,"QUADRO ELETRICO DE SAÍDA DO PRÉDIO (CGU-R)"]
[null,null,null,null,null,null,null,null,null,null,null,null,null,null,null,null,null,null,null,null,"ESTAÇÕES DE TRABALHO "]
[]
[]
[]
[]
[]
[]
[]
[]
[]
[]
[]
[]
[]
[null,null,null,null,null,null,"INFRAESTRTURA ELÉTRICA (CONTRATADA)",null,null,null,null,null,null,"INFRAESTRTURA ELÉTRICA (CONTRATADA)",null,null,null,"INFRAESTRTURA ELÉTRICA (CGU-R)"]
[]
[]
[]
[]
[]
[]
[]
[null,null,null,null,null,null,null,null,null,"CLIMATIZAÇÃO + PONTO TCP/IP (CGU-R)"]
[]
[]
[]
[]
[]
[]
[null,null,null,null,null,null,null,null,null,null,null,null,null,null,null,null,null,null,"SUPERVISÓRIO (CONTRATADA)"]
[]
[]
[]
[]
[null,null,null,null,null,null,null,"LOCAL QUE IRÁ ABRIGAR O NO-BREAK"]
[null,null,null,null,null,null,null,null,null,null,null,"QUADRO DE BYPASS (CONTRATADA)"]
[]
[]
[]
[null,null,null,null,null,null,null,null,null,null,null,null,"AUTOTRAFO (CONTRATADA)"]
[null,null,null,null,"QUADRO ELETRICO DE ENTRADA DO PRÉDIO (CGU-R)"]
[]
[]
[]
[]
[]
[]
[]
[]
[]
[]
[null,null,null,null,null,null,null,null,null,null,null,null,null,null,null,null,null,"RACK DE TI (CGU-R)"]
[]
[]
[]
[]
[null,null,null,null,null,null,"INFRAESTRTURA ELÉTRICA (CONTRATADA)",null,null,null,null,null,null,"INFRAESTRTURA ELÉTRICA (CONTRATADA)"]
[]
[]
[]
[]
[]
[]
[null,null,null,null,null,null,null,null,null,"CLIMATIZAÇÃO + PONTO TCP/IP (CGU-R)"]